Capital or Revenue,Directorate,Transaction Number,Date,Service Area,Expenses Type,Amount,Supplier Name
Revenue,Childrens Services,5105652094,30.09.2015,Practice Teaching Training,Training,"1,806.00",REDACTED PERSONAL DATA
Revenue,Childrens Services,5105649285,11.09.2015,LSCB (Local Safeguarding Childrens Board),Consultants Fees,"4,450.00",REDACTED PERSONAL DATA
Revenue,Adult Services,5105649772,11.09.2015,Local Safeguarding Adults Board,Public Transport Fares,442.30,REDACTED PERSONAL DATA
Revenue,Adult Services,5105649772,11.09.2015,Local Safeguarding Adults Board,Travel Expenses,221.00,REDACTED PERSONAL DATA
Revenue,Adult Services,5105649772,11.09.2015,Local Safeguarding Adults Board,Professional Services,"6,250.00",REDACTED PERSONAL DATA
Revenue,Adult Services,5105651687,25.09.2015,Advocacy Services (IMCA & IMHA),Charges from Independent Providers,140.00,REDACTED PERSONAL DATA
Revenue,Childrens Services,5105649451,09.09.2015,Island Learning Centre,Payment to Private Contractors,320.00,REDACTED PERSONAL DATA
Revenue,Childrens Services,5105649371,09.09.2015,Island Futures Careers & Employability,Security of Buildings,375.00,REDACTED PERSONAL DATA
Revenue,Childrens Services,5105649371,09.09.2015,Island Futures Careers & Employability,Security of Buildings,50.00,REDACTED PERSONAL DATA
Revenue,Childrens Services,5105649368,09.09.2015,Sandham Middle School Disposal,Security of Buildings,"1,240.00",REDACTED PERSONAL DATA
Revenue,Childrens Services,5105649371,09.09.2015,Youth- Ryde  (Well St),Security of Buildings,100.00,REDACTED PERSONAL DATA
Revenue,Childrens Services,5105649371,09.09.2015,Youth- Ryde  (Well St),Security of Buildings,"1,240.00",REDACTED PERSONAL DATA
Revenue,Place,5105649371,09.09.2015,Church View Ventnor,Security of Buildings,25.00,REDACTED PERSONAL DATA
Revenue,Place,5105649371,09.09.2015,Church View Ventnor,Security of Buildings,100.00,REDACTED PERSONAL DATA
Revenue,Place,5105649371,09.09.2015,York Centre E Cowes,Security of Buildings,100.00,REDACTED PERSONAL DATA
Revenue,Place,5105649371,09.09.2015,"Westridge, Ryde",Security of Buildings,25.00,REDACTED PERSONAL DATA
Revenue,Place,5105649371,09.09.2015,"Atkinson Drive, Newport",Security of Buildings,100.00,REDACTED PERSONAL DATA
Revenue,Place,5105649371,09.09.2015,Victoria Recreation Ground,Security of Buildings,100.00,REDACTED PERSONAL DATA
Revenue,Childrens Services,5105649371,09.09.2015,Island Youth Water Activity Centre,Security of Buildings,100.00,REDACTED PERSONAL DATA
Revenue,Childrens Services,5105649368,09.09.2015,Island Learning Centre,Security of Buildings,60.00,REDACTED PERSONAL DATA
Revenue,Place,5105649371,09.09.2015,Somerton Industrial Park,Security of Buildings,75.00,REDACTED PERSONAL DATA
Revenue,Childrens Services,5105649371,09.09.2015,Youth- Cowes,Security of Buildings,100.00,REDACTED PERSONAL DATA
Revenue,Place,5105649371,09.09.2015,Carisbrooke Contact Centre,Security of Buildings,100.00,REDACTED PERSONAL DATA
Revenue,Adult Services,5105651504,25.09.2015,Saxonbury,Professional Services,55.00,CHRIS' DOMESTIC SERVICES
Revenue,Adult Services,5105651551,23.09.2015,Seagulls,Maintenance of Operational Equipment,94.99,CHRIS' DOMESTIC SERVICES
Revenue,Adult Services,5105648309,04.09.2015,40 Venner Avenue,Maintenance of Operational Equipment,135.00,CHRIS' DOMESTIC SERVICES
Revenue,Childrens Services,5105648396,04.09.2015,Island Learning Centre,Bought in Prof Services - Curriculum (Schools),915.00,REDACTED PERSONAL DATA
Revenue,Place,5105649434,09.09.2015,Coroner,Professional Services,284.16,REDACTED PERSONAL DATA
Revenue,Place,5105649434,09.09.2015,Coroner,Professional Services,9.45,REDACTED PERSONAL DATA
Revenue,Place,5105649434,09.09.2015,Coroner,Professional Services,100.64,REDACTED PERSONAL DATA
Revenue,Childrens Services,5105651209,18.09.2015,Short Breaks,Charges from Independent Providers,525.00,REDACTED PERSONAL DATA
Revenue,Childrens Services,5105649378,09.09.2015,Mental Health Pilot,Payment to Private Contractors,"1,680.00",REDACTED PERSONAL DATA
Revenue,Childrens Services,5105650893,16.09.2015,Accreditation Centre,Training,60.00,REDACTED PERSONAL DATA
Revenue,Childrens Services,5105650863,23.09.2015,Accreditation Centre,Training,20.00,REDACTED PERSONAL DATA
Revenue,Childrens Services,5105651192,18.09.2015,Court Work & Consultancy Services,Professional Services,55.00,REDACTED PERSONAL DATA
Revenue,Childrens Services,5105651497,23.09.2015,Short Breaks,Charges from Independent Providers,730.00,REDACTED PERSONAL DATA
Revenue,Place,5105650511,16.09.2015,B&B Properties,Accommodation Costs - Bed & Breakfast,816.67,ALTAVIA HOTEL
Revenue,Place,5105645520,02.09.2015,B&B Properties,Accommodation Costs - Bed & Breakfast,"1,050.00",ALTAVIA HOTEL
Revenue,Childrens Services,5105651924,30.09.2015,Visually Impaired Service,Consultants Fees,299.25,REDACTED PERSONAL DATA
Revenue,Childrens Services,5105649464,16.09.2015,Visually Impaired Service,Consultants Fees,348.25,REDACTED PERSONAL DATA
Revenue,Childrens Services,5105652145,30.09.2015,Adoption Costs,Professional Services,200.00,REDACTED PERSONAL DATA
Revenue,Childrens Services,5105652144,30.09.2015,Adoption Costs,Professional Services,200.00,REDACTED PERSONAL DATA
Revenue,Childrens Services,5105651319,18.09.2015,Adoption Costs,Professional Services,629.25,REDACTED PERSONAL DATA
Revenue,Childrens Services,5105652148,30.09.2015,Adoption Costs,Professional Services,422.30,REDACTED PERSONAL DATA
Revenue,Childrens Services,5105652147,30.09.2015,Adoption Costs,Professional Services,406.50,REDACTED PERSONAL DATA
Revenue,Childrens Services,5105652142,30.09.2015,Adoption Reform Grant,Charges from Independent Providers,406.50,REDACTED PERSONAL DATA
Revenue,Childrens Services,5105652143,30.09.2015,Adoption Reform Grant,Charges from Independent Providers,422.30,REDACTED PERSONAL DATA
Revenue,Childrens Services,5105651320,18.09.2015,Adoption Reform Grant,Charges from Independent Providers,629.25,REDACTED PERSONAL DATA
Revenue,Adult Services,5105647816,23.09.2015,Local Safeguarding Adults Board,Consultants Fees,"2,294.65",REDACTED PERSONAL DATA
Revenue,Childrens Services,5105649401,09.09.2015,Island Learning Centre,Bought in Prof Services - Curriculum (Schools),450.00,REDACTED PERSONAL DATA
Revenue,Place,5105648028,02.09.2015,Wellbeing,Payment to Private Contractors,650.00,MALCOLM HENDY PAINTER DECORATOR
Revenue,Childrens Services,5105652160,30.09.2015,Island Learning Centre,Bought in Prof Services - Curriculum (Schools),360.00,ISLE OF WIGHT JIU JITSU
Revenue,Place,5105649727,18.09.2015,Newport Library,Cleaning Contracts,195.00,REDACTED PERSONAL DATA
Revenue,Childrens Services,5105647890,02.09.2015,ASYE Programme,Training,"1,458.00",REDACTED PERSONAL DATA
Revenue,Place,5105651375,23.09.2015,Leaseholds by LA,Accommodation Costs - Leaseholder Payments,695.89,REDACTED PERSONAL DATA
Revenue,Place,5105651375,23.09.2015,Leaseholds by LA,Accommodation Costs - Leaseholder Payments,695.89,REDACTED PERSONAL DATA
Revenue,Place,5105651375,23.09.2015,Leaseholds by LA,Accommodation Costs - Leaseholder Payments,695.89,REDACTED PERSONAL DATA
Revenue,Place,5105651375,23.09.2015,Leaseholds by LA,Accommodation Costs - Leaseholder Payments,695.89,REDACTED PERSONAL DATA
Revenue,Place,5105651375,23.09.2015,Leaseholds by LA,Accommodation Costs - Leaseholder Payments,695.89,REDACTED PERSONAL DATA
Revenue,Childrens Services,5105647946,02.09.2015,Island Learning Centre,Payment to Private Contractors,"2,200.00",REDACTED PERSONAL DATA
Revenue,Childrens Services,5105648346,04.09.2015,Island Learning Centre,Payment to Private Contractors,600.00,REDACTED PERSONAL DATA
Revenue,Childrens Services,5105649723,11.09.2015,Island Learning Centre,Payment to Private Contractors,"7,440.00",REDACTED PERSONAL DATA
Revenue,Childrens Services,5105649723,11.09.2015,Island Learning Centre,Payment to Private Contractors,90.00,REDACTED PERSONAL DATA
Revenue,Childrens Services,5105652138,30.09.2015,Island Learning Centre,Payment to Private Contractors,60.00,REDACTED PERSONAL DATA
Revenue,Place,5105648441,09.09.2015,Business Support  - Fire,Prop Svs only - Day to day mtce,60.00,REDACTED PERSONAL DATA
Revenue,Place,5105651489,23.09.2015,Medina Leisure Centre,Prop Svs only - Day to day mtce,90.00,REDACTED PERSONAL DATA
Revenue,Adult Services,5105652078,30.09.2015,Plean Dene,Property Services - Planned Maintenance,75.00,REDACTED PERSONAL DATA
Revenue,Childrens Services,5105652175,30.09.2015,Family Support activity base: 76 Greenlands,Minor Works,45.00,REDACTED PERSONAL DATA
Revenue,Childrens Services,5105647978,02.09.2015,Beaulieu House,Minor Works,167.69,REDACTED PERSONAL DATA
Revenue,Adult Services,5105647995,02.09.2015,Highmead,Minor Works,456.00,REDACTED PERSONAL DATA
Revenue,Place,5105648436,30.09.2015,East Cowes Library,Property Services - Planned Maintenance,260.00,REDACTED PERSONAL DATA
Revenue,Place,5105648345,04.09.2015,Sandown Library,Property Services - Planned Maintenance,120.00,REDACTED PERSONAL DATA
Revenue,Childrens Services,5105652188,30.09.2015,Childrens Centres Maintenance,Minor Works,130.00,REDACTED PERSONAL DATA
Revenue,Childrens Services,5105651293,18.09.2015,Childrens Centres Maintenance,Minor Works,90.00,REDACTED PERSONAL DATA
Revenue,Place,5105648403,04.09.2015,Open space lettings,Property Services - Planned Maintenance,400.00,REDACTED PERSONAL DATA
Revenue,Place,5105648431,09.09.2015,Open space lettings,Property Services - Planned Maintenance,100.00,REDACTED PERSONAL DATA
Revenue,Place,5105649262,09.09.2015,Open space lettings,Property Services - Planned Maintenance,-100.00,REDACTED PERSONAL DATA
Revenue,Childrens Services,5105647819,04.09.2015,Leaving Care Costs,Clothing & Laundry,101.97,NUMBER5NEWPORT
Revenue,Childrens Services,5105647819,04.09.2015,Leaving Care Costs,Charges from Independent Providers,"2,214.33",NUMBER5NEWPORT
Revenue,Childrens Services,5105647818,02.09.2015,Leaving Care Costs,Charges from Independent Providers,"2,878.66",NUMBER5NEWPORT
Revenue,Childrens Services,5105647950,04.09.2015,Leaving Care Costs,Charges from Independent Providers,"2,214.33",NUMBER5NEWPORT
Revenue,Childrens Services,5105647949,02.09.2015,Leaving Care Costs,Charges from Independent Providers,"2,878.66",NUMBER5NEWPORT
Revenue,Childrens Services,5105647950,04.09.2015,Leaving Care Costs,Support Children,612.14,NUMBER5NEWPORT
Revenue,Childrens Services,5105647819,04.09.2015,Leaving Care Costs,Accommodation Costs - Service Users,297.60,NUMBER5NEWPORT
Revenue,Childrens Services,5105647818,02.09.2015,Leaving Care Costs,Accommodation Costs - Service Users,297.60,NUMBER5NEWPORT
Revenue,Childrens Services,5105647950,04.09.2015,Leaving Care Costs,Accommodation Costs - Service Users,297.60,NUMBER5NEWPORT
Revenue,Childrens Services,5105647949,02.09.2015,Leaving Care Costs,Accommodation Costs - Service Users,297.60,NUMBER5NEWPORT
Revenue,Place,5105650922,16.09.2015,Ferry Operation,Payment to Private Contractors,105.00,TONY HAMILTON MARINE
Revenue,Childrens Services,5105651563,23.09.2015,Workforce Development Schools,Training,400.00,REDACTED PERSONAL DATA
Revenue,Childrens Services,5105651563,23.09.2015,Workforce Development Schools,Training,35.00,REDACTED PERSONAL DATA
Revenue,Childrens Services,5105651563,23.09.2015,Workforce Development Schools,Training,47.50,REDACTED PERSONAL DATA
Revenue,Childrens Services,5105651563,23.09.2015,Workforce Development - Early Years,Training,47.50,REDACTED PERSONAL DATA
Revenue,Childrens Services,5105651563,23.09.2015,Workforce Development - Early Years,Training,35.00,REDACTED PERSONAL DATA
Revenue,Childrens Services,5105651563,23.09.2015,Workforce Development - Early Years,Training,400.00,REDACTED PERSONAL DATA
Revenue,Place,5105651394,23.09.2015,Leaseholds by LA,Accommodation Costs - Leaseholder Payments,866.67,2K PROPERTY
Revenue,Place,5105648386,09.09.2015,Project Manager Waste Strategy,Computer Software & Consumables,461.25,4 PROJECTS LIMITED
Revenue,Childrens Services,5105649301,09.09.2015,Purchased Fostering,Charges from Independent Providers,"4,251.65",5 FOSTERING
Revenue,Childrens Services,5105649454,09.09.2015,Purchased Fostering,Charges from Independent Providers,"4,251.65",5 FOSTERING
Revenue,Place,5105651458,23.09.2015,Business Support  - Fire,Prop Svs only - Day to day mtce,181.32,A & M APPLIANCE CARE
Revenue,Adult Services,5105648358,04.09.2015,Adelaide Resource Centre,Consumable Cleaning Materials,246.00,A & M APPLIANCE CARE
Revenue,Childrens Services,5105651751,25.09.2015,Special Guardianship Order Costs,Support Children,168.39,REDACTED PERSONAL DATA
Revenue,Childrens Services,5105651044,18.09.2015,Special Guardianship Order Costs,Support Children,168.39,REDACTED PERSONAL DATA
Revenue,Childrens Services,5105651044,18.09.2015,Special Guardianship Order Costs,Support Children,207.73,REDACTED PERSONAL DATA
Revenue,Childrens Services,5105651751,25.09.2015,Special Guardianship Order Costs,Support Children,207.73,REDACTED PERSONAL DATA
Revenue,Childrens Services,5105649531,11.09.2015,Special Guardianship Order Costs,Support Children,168.39,REDACTED PERSONAL DATA
Revenue,Childrens Services,5105649531,11.09.2015,Special Guardianship Order Costs,Support Children,207.73,REDACTED PERSONAL DATA
Revenue,Childrens Services,5105648114,04.09.2015,Special Guardianship Order Costs,Support Children,168.39,REDACTED PERSONAL DATA
Revenue,Childrens Services,5105648114,04.09.2015,Special Guardianship Order Costs,Support Children,207.73,REDACTED PERSONAL DATA
Revenue,Childrens Services,5105648179,04.09.2015,Leaving Care Costs,Support Children,120.89,REDACTED PERSONAL DATA
Revenue,Childrens Services,5105649595,11.09.2015,Leaving Care Costs,Support Children,120.89,REDACTED PERSONAL DATA
Revenue,Childrens Services,5105648179,04.09.2015,Leaving Care Costs,Accommodation Costs - Service Users,68.50,REDACTED PERSONAL DATA
Revenue,Childrens Services,5105649595,11.09.2015,Leaving Care Costs,Accommodation Costs - Service Users,68.50,REDACTED PERSONAL DATA
Revenue,Childrens Services,5105651108,18.09.2015,Leaving Care Costs,Accommodation Costs - Service Users,68.50,REDACTED PERSONAL DATA
Revenue,Childrens Services,5105651815,25.09.2015,Leaving Care Costs,Accommodation Costs - Service Users,68.50,REDACTED PERSONAL DATA
Revenue,Childrens Services,5105651108,18.09.2015,Leaving Care Costs,Support Children,120.89,REDACTED PERSONAL DATA
Revenue,Childrens Services,5105651815,25.09.2015,Leaving Care Costs,Support Children,120.89,REDACTED PERSONAL DATA
Revenue,Place,5105651389,23.09.2015,Leaseholds by LA,Accommodation Costs - Leaseholder Payments,510.25,REDACTED PERSONAL DATA
Revenue,Place,5105651389,23.09.2015,Leaseholds by LA,Accommodation Costs - Leaseholder Payments,510.25,REDACTED PERSONAL DATA
Revenue,Place,5105651389,23.09.2015,Leaseholds by LA,Accommodation Costs - Leaseholder Payments,510.25,REDACTED PERSONAL DATA
Revenue,Place,5105651389,23.09.2015,Leaseholds by LA,Accommodation Costs - Leaseholder Payments,510.25,REDACTED PERSONAL DATA
Revenue,Place,5105651389,23.09.2015,Leaseholds by LA,Accommodation Costs - Leaseholder Payments,510.25,REDACTED PERSONAL DATA
Revenue,Place,5105651389,23.09.2015,Leaseholds by LA,Accommodation Costs - Leaseholder Payments,510.25,REDACTED PERSONAL DATA
Revenue,Childrens Services,5105651025,18.09.2015,Adoption Costs,Support Children,225.83,REDACTED PERSONAL DATA
Revenue,Childrens Services,5105649513,11.09.2015,Adoption Costs,Support Children,225.83,REDACTED PERSONAL DATA
Revenue,Childrens Services,5105648096,04.09.2015,Adoption Costs,Support Children,225.83,REDACTED PERSONAL DATA
Revenue,Childrens Services,5105651732,25.09.2015,Adoption Costs,Support Children,225.83,REDACTED PERSONAL DATA
Revenue,Childrens Services,5105651785,25.09.2015,In-house Fostering,Boarding Out Allowances,162.73,REDACTED PERSONAL DATA
Revenue,Childrens Services,5105648149,04.09.2015,In-house Fostering,Boarding Out Allowances,162.73,REDACTED PERSONAL DATA
Revenue,Childrens Services,5105651078,18.09.2015,In-house Fostering,Boarding Out Allowances,162.73,REDACTED PERSONAL DATA
Revenue,Childrens Services,5105649565,11.09.2015,In-house Fostering,Boarding Out Allowances,162.73,REDACTED PERSONAL DATA
Revenue,Place,5105651391,23.09.2015,Leaseholds by LA,Accommodation Costs - Leaseholder Payments,780.00,REDACTED PERSONAL DATA
Revenue,Place,5105651379,23.09.2015,Leaseholds by LA,Accommodation Costs - Leaseholder Payments,835.08,REDACTED PERSONAL DATA
Revenue,Place,5105651379,23.09.2015,Leaseholds by LA,Accommodation Costs - Leaseholder Payments,789.01,REDACTED PERSONAL DATA
Revenue,Place,5105651379,23.09.2015,Leaseholds by LA,Accommodation Costs - Leaseholder Payments,649.83,REDACTED PERSONAL DATA
Revenue,Place,5105651957,25.09.2015,Supporting People Older Persons,Payment to Private Contractors,451.20,ABBEYFIELD WEST WIGHT SOCIETY
Revenue,Resources,5105651191,18.09.2015,ICT Refresh Programme,Computer Maintenance,"8,400.00",ABSOFT LIMITED
Revenue,Adult Services,5105650849,16.09.2015,Elderly Mentally Ill Residential Care,Charges from Independent Providers,"1,972.22",ACACIA CARE HOME
Revenue,Adult Services,5105648580,09.09.2015,Elderly Mentally Ill Residential Care,Charges from Independent Providers,"1,781.36",ACACIA CARE HOME
Revenue,Adult Services,5105648580,09.09.2015,Elderly Frail Residential Care,Charges from Independent Providers,"2,093.84",ACACIA CARE HOME
Revenue,Adult Services,5105648580,09.09.2015,Elderly Frail Residential Care,Charges from Independent Providers,"1,153.87",ACACIA CARE HOME
Revenue,Adult Services,5105650849,16.09.2015,Elderly Frail Residential Care,Charges from Independent Providers,"1,761.17",ACACIA CARE HOME
Revenue,Adult Services,5105648580,09.09.2015,Elderly Frail Residential Care,Charges from Independent Providers,"1,700.44",ACACIA CARE HOME
Revenue,Adult Services,5105648580,09.09.2015,Elderly Frail Residential Care,Charges from Independent Providers,"1,700.44",ACACIA CARE HOME
Revenue,Childrens Services,5105649277,09.09.2015,Independent Support for PPS,Interview & recruitment expenses,6.00,ACCESS PERSONAL CHECKING SERVICES LTD
Revenue,Public Health,5105649277,09.09.2015,Local Area Coordinators - Gen Prevention,Interview & recruitment expenses,44.00,ACCESS PERSONAL CHECKING SERVICES LTD
Revenue,Public Health,5105649277,09.09.2015,Local Area Coordinators - Gen Prevention,Interview & recruitment expenses,6.00,ACCESS PERSONAL CHECKING SERVICES LTD
Revenue,Public Health,5105649277,09.09.2015,Local Area Coordinators - Gen Prevention,Interview & recruitment expenses,6.00,ACCESS PERSONAL CHECKING SERVICES LTD
Revenue,Public Health,5105649277,09.09.2015,Local Area Coordinators - Gen Prevention,Interview & recruitment expenses,44.00,ACCESS PERSONAL CHECKING SERVICES LTD
Revenue,Childrens Services,5105649277,09.09.2015,Adoption Costs,Interview & recruitment expenses,44.00,ACCESS PERSONAL CHECKING SERVICES LTD
Revenue,Childrens Services,5105649277,09.09.2015,Adoption Costs,Interview & recruitment expenses,6.00,ACCESS PERSONAL CHECKING SERVICES LTD
Revenue,Adult Services,5105649277,09.09.2015,Plean Dene,Interview & recruitment expenses,12.00,ACCESS PERSONAL CHECKING SERVICES LTD
Revenue,Adult Services,5105649277,09.09.2015,Plean Dene,Interview & recruitment expenses,88.00,ACCESS PERSONAL CHECKING SERVICES LTD
Revenue,Adult Services,5105649277,09.09.2015,Westminster House,Interview & recruitment expenses,6.00,ACCESS PERSONAL CHECKING SERVICES LTD
Revenue,Adult Services,5105649277,09.09.2015,Westminster House,Interview & recruitment expenses,44.00,ACCESS PERSONAL CHECKING SERVICES LTD
Revenue,Adult Services,5105649277,09.09.2015,Direct Payment Finance Team,Interview & recruitment expenses,6.00,ACCESS PERSONAL CHECKING SERVICES LTD
Revenue,Adult Services,5105649277,09.09.2015,Direct Payment Finance Team,Interview & recruitment expenses,44.00,ACCESS PERSONAL CHECKING SERVICES LTD
Revenue,Adult Services,5105649277,09.09.2015,Gouldings Resource Centre,Interview & recruitment expenses,30.00,ACCESS PERSONAL CHECKING SERVICES LTD
Revenue,Adult Services,5105649277,09.09.2015,Gouldings Resource Centre,Interview & recruitment expenses,220.00,ACCESS PERSONAL CHECKING SERVICES LTD
Revenue,Place,5105649277,09.09.2015,School Crossing Patrols,Interview & recruitment expenses,6.00,ACCESS PERSONAL CHECKING SERVICES LTD
Revenue,Adult Services,5105649277,09.09.2015,Community Outreach,Interview & recruitment expenses,18.00,ACCESS PERSONAL CHECKING SERVICES LTD
Revenue,Adult Services,5105649277,09.09.2015,Community Outreach,Interview & recruitment expenses,132.00,ACCESS PERSONAL CHECKING SERVICES LTD
Revenue,Childrens Services,5105649277,09.09.2015,Safeguarding Support,Interview & recruitment expenses,8.00,ACCESS PERSONAL CHECKING SERVICES LTD
Revenue,Childrens Services,5105649277,09.09.2015,Safeguarding Support,Interview & recruitment expenses,25.00,ACCESS PERSONAL CHECKING SERVICES LTD
Revenue,Childrens Services,5105649277,09.09.2015,"Speech, Language and Communication",Interview & recruitment expenses,6.00,ACCESS PERSONAL CHECKING SERVICES LTD
Revenue,Childrens Services,5105649277,09.09.2015,"Speech, Language and Communication",Interview & recruitment expenses,44.00,ACCESS PERSONAL CHECKING SERVICES LTD
Revenue,Place,5105649277,09.09.2015,Shanklin Lift,Interview & recruitment expenses,26.00,ACCESS PERSONAL CHECKING SERVICES LTD
Revenue,Place,5105649277,09.09.2015,Shanklin Lift,Interview & recruitment expenses,6.00,ACCESS PERSONAL CHECKING SERVICES LTD
Revenue,Childrens Services,5105649277,09.09.2015,Island Learning Centre,Interview & recruitment expenses,6.00,ACCESS PERSONAL CHECKING SERVICES LTD
Revenue,Childrens Services,5105649277,09.09.2015,Island Learning Centre,Interview & recruitment expenses,44.00,ACCESS PERSONAL CHECKING SERVICES LTD
Revenue,Childrens Services,5105649277,09.09.2015,Adoption Team,Interview & recruitment expenses,44.00,ACCESS PERSONAL CHECKING SERVICES LTD
Revenue,Childrens Services,5105649277,09.09.2015,Adoption Team,Interview & recruitment expenses,6.00,ACCESS PERSONAL CHECKING SERVICES LTD
Revenue,Place,5105649365,09.09.2015,Licensing Services,Professional Services,308.00,ACCESS PERSONAL CHECKING SERVICES LTD
Revenue,Place,5105649365,09.09.2015,Licensing Services,Professional Services,42.00,ACCESS PERSONAL CHECKING SERVICES LTD
Revenue,Childrens Services,5105649277,09.09.2015,In-house Fostering,Interview & recruitment expenses,84.00,ACCESS PERSONAL CHECKING SERVICES LTD
Revenue,Childrens Services,5105649277,09.09.2015,In-house Fostering,Interview & recruitment expenses,616.00,ACCESS PERSONAL CHECKING SERVICES LTD
Revenue,Childrens Services,5105649277,09.09.2015,Youth Offending Team,Interview & recruitment expenses,24.00,ACCESS PERSONAL CHECKING SERVICES LTD
Revenue,Childrens Services,5105649277,09.09.2015,Direct Payments Children & Families,Interview & recruitment expenses,12.00,ACCESS PERSONAL CHECKING SERVICES LTD
Revenue,Childrens Services,5105649277,09.09.2015,Direct Payments Children & Families,Interview & recruitment expenses,88.00,ACCESS PERSONAL CHECKING SERVICES LTD
Revenue,Adult Services,5105649277,09.09.2015,FAC Team,Interview & recruitment expenses,44.00,ACCESS PERSONAL CHECKING SERVICES LTD
Revenue,Adult Services,5105649277,09.09.2015,FAC Team,Interview & recruitment expenses,12.00,ACCESS PERSONAL CHECKING SERVICES LTD
Revenue,Adult Services,5105649277,09.09.2015,FAC Team,Interview & recruitment expenses,26.00,ACCESS PERSONAL CHECKING SERVICES LTD
Revenue,Adult Services,5105649277,09.09.2015,Adelaide Resource Centre,Interview & recruitment expenses,44.00,ACCESS PERSONAL CHECKING SERVICES LTD
Revenue,Adult Services,5105649277,09.09.2015,Adelaide Resource Centre,Interview & recruitment expenses,44.00,ACCESS PERSONAL CHECKING SERVICES LTD
Revenue,Adult Services,5105649277,09.09.2015,Adelaide Resource Centre,Interview & recruitment expenses,6.00,ACCESS PERSONAL CHECKING SERVICES LTD
Revenue,Adult Services,5105649277,09.09.2015,Adelaide Resource Centre,Interview & recruitment expenses,6.00,ACCESS PERSONAL CHECKING SERVICES LTD
Revenue,Place,5105648283,04.09.2015,Fire Technical Support,Vehicle Maintenance Costs,42.00,ACCLAIM LOGISTICS LTD
Revenue,Adult Services,5105650978,18.09.2015,Physical Disability Homecare,Charges from Independent Providers,569.18,ACORN CARE SERVICE LTD
Revenue,Adult Services,5105650952,18.09.2015,Elderly Frail Homecare,Regular Respite Care,122.24,ACORN CARE SERVICE LTD
Revenue,Adult Services,5105650953,18.09.2015,Elderly Frail Homecare,Regular Respite Care,137.52,ACORN CARE SERVICE LTD
Revenue,Adult Services,5105650955,18.09.2015,Elderly Frail Homecare,Regular Respite Care,122.24,ACORN CARE SERVICE LTD
Revenue,Adult Services,5105650949,18.09.2015,Elderly Frail Homecare,Charges from Independent Providers,848.04,ACORN CARE SERVICE LTD
Revenue,Adult Services,5105650950,18.09.2015,Elderly Frail Homecare,Regular Respite Care,106.96,ACORN CARE SERVICE LTD
Revenue,Adult Services,5105650966,18.09.2015,Elderly Frail Homecare,Regular Respite Care,366.72,ACORN CARE SERVICE LTD
Revenue,Adult Services,5105650948,18.09.2015,Elderly Frail Homecare,Charges from Independent Providers,435.48,ACORN CARE SERVICE LTD
Revenue,Adult Services,5105650943,18.09.2015,Elderly Frail Homecare,Charges from Independent Providers,404.92,ACORN CARE SERVICE LTD
Revenue,Adult Services,5105650951,18.09.2015,Elderly Frail Homecare,Charges from Independent Providers,"2,780.96",ACORN CARE SERVICE LTD
Revenue,Adult Services,5105650942,18.09.2015,Elderly Frail Homecare,Charges from Independent Providers,"1,191.84",ACORN CARE SERVICE LTD
Revenue,Adult Services,5105650941,18.09.2015,Elderly Frail Homecare,Charges from Independent Providers,"1,443.96",ACORN CARE SERVICE LTD
Revenue,Adult Services,5105650940,18.09.2015,Elderly Frail Homecare,Charges from Independent Providers,"2,032.24",ACORN CARE SERVICE LTD
Revenue,Adult Services,5105650939,18.09.2015,Elderly Frail Homecare,Charges from Independent Providers,305.60,ACORN CARE SERVICE LTD
Revenue,Adult Services,5105650946,18.09.2015,Elderly Frail Homecare,Charges from Independent Providers,"1,203.30",ACORN CARE SERVICE LTD
Revenue,Adult Services,5105650945,18.09.2015,Elderly Frail Homecare,Charges from Independent Providers,61.12,ACORN CARE SERVICE LTD
Revenue,Adult Services,5105650944,18.09.2015,Elderly Frail Homecare,Charges from Independent Providers,"1,084.88",ACORN CARE SERVICE LTD
Revenue,Adult Services,5105650954,18.09.2015,Elderly Frail Homecare,Charges from Independent Providers,534.80,ACORN CARE SERVICE LTD
Revenue,Adult Services,5105650957,18.09.2015,Elderly Frail Homecare,Charges from Independent Providers,645.58,ACORN CARE SERVICE LTD
Revenue,Adult Services,5105650965,18.09.2015,Elderly Frail Homecare,Charges from Independent Providers,61.12,ACORN CARE SERVICE LTD
Revenue,Adult Services,5105650938,18.09.2015,Elderly Frail Homecare,Charges from Independent Providers,"2,139.20",ACORN CARE SERVICE LTD
Revenue,Adult Services,5105650956,18.09.2015,Elderly Frail Homecare,Charges from Independent Providers,427.84,ACORN CARE SERVICE LTD
Revenue,Adult Services,5105650963,18.09.2015,Elderly Frail Homecare,Charges from Independent Providers,68.76,ACORN CARE SERVICE LTD
Revenue,Adult Services,5105650960,18.09.2015,Elderly Frail Homecare,Charges from Independent Providers,305.60,ACORN CARE SERVICE LTD
Revenue,Adult Services,5105650947,18.09.2015,Elderly Frail Homecare,Charges from Independent Providers,672.32,ACORN CARE SERVICE LTD
Revenue,Adult Services,5105650961,18.09.2015,Elderly Frail Homecare,Charges from Independent Providers,634.12,ACORN CARE SERVICE LTD
Revenue,Adult Services,5105650959,18.09.2015,Elderly Frail Homecare,Charges from Independent Providers,206.28,ACORN CARE SERVICE LTD
Revenue,Adult Services,5105650958,18.09.2015,Elderly Frail Homecare,Charges from Independent Providers,122.24,ACORN CARE SERVICE LTD
Revenue,Adult Services,5105650964,18.09.2015,Elderly Frail Homecare,Charges from Independent Providers,"1,115.44",ACORN CARE SERVICE LTD
Revenue,Adult Services,5105650976,18.09.2015,Elderly Frail Homecare,Charges from Independent Providers,336.16,ACORN CARE SERVICE LTD
Revenue,Adult Services,5105650974,18.09.2015,Elderly Frail Homecare,Charges from Independent Providers,"1,069.60",ACORN CARE SERVICE LTD
Revenue,Adult Services,5105650971,18.09.2015,Elderly Frail Homecare,Charges from Independent Providers,809.84,ACORN CARE SERVICE LTD
Revenue,Adult Services,5105650972,18.09.2015,Elderly Frail Homecare,Charges from Independent Providers,527.16,ACORN CARE SERVICE LTD
Revenue,Adult Services,5105650977,18.09.2015,Elderly Frail Homecare,Charges from Independent Providers,198.64,ACORN CARE SERVICE LTD
Revenue,Adult Services,5105650970,18.09.2015,Elderly Frail Homecare,Charges from Independent Providers,420.20,ACORN CARE SERVICE LTD
Revenue,Adult Services,5105650973,18.09.2015,Elderly Frail Homecare,Charges from Independent Providers,641.76,ACORN CARE SERVICE LTD
Revenue,Adult Services,5105650968,18.09.2015,Elderly Frail Homecare,Charges from Independent Providers,523.34,ACORN CARE SERVICE LTD
Revenue,Adult Services,5105650975,18.09.2015,Elderly Frail Homecare,Charges from Independent Providers,618.84,ACORN CARE SERVICE LTD
Revenue,Adult Services,5105650967,18.09.2015,Elderly Frail Homecare,Charges from Independent Providers,626.48,ACORN CARE SERVICE LTD
Revenue,Adult Services,5105650962,18.09.2015,Elderly Frail Homecare,Charges from Independent Providers,"2,563.22",ACORN CARE SERVICE LTD
Revenue,Adult Services,5105650969,18.09.2015,Elderly Mentally Ill Homecare,Charges from Independent Providers,420.20,ACORN CARE SERVICE LTD
Revenue,Resources,5105651553,23.09.2015,Litigation Costs,Legal Fees - Other Parties,"3,480.00","COLLEGE CHAMBERS, BARRISTERS"
Revenue,Place,5105652011,25.09.2015,Fire Technical Support,Vehicle Maintenance Costs,530.40,ADAMS MOREY LTD
Revenue,Place,5105652003,25.09.2015,Fire Technical Support,Vehicle Maintenance Costs,40.00,ADAMS MOREY LTD
Revenue,Place,5105652004,25.09.2015,Fire Technical Support,Vehicle Maintenance Costs,40.00,ADAMS MOREY LTD
Revenue,Place,5105648292,04.09.2015,Fire Technical Support,Vehicle Maintenance Costs,14.50,ADAMS MOREY LTD
Revenue,Place,5105649249,09.09.2015,Fire Technical Support,Vehicle Maintenance Costs,14.50,ADAMS MOREY LTD
Revenue,Place,5105649744,11.09.2015,Fire Technical Support,Vehicle Maintenance Costs,14.50,ADAMS MOREY LTD
Revenue,Place,5105650533,16.09.2015,Fire Technical Support,Vehicle Maintenance Costs,94.34,ADAMS MOREY LTD
Revenue,Childrens Services,5105651325,23.09.2015,Island Learning Centre,Agency staff,490.00,A-DAY CONSULTANTS LTD
Revenue,Adult Services,5105648460,09.09.2015,Elderly Frail Residential Care,Charges from Independent Providers,"1,812.44",ADIEMUS CARE LTD
Revenue,Childrens Services,5105649234,11.09.2015,Adoption Reform Grant,Charges from Independent Providers,"1,134.20",ADOPTION MATTERS NORTHWEST
Revenue,Place,5105649669,11.09.2015,17 Fairlee Road,Security of Buildings,371.83,ADT FIRE AND SECURITY PLC
Revenue,Childrens Services,5105649668,11.09.2015,Youth- West Wight,Security of Buildings,131.51,ADT FIRE AND SECURITY PLC
Revenue,Adult Services,5105648069,04.09.2015,Learning Disability Homes Management & Admin,Publications,54.46,AGORA BUSINESS PUBLICATIONS LLP
Revenue,Place,5105648318,09.09.2015,Medina Leisure Centre,Prop Svs only - Day to day mtce,"1,960.00",AIRTEK SERVICES
Revenue,Place,5105648434,09.09.2015,Medina Leisure Centre,Payment to Private Contractors,85.00,AIRTEK SERVICES
Revenue,Adult Services,5105648317,04.09.2015,Gouldings Resource Centre,Maintenance of Operational Equipment,70.00,AIRTEK SERVICES
Revenue,Place,5105650462,16.09.2015,"County Hall,Newport","Refuse Collection, Disposal and Recycling Costs",16.00,ALAN NEWBERY WASTE MANAGEMENT
Revenue,Childrens Services,5105649397,09.09.2015,Court Work & Consultancy Services,Professional Services,900.00,ALERE TOXICOLOGY PLC
Revenue,Childrens Services,5105648342,09.09.2015,Special Educational Needs Reforms Grant,Consultants Fees,"2,296.80",REDACTED PERSONAL DATA
Revenue,Place,5105649347,09.09.2015,Fire Technical Support,Operational Equipment,71.00,ALLBATTERIES UK LTD
Revenue,Place,5105649347,09.09.2015,Fire Technical Support,Stock Purchases,72.00,ALLBATTERIES UK LTD
Revenue,Place,5105649347,09.09.2015,Fire Technical Support,Stock Purchases,34.00,ALLBATTERIES UK LTD
Revenue,Childrens Services,5105647410,04.09.2015,Agency Domiciliary Care,Transport of Clients,720.00,ALPHA (IOW) LTD
Revenue,Childrens Services,5105647410,04.09.2015,Agency Domiciliary Care,Transport of Clients,195.25,ALPHA (IOW) LTD
Revenue,Adult Services,5105648499,09.09.2015,Learning Disability Residential Care,Charges from Independent Providers,"3,836.84",ALPHAGRANGE LTD
Revenue,Adult Services,5105652141,30.09.2015,Local Safeguarding Adults Board,Consultants Fees,307.75,ALR SAFEGUARDING CONSULTANCY LTD
Revenue,Adult Services,5105652141,30.09.2015,Local Safeguarding Adults Board,Consultants Fees,"7,250.00",ALR SAFEGUARDING CONSULTANCY LTD
Revenue,Childrens Services,5105647894,09.09.2015,Home to School Transport,Taxis - Contract Hire,416.00,AMAR CABS OF NEWPORT
Revenue,Adult Services,5105648501,09.09.2015,Elderly Mentally Ill Residential Care,Charges from Independent Providers,"1,781.36",ANCONA CARE HOME
Revenue,Adult Services,5105652134,30.09.2015,Elderly Frail Residential Care,Charges from Independent Providers,"2,611.39",ANCONA CARE HOME
Revenue,Adult Services,5105648501,09.09.2015,Elderly Frail Residential Care,Charges from Independent Providers,"1,700.44",ANCONA CARE HOME
Revenue,Adult Services,5105648501,09.09.2015,Elderly Frail Residential Care,Charges from Independent Providers,"2,093.84",ANCONA CARE HOME
Revenue,Adult Services,5105648501,09.09.2015,Elderly Frail Residential Care,Charges from Independent Providers,"1,700.44",ANCONA CARE HOME
Revenue,Childrens Services,5105648411,09.09.2015,Purchased Residential,Charges from Independent Providers,"12,608.00",ANDERIDA ADOLESCENT CARE LTD
Revenue,Childrens Services,5105648408,09.09.2015,Purchased Residential,Charges from Independent Providers,"12,608.00",ANDERIDA ADOLESCENT CARE LTD
Revenue,Childrens Services,5105648297,18.09.2015,Purchased Residential,Charges from Independent Providers,"12,608.00",ANDERIDA ADOLESCENT CARE LTD
Revenue,Childrens Services,5105649895,16.09.2015,Purchased Residential,Charges from Independent Providers,"12,608.00",ANDERIDA ADOLESCENT CARE LTD
Revenue,Childrens Services,5105648297,18.09.2015,Independent Schools Non-Special Educational Needs,Charges from Independent Providers,"2,745.92",ANDERIDA ADOLESCENT CARE LTD
Revenue,Childrens Services,5105648408,09.09.2015,Independent Schools Non-Special Educational Needs,Charges from Independent Providers,"2,608.62",ANDERIDA ADOLESCENT CARE LTD
Revenue,Childrens Services,5105648411,09.09.2015,Independent Schools Non-Special Educational Needs,Charges from Independent Providers,"2,745.92",ANDERIDA ADOLESCENT CARE LTD
Revenue,Childrens Services,5105649895,16.09.2015,Independent Schools Non-Special Educational Needs,Charges from Independent Providers,490.34,ANDERIDA ADOLESCENT CARE LTD
Revenue,Place,5105649706,11.09.2015,Fire Technical Support,Vehicle Maintenance Costs,288.00,ANGLOCO LTD
Revenue,Place,5105649706,11.09.2015,Fire Technical Support,Vehicle Maintenance Costs,22.50,ANGLOCO LTD
Revenue,Resources,5105651451,23.09.2015,Staff Benefits,Payment to Private Contractors,225.00,REDACTED PERSONAL DATA
Revenue,Adult Services,5105651879,25.09.2015,Commissioning Manager for Adult Social Care,Interim Staff,"9,299.75",ANNE BUTLER CONSULTING LTD
Revenue,Place,5105648073,04.09.2015,Print Unit,Printing Costs,178.20,ANTALIS MCNAUGHTON
Revenue,Place,5105649708,11.09.2015,Print Unit,Printing Costs,69.90,ANTALIS MCNAUGHTON
Revenue,Place,5105649708,11.09.2015,Print Unit,Printing Costs,28.12,ANTALIS MCNAUGHTON
Revenue,Place,5105649708,11.09.2015,Print Unit,Printing Costs,49.32,ANTALIS MCNAUGHTON
Revenue,Place,5105652040,30.09.2015,Print Unit,Printing Costs,46.20,ANTALIS MCNAUGHTON
Revenue,Place,5105652040,30.09.2015,Print Unit,Printing Costs,58.40,ANTALIS MCNAUGHTON
Revenue,Resources,5105651593,23.09.2015,Litigation Costs,Legal Fees - Other Parties,420.00,"COLLEGE CHAMBERS, BARRISTERS"
Revenue,Adult Services,5105650532,16.09.2015,S75 Integrated Community Equipment Store,Operational Equipment,"1,999.50",APOLLO HEALTHCARE TECHNOLOGIES
Revenue,Resources,5105648007,04.09.2015,ICT Contracts,Computer Maintenance,"10,230.00",APPLE DISTRIBUTION INTERNATIONAL
Revenue,Place,5105649459,09.09.2015,Medina Leisure Centre,Clothing & Laundry,102.00,ARCO LTD
Revenue,Adult Services,5105642501,30.09.2015,Community Outreach,Clothing & Laundry,4.40,ARCO LTD
Revenue,Adult Services,5105642501,30.09.2015,Community Outreach,Clothing & Laundry,4.40,ARCO LTD
Revenue,Adult Services,5105649271,09.09.2015,Community Outreach,Clothing & Laundry,-175.35,ARCO LTD
Revenue,Adult Services,5105649270,09.09.2015,Community Outreach,Clothing & Laundry,175.35,ARCO LTD
Revenue,Adult Services,5105648008,02.09.2015,Wightcare,Operational Equipment,3.15,ARCO LTD
Revenue,Adult Services,5105648008,02.09.2015,Wightcare,Operational Equipment,19.01,ARCO LTD
Revenue,Adult Services,5105648008,02.09.2015,Wightcare,Operational Equipment,11.62,ARCO LTD
Revenue,Adult Services,5105648008,02.09.2015,Wightcare,Operational Equipment,8.55,ARCO LTD
Revenue,Adult Services,5105648008,02.09.2015,Wightcare,Operational Equipment,6.94,ARCO LTD
Revenue,Adult Services,5105648008,02.09.2015,Wightcare,Operational Equipment,9.60,ARCO LTD
Revenue,Adult Services,5105648008,02.09.2015,Wightcare,Operational Equipment,4.57,ARCO LTD
Revenue,Place,5105652200,30.09.2015,The Heights,Clothing & Laundry,137.60,ARCO LTD
Revenue,Place,5105651713,25.09.2015,The Heights,Clothing & Laundry,208.50,ARCO LTD
Revenue,Place,5105638681,23.09.2015,The Heights,Clothing & Laundry,55.59,ARCO LTD
Revenue,Adult Services,5105649854,16.09.2015,S75 Integrated Community Equipment Store,Operational Equipment,"1,132.00",ARJO MED AB LTD
Revenue,Adult Services,5105649854,16.09.2015,S75 Integrated Community Equipment Store,Operational Equipment,40.00,ARJO MED AB LTD
Revenue,Adult Services,5105648241,04.09.2015,31 Carter Avenue,Maintenance of Operational Equipment,342.00,ARJO MED AB LTD
Revenue,Place,5105652304,30.09.2015,Planning Business Support,Stationery,38.93,ASAP STAMPS LTD
Revenue,Place,5105652035,30.09.2015,Medina Theatre,Prop Svs only - Day to day mtce,145.00,ASSA ABLOY ENTRANCE SYSTEMS LTD
Revenue,Place,5105650923,16.09.2015,"County Hall,Newport",Prop Svs only - Day to day mtce,55.10,ASSA ABLOY ENTRANCE SYSTEMS LTD
Revenue,Childrens Services,5105648393,04.09.2015,Adult Community Learning,Licences,470.00,ASSOCIATION OF ADULT EDUCATION
Revenue,Managing Director,5105648437,09.09.2015,Media,Professional Subscriptions,250.00,ASSOCIATION OF LOCAL GOVERNMENT COMMUNICATIONS
Revenue,Place,5105650894,16.09.2015,IW Biological Record Centre,Professional Subscriptions,300.00,ASSOCIATION OF LOCAL ENVIRONMENTAL RECORDS CENTRES CIC
Revenue,Resources,5105650879,18.09.2015,Organisational Development � Leadership,Professional Services,"3,000.00",ASTRID DAVIES CONSULTING LTD
Revenue,Place,5105649380,09.09.2015,Fire Technical Support,Vehicle Maintenance Costs,352.61,ATS EUROMASTER LTD
Revenue,Place,5105649380,09.09.2015,Fire Technical Support,Vehicle Maintenance Costs,117.54,ATS EUROMASTER LTD
Revenue,Place,5105649380,09.09.2015,Fire Technical Support,Vehicle Maintenance Costs,117.54,ATS EUROMASTER LTD
Revenue,Place,5105649380,09.09.2015,Fire Technical Support,Vehicle Maintenance Costs,61.83,ATS EUROMASTER LTD
Revenue,Childrens Services,5105650467,16.09.2015,Pre 16 Independ. & Non-Maint. Special Schls & Independ. Specialist Provision,Charges from Independent Providers,"16,228.34",AUTISM WESSEX
Revenue,Childrens Services,5105649939,16.09.2015,Pre 16 Independ. & Non-Maint. Special Schls & Independ. Specialist Provision,Charges from Independent Providers,"10,913.41",AUTISM WESSEX
Revenue,Childrens Services,5105651990,25.09.2015,Pre 16 Independ. & Non-Maint. Special Schls & Independ. Specialist Provision,Charges from Independent Providers,"10,696.25",AUTISM WESSEX
Revenue,Childrens Services,5105649939,16.09.2015,NHS Funded Placements,Charges from Independent Providers,"2,389.60",AUTISM WESSEX
Revenue,Childrens Services,5105650467,16.09.2015,NHS Funded Placements,Charges from Independent Providers,"3,206.07",AUTISM WESSEX
Revenue,Childrens Services,5105651990,25.09.2015,NHS Funded Placements,Charges from Independent Providers,"2,342.05",AUTISM WESSEX
Revenue,Childrens Services,5105650467,16.09.2015,Purchased Residential,Charges from Independent Providers,"28,849.84",AUTISM WESSEX
Revenue,Childrens Services,5105649939,16.09.2015,Purchased Residential,Charges from Independent Providers,"21,530.74",AUTISM WESSEX
Revenue,Childrens Services,5105651990,25.09.2015,Purchased Residential,Charges from Independent Providers,"21,102.30",AUTISM WESSEX
Revenue,Adult Services,5105648474,09.09.2015,Elderly Mentally Ill Residential Care,Crisis Support for Carers,"2,093.84",AUTUMN HOUSE CARE LTD
Revenue,Adult Services,5105650841,16.09.2015,Elderly Mentally Ill Residential Care,Charges from Independent Providers,224.34,AUTUMN HOUSE CARE LTD
Revenue,Adult Services,5105650841,16.09.2015,Elderly Mentally Ill Residential Care,Charges from Independent Providers,"2,093.84",AUTUMN HOUSE CARE LTD
Revenue,Adult Services,5105649833,16.09.2015,Elderly Mentally Ill Residential Care,Charges from Independent Providers,149.56,AUTUMN HOUSE CARE LTD
Revenue,Adult Services,5105648474,09.09.2015,Elderly Mentally Ill Residential Care,Charges from Independent Providers,"2,093.84",AUTUMN HOUSE CARE LTD
Revenue,Adult Services,5105648474,09.09.2015,Elderly Mentally Ill Residential Care,Charges from Independent Providers,"2,093.84",AUTUMN HOUSE CARE LTD
Revenue,Adult Services,5105648474,09.09.2015,Elderly Mentally Ill Residential Care,Charges from Independent Providers,"2,093.84",AUTUMN HOUSE CARE LTD
Revenue,Adult Services,5105648474,09.09.2015,Elderly Mentally Ill Residential Care,Charges from Independent Providers,"2,093.84",AUTUMN HOUSE CARE LTD
Revenue,Adult Services,5105648474,09.09.2015,Elderly Mentally Ill Residential Care,Charges from Independent Providers,"2,093.84",AUTUMN HOUSE CARE LTD
Revenue,Adult Services,5105648474,09.09.2015,Elderly Mentally Ill Residential Care,Charges from Independent Providers,"2,093.84",AUTUMN HOUSE CARE LTD
Revenue,Adult Services,5105648474,09.09.2015,Elderly Mentally Ill Residential Care,Charges from Independent Providers,"2,093.84",AUTUMN HOUSE CARE LTD
Revenue,Adult Services,5105648474,09.09.2015,Elderly Mentally Ill Residential Care,Charges from Independent Providers,"1,781.36",AUTUMN HOUSE CARE LTD
Revenue,Adult Services,5105648474,09.09.2015,Elderly Mentally Ill Residential Care,Charges from Independent Providers,"2,093.84",AUTUMN HOUSE CARE LTD
Revenue,Adult Services,5105648474,09.09.2015,Elderly Mentally Ill Residential Care,Charges from Independent Providers,"2,093.84",AUTUMN HOUSE CARE LTD
Revenue,Adult Services,5105648474,09.09.2015,Elderly Mentally Ill Residential Care,Charges from Independent Providers,"2,093.84",AUTUMN HOUSE CARE LTD
Revenue,Adult Services,5105648474,09.09.2015,Elderly Mentally Ill Residential Care,Charges from Independent Providers,"2,093.84",AUTUMN HOUSE CARE LTD
Revenue,Adult Services,5105648474,09.09.2015,Elderly Mentally Ill Residential Care,Charges from Independent Providers,"1,781.36",AUTUMN HOUSE CARE LTD
Revenue,Adult Services,5105648474,09.09.2015,Elderly Mentally Ill Residential Care,Charges from Independent Providers,"2,093.84",AUTUMN HOUSE CARE LTD
Revenue,Adult Services,5105648474,09.09.2015,Elderly Mentally Ill Residential Care,Charges from Independent Providers,"1,781.36",AUTUMN HOUSE CARE LTD
Revenue,Adult Services,5105648474,09.09.2015,Elderly Mentally Ill Residential Care,Charges from Independent Providers,"2,093.84",AUTUMN HOUSE CARE LTD
Revenue,Adult Services,5105648474,09.09.2015,Elderly Mentally Ill Residential Care,Charges from Independent Providers,"1,781.36",AUTUMN HOUSE CARE LTD
Revenue,Adult Services,5105648474,09.09.2015,Elderly Mentally Ill Residential Care,Charges from Independent Providers,"1,781.36",AUTUMN HOUSE CARE LTD
Revenue,Adult Services,5105648474,09.09.2015,Elderly Mentally Ill Residential Care,Charges from Independent Providers,"1,781.36",AUTUMN HOUSE CARE LTD
Revenue,Adult Services,5105648474,09.09.2015,Elderly Mentally Ill Residential Care,Charges from Independent Providers,"2,093.84",AUTUMN HOUSE CARE LTD
Revenue,Adult Services,5105648474,09.09.2015,Elderly Mentally Ill Residential Care,Charges from Independent Providers,"2,093.84",AUTUMN HOUSE CARE LTD
Revenue,Adult Services,5105648474,09.09.2015,Elderly Mentally Ill Residential Care,Charges from Independent Providers,"2,093.84",AUTUMN HOUSE CARE LTD
Revenue,Adult Services,5105648474,09.09.2015,Elderly Frail Residential Care,Charges from Independent Providers,"2,093.84",AUTUMN HOUSE CARE LTD
Revenue,Adult Services,5105649501,11.09.2015,Elderly Frail Residential Care,Charges from Independent Providers,"1,336.06",AUTUMN HOUSE CARE LTD
Revenue,Adult Services,5105648474,09.09.2015,Elderly Frail Residential Care,Charges from Independent Providers,"2,093.84",AUTUMN HOUSE CARE LTD
Revenue,Place,5105647898,02.09.2015,Dinosaur Isle Museum (Sandown Geology),Stock Purchases,39.48,AUTUMN PUBLISHING LTD
Revenue,Place,5105651570,25.09.2015,Duke of Edingburgh Award,General Materials,765.00,AWARD SCHEME LTD
Revenue,Place,5105651570,25.09.2015,Duke of Edingburgh Award,General Materials,12.50,AWARD SCHEME LTD
Revenue,Childrens Services,5105648108,04.09.2015,Leaving Care Costs,Support Children,50.00,REDACTED PERSONAL DATA
Revenue,Childrens Services,5105649524,11.09.2015,Leaving Care Costs,Support Children,50.00,REDACTED PERSONAL DATA
Revenue,Childrens Services,5105649832,16.09.2015,Leaving Care Costs,Accommodation Costs - Service Users,500.00,REDACTED PERSONAL DATA
Revenue,Childrens Services,5105651037,18.09.2015,Leaving Care Costs,Support Children,50.00,REDACTED PERSONAL DATA
Revenue,Childrens Services,5105651744,25.09.2015,Leaving Care Costs,Support Children,50.00,REDACTED PERSONAL DATA
Revenue,Childrens Services,5105651744,25.09.2015,In-house Fostering,Boarding Out Allowances,162.73,REDACTED PERSONAL DATA
Revenue,Childrens Services,5105651744,25.09.2015,In-house Fostering,Boarding Out Allowances,10.00,REDACTED PERSONAL DATA
Revenue,Childrens Services,5105651744,25.09.2015,In-house Fostering,Boarding Out Allowances,150.00,REDACTED PERSONAL DATA
Revenue,Childrens Services,5105648108,04.09.2015,In-house Fostering,Boarding Out Allowances,162.73,REDACTED PERSONAL DATA
Revenue,Childrens Services,5105648108,04.09.2015,In-house Fostering,Boarding Out Allowances,10.00,REDACTED PERSONAL DATA
Revenue,Childrens Services,5105651037,18.09.2015,In-house Fostering,Boarding Out Allowances,162.73,REDACTED PERSONAL DATA
Revenue,Childrens Services,5105651037,18.09.2015,In-house Fostering,Boarding Out Allowances,10.00,REDACTED PERSONAL DATA
Revenue,Childrens Services,5105651037,18.09.2015,In-house Fostering,Boarding Out Allowances,150.00,REDACTED PERSONAL DATA
Revenue,Childrens Services,5105649524,11.09.2015,In-house Fostering,Boarding Out Allowances,162.73,REDACTED PERSONAL DATA
Revenue,Childrens Services,5105649524,11.09.2015,In-house Fostering,Boarding Out Allowances,10.00,REDACTED PERSONAL DATA
Revenue,Adult Services,5105648487,09.09.2015,Learning Disability Residential Care,Charges from Independent Providers,"1,894.76",REDACTED PERSONAL DATA
Revenue,Adult Services,5105648487,09.09.2015,Learning Disability Residential Care,Charges from Independent Providers,"2,745.40",REDACTED PERSONAL DATA
Revenue,Adult Services,5105648487,09.09.2015,Learning Disability Residential Care,Charges from Independent Providers,"1,894.76",REDACTED PERSONAL DATA
Revenue,Place,5105651376,23.09.2015,Leaseholds by LA,Accommodation Costs - Leaseholder Payments,815.49,REDACTED PERSONAL DATA
Revenue,Resources,5105651438,23.09.2015,Staff Benefits,Payment to Private Contractors,100.00,REDACTED PERSONAL DATA
Revenue,Resources,5105651438,23.09.2015,Staff Benefits,Payment to Private Contractors,100.00,REDACTED PERSONAL DATA
Revenue,Resources,5105651438,23.09.2015,Staff Benefits,Payment to Private Contractors,243.00,REDACTED PERSONAL DATA
Revenue,Place,5105651382,23.09.2015,Leaseholds by LA,Accommodation Costs - Leaseholder Payments,799.50,REDACTED PERSONAL DATA
Revenue,Place,5105651382,23.09.2015,Leaseholds by LA,Accommodation Costs - Leaseholder Payments,888.33,REDACTED PERSONAL DATA
Revenue,Place,5105651382,23.09.2015,Leaseholds by LA,Accommodation Costs - Leaseholder Payments,799.50,REDACTED PERSONAL DATA
Revenue,Place,5105651382,23.09.2015,Leaseholds by LA,Accommodation Costs - Leaseholder Payments,866.67,REDACTED PERSONAL DATA
Revenue,Place,5105651382,23.09.2015,Leaseholds by LA,Accommodation Costs - Leaseholder Payments,866.67,REDACTED PERSONAL DATA
Revenue,Place,5105651513,23.09.2015,"Bugle House,Newport",Rent of Buildings and Rooms,"7,910.35",BAE SYSTEMS PENSION FUNDS TRUST LTD
Revenue,Childrens Services,5105648333,09.09.2015,Island Learning Centre,Payment to Private Contractors,"184,831.83",BALFOUR BEATTY
Revenue,Place,5105649899,16.09.2015,Business Support  - Fire,Prop Svs only - Day to day mtce,188.36,BALFOUR BEATTY
Revenue,Place,5105649223,09.09.2015,Public Conveniences - General,Prop Svs only - Day to day mtce,141.07,BALFOUR BEATTY
Revenue,Place,5105649890,16.09.2015,Public Conveniences - General,Prop Svs only - Day to day mtce,189.09,BALFOUR BEATTY
Revenue,Place,5105649425,09.09.2015,Public Conveniences - General,Prop Svs only - Day to day mtce,127.75,BALFOUR BEATTY
Revenue,Place,5105649750,11.09.2015,Public Conveniences - General,Prop Svs only - Day to day mtce,52.13,BALFOUR BEATTY
Revenue,Place,5105649428,09.09.2015,Public Conveniences - General,Prop Svs only - Day to day mtce,276.48,BALFOUR BEATTY
Revenue,Place,5105647933,02.09.2015,Public Conveniences - General,Prop Svs only - Day to day mtce,46.80,BALFOUR BEATTY
Revenue,Place,5105649747,11.09.2015,Public Conveniences - General,Prop Svs only - Day to day mtce,67.50,BALFOUR BEATTY
Revenue,Place,5105650913,16.09.2015,Public Conveniences - General,Prop Svs only - Day to day mtce,127.58,BALFOUR BEATTY
Revenue,Place,5105649462,09.09.2015,Public Conveniences - General,Prop Svs only - Day to day mtce,88.03,BALFOUR BEATTY
Revenue,Place,5105649268,09.09.2015,Public Conveniences - General,Prop Svs only - Day to day mtce,106.64,BALFOUR BEATTY
Revenue,Place,5105651322,23.09.2015,Public Conveniences - General,Prop Svs only - Day to day mtce,50.15,BALFOUR BEATTY
Revenue,Place,5105649904,16.09.2015,Public Conveniences - General,Prop Svs only - Day to day mtce,64.20,BALFOUR BEATTY
Revenue,Place,5105649902,16.09.2015,Public Conveniences - General,Prop Svs only - Day to day mtce,36.00,BALFOUR BEATTY
Revenue,Place,5105649906,16.09.2015,Public Conveniences - General,Prop Svs only - Day to day mtce,62.10,BALFOUR BEATTY
Revenue,Place,5105651171,18.09.2015,Public Conveniences - General,Prop Svs only - Day to day mtce,191.01,BALFOUR BEATTY
Revenue,Place,5105649745,11.09.2015,Public Conveniences - General,Prop Svs only - Day to day mtce,89.25,BALFOUR BEATTY
Revenue,Place,5105649749,11.09.2015,Public Conveniences - General,Prop Svs only - Day to day mtce,120.20,BALFOUR BEATTY
Revenue,Place,5105649754,11.09.2015,Public Conveniences - General,Prop Svs only - Day to day mtce,52.53,BALFOUR BEATTY
Revenue,Place,5105649707,11.09.2015,Public Conveniences - General,Prop Svs only - Day to day mtce,236.34,BALFOUR BEATTY
Revenue,Place,5105649888,16.09.2015,Public Conveniences - General,Prop Svs only - Day to day mtce,214.22,BALFOUR BEATTY
Revenue,Place,5105651888,30.09.2015,Public Conveniences - General,Prop Svs only - Day to day mtce,67.50,BALFOUR BEATTY
Revenue,Place,5105652178,30.09.2015,Public Conveniences - General,Prop Svs only - Day to day mtce,-67.50,BALFOUR BEATTY
Revenue,Place,5105652178,30.09.2015,Public Conveniences - General,Prop Svs only - Day to day mtce,-67.50,BALFOUR BEATTY
Revenue,Place,5105651888,30.09.2015,Public Conveniences - General,Prop Svs only - Day to day mtce,67.50,BALFOUR BEATTY
Revenue,Place,5105647934,02.09.2015,Public Conveniences - General,Minor Works,"2,655.97",BALFOUR BEATTY
Revenue,Place,5105651541,25.09.2015,Public Conveniences - General,Property Services - Planned Maintenance,48.54,BALFOUR BEATTY
Revenue,Place,5105651503,23.09.2015,Public Conveniences - General,Prop Svs only - Day to day mtce,89.80,BALFOUR BEATTY
Revenue,Place,5105651330,23.09.2015,Public Conveniences - General,Prop Svs only - Day to day mtce,109.95,BALFOUR BEATTY
Revenue,Place,5105651326,25.09.2015,Public Conveniences - General,Minor Works,84.65,BALFOUR BEATTY
Revenue,Place,5105651614,25.09.2015,Public Conveniences - General,Minor Works,36.85,BALFOUR BEATTY
Revenue,Place,5105651644,30.09.2015,Public Conveniences - General,Minor Works,62.10,BALFOUR BEATTY
Revenue,Place,5105651638,30.09.2015,Public Conveniences - General,Minor Works,63.30,BALFOUR BEATTY
Revenue,Place,5105651334,25.09.2015,Public Conveniences - General,Minor Works,35.27,BALFOUR BEATTY
Revenue,Place,5105651313,18.09.2015,Public Conveniences - General,Minor Works,126.13,BALFOUR BEATTY
Revenue,Place,5105651476,23.09.2015,Public Conveniences - General,Minor Works,123.55,BALFOUR BEATTY
Revenue,Place,5105651509,23.09.2015,Business Support  - Fire,Prop Svs only - Day to day mtce,139.90,BALFOUR BEATTY
Revenue,Place,5105651312,18.09.2015,Business Support  - Fire,Property Services - Planned Maintenance,674.96,BALFOUR BEATTY
Revenue,Place,5105649743,11.09.2015,Business Support  - Fire,Prop Svs only - Day to day mtce,128.60,BALFOUR BEATTY
Revenue,Place,5105651888,30.09.2015,Business Support  - Fire,Prop Svs only - Day to day mtce,48.50,BALFOUR BEATTY
Revenue,Place,5105652178,30.09.2015,Business Support  - Fire,Prop Svs only - Day to day mtce,-48.50,BALFOUR BEATTY
Revenue,Place,5105652178,30.09.2015,Business Support  - Fire,Prop Svs only - Day to day mtce,-114.04,BALFOUR BEATTY
Revenue,Place,5105651888,30.09.2015,Business Support  - Fire,Prop Svs only - Day to day mtce,114.04,BALFOUR BEATTY
Revenue,Childrens Services,5105652234,30.09.2015,Children's Services Strategic Management,Minor Works,47.95,BALFOUR BEATTY
Revenue,Childrens Services,5105649709,11.09.2015,Children's Services Strategic Management,Minor Works,152.25,BALFOUR BEATTY
Revenue,Place,5105651324,23.09.2015,Medina Leisure Centre,Prop Svs only - Day to day mtce,133.28,BALFOUR BEATTY
Revenue,Place,5105649900,16.09.2015,Cowes Library,Property Services - Planned Maintenance,162.04,BALFOUR BEATTY
Revenue,Place,5105651184,18.09.2015,Ryde Library,Prop Svs only - Day to day mtce,135.54,BALFOUR BEATTY
Revenue,Childrens Services,5105648407,04.09.2015,Learning & Development Running Costs,Minor Works,53.70,BALFOUR BEATTY
Revenue,Childrens Services,5105649907,16.09.2015,Learning & Development Running Costs,Minor Works,146.70,BALFOUR BEATTY
Revenue,Adult Services,5105649733,11.09.2015,Westminster House,Prop Svs only - Day to day mtce,77.05,BALFOUR BEATTY
Revenue,Adult Services,5105649760,11.09.2015,Westminster House,Prop Svs only - Day to day mtce,104.43,BALFOUR BEATTY
Revenue,Adult Services,5105649457,09.09.2015,Westminster House,Prop Svs only - Day to day mtce,162.16,BALFOUR BEATTY
Revenue,Adult Services,5105649319,09.09.2015,Westminster House,Property Services - Planned Maintenance,619.33,BALFOUR BEATTY
Revenue,Adult Services,5105652315,30.09.2015,Saxonbury,Minor Works,48.50,BALFOUR BEATTY
Revenue,Adult Services,5105649908,16.09.2015,Saxonbury,Minor Works,96.45,BALFOUR BEATTY
Revenue,Adult Services,5105649901,16.09.2015,Saxonbury,Minor Works,72.32,BALFOUR BEATTY
Revenue,Adult Services,5105651190,18.09.2015,Saxonbury,Minor Works,"1,569.08",BALFOUR BEATTY
Revenue,Adult Services,5105651555,23.09.2015,Saxonbury,Minor Works,30.60,BALFOUR BEATTY
Revenue,Adult Services,5105651183,18.09.2015,Saxonbury,Minor Works,112.20,BALFOUR BEATTY
Revenue,Adult Services,5105649243,09.09.2015,Gouldings Resource Centre,Prop Svs only - Day to day mtce,119.88,BALFOUR BEATTY
Revenue,Adult Services,5105649737,11.09.2015,Gouldings Resource Centre,Prop Svs only - Day to day mtce,76.16,BALFOUR BEATTY
Revenue,Adult Services,5105651187,18.09.2015,Gouldings Resource Centre,Prop Svs only - Day to day mtce,132.68,BALFOUR BEATTY
Revenue,Adult Services,5105651888,30.09.2015,Gouldings Resource Centre,Prop Svs only - Day to day mtce,107.25,BALFOUR BEATTY
Revenue,Adult Services,5105652178,30.09.2015,Gouldings Resource Centre,Prop Svs only - Day to day mtce,-107.25,BALFOUR BEATTY
Revenue,Place,5105648419,04.09.2015,"Enterprise House, Newport",Prop Svs only - Day to day mtce,23.25,BALFOUR BEATTY
Revenue,Place,5105651305,18.09.2015,Freshwater West Wight Library,Prop Svs only - Day to day mtce,133.31,BALFOUR BEATTY
Revenue,Place,5105652155,30.09.2015,Newport Library,Prop Svs only - Day to day mtce,76.94,BALFOUR BEATTY
Revenue,Place,5105651331,23.09.2015,Newport Library,Property Services - Planned Maintenance,420.35,BALFOUR BEATTY
Revenue,Place,5105649411,09.09.2015,Ventnor Library,Prop Svs only - Day to day mtce,54.45,BALFOUR BEATTY
Revenue,Childrens Services,5105649752,11.09.2015,Family Information Zone,Prop Svs only - Day to day mtce,83.59,BALFOUR BEATTY
Revenue,Childrens Services,5105649703,11.09.2015,Beaulieu House,Minor Works,321.56,BALFOUR BEATTY
Revenue,Adult Services,5105649753,11.09.2015,31 Carter Avenue,Minor Works,49.81,BALFOUR BEATTY
Revenue,Adult Services,5105647929,02.09.2015,Highmead,Minor Works,86.10,BALFOUR BEATTY
Revenue,Adult Services,5105649756,11.09.2015,Highmead,Minor Works,56.58,BALFOUR BEATTY
Revenue,Adult Services,5105649711,11.09.2015,Highmead,Minor Works,104.93,BALFOUR BEATTY
Revenue,Adult Services,5105649891,16.09.2015,Highmead,Minor Works,178.61,BALFOUR BEATTY
Revenue,Place,5105649415,09.09.2015,17 Fairlee Road,Minor Works,64.35,BALFOUR BEATTY
Revenue,Place,5105651314,18.09.2015,"Guildhall,Newport",Prop Svs only - Day to day mtce,25.20,BALFOUR BEATTY
Revenue,Place,5105651306,18.09.2015,"Seaclose Offices, Newport",Prop Svs only - Day to day mtce,181.02,BALFOUR BEATTY
Revenue,Place,5105652178,30.09.2015,Properties  - Other Properties,Prop Svs only - Day to day mtce,-170.23,BALFOUR BEATTY
Revenue,Place,5105651888,30.09.2015,Properties  - Other Properties,Prop Svs only - Day to day mtce,170.23,BALFOUR BEATTY
Revenue,Place,5105649456,09.09.2015,"Westridge, Ryde",Prop Svs only - Day to day mtce,54.95,BALFOUR BEATTY
Revenue,Place,5105650485,16.09.2015,"Westridge, Ryde",Prop Svs only - Day to day mtce,237.73,BALFOUR BEATTY
Revenue,Place,5105650484,16.09.2015,"Westridge, Ryde",Prop Svs only - Day to day mtce,-237.73,BALFOUR BEATTY
Revenue,Place,5105650482,16.09.2015,"Westridge, Ryde",Prop Svs only - Day to day mtce,237.73,BALFOUR BEATTY
Revenue,Place,5105651188,18.09.2015,"Westridge, Ryde",Property Services - Planned Maintenance,872.88,BALFOUR BEATTY
Revenue,Place,5105651492,30.09.2015,"24 Daish Way, Newport (WISE)",Prop Svs only - Day to day mtce,107.35,BALFOUR BEATTY
Revenue,Place,5105651622,30.09.2015,"24 Daish Way, Newport (WISE)",Minor Works,121.50,BALFOUR BEATTY
Revenue,Place,5105649705,11.09.2015,Fort Victoria,Prop Svs only - Day to day mtce,205.78,BALFOUR BEATTY
Revenue,Place,5105652319,30.09.2015,Newport Harbour Account,Prop Svs only - Day to day mtce,64.80,BALFOUR BEATTY
Revenue,Childrens Services,5105651646,30.09.2015,Branstone Farm Studies Centre,Minor Works,103.52,BALFOUR BEATTY
Revenue,Place,5105649710,11.09.2015,Westridge Squash Courts,Prop Svs only - Day to day mtce,296.56,BALFOUR BEATTY
Revenue,Place,5105651189,18.09.2015,Westridge Squash Courts,Prop Svs only - Day to day mtce,142.65,BALFOUR BEATTY
Revenue,Place,5105651216,18.09.2015,Westridge Squash Courts,Payment to Private Contractors,"1,762.00",BALFOUR BEATTY
Revenue,Childrens Services,5105651906,25.09.2015,Island Learning Centre,Minor Works,237.45,BALFOUR BEATTY
Revenue,Place,5105651316,18.09.2015,"St Thomas Church, Ryde",Property Services - Planned Maintenance,198.04,BALFOUR BEATTY
Revenue,Place,5105651315,18.09.2015,"Bugle House,Newport",Prop Svs only - Day to day mtce,379.16,BALFOUR BEATTY
Revenue,Place,5105651888,30.09.2015,"Jubilee Stores, Newport",Prop Svs only - Day to day mtce,36.00,BALFOUR BEATTY
Revenue,Place,5105652178,30.09.2015,"Jubilee Stores, Newport",Prop Svs only - Day to day mtce,-36.00,BALFOUR BEATTY
Revenue,Place,5105649431,09.09.2015,"County Hall,Newport",Prop Svs only - Day to day mtce,378.06,BALFOUR BEATTY
Revenue,Place,5105649937,16.09.2015,"County Hall,Newport",Prop Svs only - Day to day mtce,50.08,BALFOUR BEATTY
Revenue,Place,5105651342,23.09.2015,"County Hall,Newport",Prop Svs only - Day to day mtce,"2,360.62",BALFOUR BEATTY
Revenue,Place,5105649735,11.09.2015,"County Hall,Newport",Prop Svs only - Day to day mtce,133.70,BALFOUR BEATTY
Revenue,Place,5105651888,30.09.2015,"County Hall,Newport",Prop Svs only - Day to day mtce,182.85,BALFOUR BEATTY
Revenue,Place,5105652178,30.09.2015,"County Hall,Newport",Prop Svs only - Day to day mtce,-182.85,BALFOUR BEATTY
Revenue,Place,5105651505,23.09.2015,"County Hall,Newport",Property Services - Planned Maintenance,168.72,BALFOUR BEATTY
Revenue,Place,5105651512,23.09.2015,"County Hall,Newport",Prop Svs only - Day to day mtce,39.85,BALFOUR BEATTY
Revenue,Place,5105650509,16.09.2015,Crematorium,Prop Svs only - Day to day mtce,193.00,BALFOUR BEATTY
Revenue,Childrens Services,5105649751,11.09.2015,Youth- Newport,Prop Svs only - Day to day mtce,81.39,BALFOUR BEATTY
Revenue,Childrens Services,5105649905,16.09.2015,Childrens Centres Maintenance,Minor Works,52.40,BALFOUR BEATTY
Revenue,Childrens Services,5105647931,02.09.2015,Childrens Centres Maintenance,Minor Works,97.08,BALFOUR BEATTY
Revenue,Place,5105651475,25.09.2015,Open space lettings,Prop Svs only - Day to day mtce,125.55,BALFOUR BEATTY
Revenue,Place,5105652178,30.09.2015,Open space lettings,Prop Svs only - Day to day mtce,-157.50,BALFOUR BEATTY
Revenue,Place,5105651888,30.09.2015,Open space lettings,Prop Svs only - Day to day mtce,157.50,BALFOUR BEATTY
Revenue,Place,5105649682,11.09.2015,Open space lettings,Prop Svs only - Day to day mtce,251.15,BALFOUR BEATTY
Revenue,Place,5105651186,18.09.2015,Cemeteries-Shanklin,Minor Works,320.30,BALFOUR BEATTY
Revenue,Place,5105652178,30.09.2015,Cemeteries-Northwood,Prop Svs only - Day to day mtce,-187.12,BALFOUR BEATTY
Revenue,Place,5105651888,30.09.2015,Cemeteries-Northwood,Prop Svs only - Day to day mtce,187.12,BALFOUR BEATTY
Revenue,Place,5105650523,16.09.2015,Crematorium,Prop Svs only - Day to day mtce,25.20,BALFOUR BEATTY
Revenue,Childrens Services,5105651223,18.09.2015,Youth Offending Team,Prop Svs only - Day to day mtce,49.63,BALFOUR BEATTY
Revenue,Place,5105649667,11.09.2015,The Heights,Prop Svs only - Day to day mtce,53.15,BALFOUR BEATTY
Revenue,Adult Services,5105651307,23.09.2015,Overbrook,Minor Works,57.13,BALFOUR BEATTY
Revenue,Adult Services,5105649712,11.09.2015,Overbrook,Minor Works,223.45,BALFOUR BEATTY
Revenue,Adult Services,5105651317,18.09.2015,Overbrook,Minor Works,67.67,BALFOUR BEATTY
Revenue,Adult Services,5105650887,16.09.2015,The Laurels,Minor Works,205.59,BALFOUR BEATTY
Revenue,Adult Services,5105649903,16.09.2015,The Laurels,Minor Works,109.07,BALFOUR BEATTY
Revenue,Adult Services,5105651170,18.09.2015,The Laurels,Minor Works,104.18,BALFOUR BEATTY
Revenue,Adult Services,5105652202,30.09.2015,The Laurels,Minor Works,108.95,BALFOUR BEATTY
Revenue,Adult Services,5105648415,04.09.2015,Adelaide Resource Centre,Prop Svs only - Day to day mtce,54.75,BALFOUR BEATTY
Revenue,Adult Services,5105651888,30.09.2015,Adelaide Resource Centre,Prop Svs only - Day to day mtce,69.25,BALFOUR BEATTY
Revenue,Adult Services,5105652178,30.09.2015,Adelaide Resource Centre,Prop Svs only - Day to day mtce,-69.25,BALFOUR BEATTY
Revenue,Adult Services,5105649748,11.09.2015,Adelaide Resource Centre,Prop Svs only - Day to day mtce,43.95,BALFOUR BEATTY
Revenue,Adult Services,5105649757,11.09.2015,Adelaide Resource Centre,Prop Svs only - Day to day mtce,24.27,BALFOUR BEATTY
Revenue,Adult Services,5105649337,09.09.2015,Adelaide Resource Centre,Prop Svs only - Day to day mtce,218.40,BALFOUR BEATTY
Revenue,Adult Services,5105648417,04.09.2015,Adelaide Resource Centre,Maintenance of Operational Equipment,530.58,BALFOUR BEATTY
Revenue,Adult Services,5105649265,09.09.2015,Adelaide Resource Centre,Maintenance of Operational Equipment,"2,803.06",BALFOUR BEATTY
Revenue,Adult Services,5105649267,09.09.2015,Adelaide Resource Centre,Maintenance of Operational Equipment,"-2,803.06",BALFOUR BEATTY
Revenue,Adult Services,5105651903,25.09.2015,Adelaide Resource Centre,Maintenance of Operational Equipment,"1,676.67",BALFOUR BEATTY
Revenue,Place,5105651185,18.09.2015,"Civic Centre,Sandown",Prop Svs only - Day to day mtce,289.27,BALFOUR BEATTY
Revenue,Place,5105652074,30.09.2015,"Civic Centre,Sandown",Prop Svs only - Day to day mtce,-233.24,BALFOUR BEATTY
Revenue,Place,5105652075,30.09.2015,"Civic Centre,Sandown",Prop Svs only - Day to day mtce,99.96,BALFOUR BEATTY
Revenue,Place,5105651335,25.09.2015,"Civic Centre,Sandown",Prop Svs only - Day to day mtce,36.00,BALFOUR BEATTY
Revenue,Place,5105649472,30.09.2015,"Civic Centre,Sandown",Prop Svs only - Day to day mtce,233.24,BALFOUR BEATTY
Revenue,Place,5105649779,11.09.2015,"Civic Centre,Sandown",Prop Svs only - Day to day mtce,46.80,BALFOUR BEATTY
Revenue,Place,5105649334,09.09.2015,"Civic Centre,Sandown",Prop Svs only - Day to day mtce,126.00,BALFOUR BEATTY
Revenue,Place,5105651215,18.09.2015,Properties Industrial Estates,Minor Works,"1,002.38",BALFOUR BEATTY
Revenue,Place,5105651332,23.09.2015,Downside Community & Learning Centre,Minor Works,88.85,BALFOUR BEATTY
Revenue,Place,5105652204,30.09.2015,Downside Community & Learning Centre,Minor Works,360.15,BALFOUR BEATTY
Revenue,Place,5105651318,18.09.2015,Downside Community & Learning Centre,Minor Works,70.20,BALFOUR BEATTY
Revenue,Place,5105649758,11.09.2015,Downside Community & Learning Centre,Minor Works,399.00,BALFOUR BEATTY
Revenue,Place,5105649683,11.09.2015,Downside Community & Learning Centre,Minor Works,383.45,BALFOUR BEATTY
Revenue,Place,5105649740,11.09.2015,Downside Community & Learning Centre,Minor Works,102.48,BALFOUR BEATTY
Revenue,Place,5105650500,16.09.2015,Fire Technical Support,Payment to Private Contractors,"2,809.31",BALLYCLARE LTD
Revenue,Place,5105650501,16.09.2015,Fire Technical Support,Payment to Private Contractors,651.25,BALLYCLARE LTD
Revenue,Place,5105650502,16.09.2015,Fire Technical Support,Payment to Private Contractors,651.25,BALLYCLARE LTD
Revenue,Place,5105649246,09.09.2015,Fire Technical Support,Payment to Private Contractors,"6,751.39",BALLYCLARE LTD
Revenue,Place,5105643359,09.09.2015,Fire Technical Support,Payment to Private Contractors,651.25,BALLYCLARE LTD
Revenue,Place,5105643358,09.09.2015,Fire Technical Support,Payment to Private Contractors,"6,751.39",BALLYCLARE LTD
Revenue,Childrens Services,5105647961,02.09.2015,Adoption Costs,Support Children,"2,089.00",BARNARDO'S
Revenue,Place,5105650876,16.09.2015,Diversity & Workforce,Operational Equipment,150.00,BARTLETTS SERVICE STATION
Revenue,Place,5105650886,16.09.2015,Diversity & Workforce,Operational Equipment,75.00,BARTLETTS SERVICE STATION
Revenue,Resources,5105651418,23.09.2015,Staff Benefits,Payment to Private Contractors,11.67,BARTON PRIMARY & EARLY YEARS
Revenue,Place,5105651522,23.09.2015,Medina Leisure Centre,Consumable Cleaning Materials,26.70,LAKE CLEANING & CATERING SUPPLIES
Revenue,Place,5105651522,23.09.2015,Medina Leisure Centre,Consumable Cleaning Materials,12.97,LAKE CLEANING & CATERING SUPPLIES
Revenue,Place,5105651522,23.09.2015,Medina Leisure Centre,Consumable Cleaning Materials,14.56,LAKE CLEANING & CATERING SUPPLIES
Revenue,Place,5105651522,23.09.2015,Medina Leisure Centre,Consumable Cleaning Materials,13.44,LAKE CLEANING & CATERING SUPPLIES
Revenue,Place,5105651522,23.09.2015,Medina Leisure Centre,Consumable Cleaning Materials,20.76,LAKE CLEANING & CATERING SUPPLIES
Revenue,Place,5105651522,23.09.2015,Medina Leisure Centre,Consumable Cleaning Materials,70.50,LAKE CLEANING & CATERING SUPPLIES
Revenue,Place,5105651522,23.09.2015,Medina Leisure Centre,Consumable Cleaning Materials,10.14,LAKE CLEANING & CATERING SUPPLIES
Revenue,Place,5105649941,16.09.2015,Medina Leisure Centre,Stock Purchases,56.76,LAKE CLEANING & CATERING SUPPLIES
Revenue,Childrens Services,5105651323,23.09.2015,Beaulieu House,General Materials,53.85,LAKE CLEANING & CATERING SUPPLIES
Revenue,Childrens Services,5105651299,18.09.2015,Beaulieu House,General Materials,102.80,LAKE CLEANING & CATERING SUPPLIES
Revenue,Place,5105648286,04.09.2015,Dinosaur Isle Museum (Sandown Geology),General Materials,104.78,LAKE CLEANING & CATERING SUPPLIES
Revenue,Place,5105649221,09.09.2015,Dinosaur Isle Museum (Sandown Geology),General Materials,11.48,LAKE CLEANING & CATERING SUPPLIES
Revenue,Place,5105649221,09.09.2015,Dinosaur Isle Museum (Sandown Geology),General Materials,1.78,LAKE CLEANING & CATERING SUPPLIES
Revenue,Place,5105648287,04.09.2015,The Heights,Consumable Cleaning Materials,39.76,LAKE CLEANING & CATERING SUPPLIES
Revenue,Childrens Services,5105648319,09.09.2015,In-house Fostering,Advertising & Publicity,716.00,BEACON MEDIA LIMITED
Revenue,Place,5105647825,09.09.2015,Newport Harbour Account,Vehicle Maintenance Costs,370.00,BEAUFORT MARINE LTD
Revenue,Place,5105652302,30.09.2015,Newport Harbour Account,Vehicle Maintenance Costs,210.00,BEAUFORT MARINE LTD
Revenue,Place,5105647826,09.09.2015,Newport Harbour Account,Operational Equipment,167.65,BEAUFORT MARINE LTD
Revenue,Adult Services,5105648693,09.09.2015,Elderly Mentally Ill Nursing Mainland,Charges from Independent Providers,"2,269.40",BEAUMONT LODGE LTD
Revenue,Adult Services,5105651527,23.09.2015,Community Laundry Service,Clothing & Laundry,13.74,BERENDSEN
Revenue,Adult Services,5105646146,18.09.2015,Community Laundry Service,Clothing & Laundry,13.74,BERENDSEN
Revenue,Adult Services,5105646192,18.09.2015,Community Laundry Service,Clothing & Laundry,13.74,BERENDSEN
Revenue,Adult Services,5105646193,18.09.2015,Community Laundry Service,Clothing & Laundry,13.74,BERENDSEN
Revenue,Adult Services,5105650518,16.09.2015,Community Laundry Service,Clothing & Laundry,13.74,BERENDSEN
Revenue,Adult Services,5105648330,04.09.2015,Westminster House,Consumable Cleaning Materials,136.00,BETA PAK LTD
Revenue,Adult Services,5105648325,04.09.2015,Westminster House,Consumable Cleaning Materials,20.30,BETA PAK LTD
Revenue,Adult Services,5105648328,04.09.2015,Westminster House,Consumable Cleaning Materials,81.49,BETA PAK LTD
Revenue,Adult Services,5105648327,04.09.2015,Westminster House,Clothing & Laundry,64.53,BETA PAK LTD
Revenue,Adult Services,5105648329,04.09.2015,Westminster House,Clothing & Laundry,64.53,BETA PAK LTD
Revenue,Adult Services,5105652157,30.09.2015,Plean Dene,Operational Equipment,19.49,BETA PAK LTD
Revenue,Adult Services,5105649465,11.09.2015,Plean Dene,Operational Equipment,12.25,BETA PAK LTD
Revenue,Adult Services,5105649465,11.09.2015,Plean Dene,Operational Equipment,45.96,BETA PAK LTD
Revenue,Adult Services,5105650496,16.09.2015,Plean Dene,Operational Equipment,68.94,BETA PAK LTD
Revenue,Adult Services,5105651290,25.09.2015,Plean Dene,Operational Equipment,30.22,BETA PAK LTD
Revenue,Adult Services,5105651291,23.09.2015,Plean Dene,Operational Equipment,-5.49,BETA PAK LTD
Revenue,Adult Services,5105651292,23.09.2015,Plean Dene,Operational Equipment,-5.50,BETA PAK LTD
Revenue,Adult Services,5105648413,09.09.2015,Plean Dene,Operational Equipment,56.94,BETA PAK LTD
Revenue,Adult Services,5105648416,11.09.2015,Plean Dene,Operational Equipment,67.18,BETA PAK LTD
Revenue,Adult Services,5105648281,04.09.2015,Plean Dene,Operational Equipment,5.49,BETA PAK LTD
Revenue,Adult Services,5105648352,09.09.2015,Saxonbury,Operational Equipment,92.25,BETA PAK LTD
Revenue,Adult Services,5105651890,25.09.2015,Saxonbury,Operational Equipment,265.37,BETA PAK LTD
Revenue,Adult Services,5105651717,25.09.2015,Saxonbury,Operational Equipment,28.50,BETA PAK LTD
Revenue,Adult Services,5105651923,25.09.2015,Saxonbury,Operational Equipment,64.00,BETA PAK LTD
Revenue,Adult Services,5105648449,09.09.2015,Gouldings Resource Centre,Consumable Cleaning Materials,22.14,BETA PAK LTD
Revenue,Adult Services,5105649938,16.09.2015,Gouldings Resource Centre,Consumable Cleaning Materials,-20.48,BETA PAK LTD
Revenue,Adult Services,5105649473,09.09.2015,Gouldings Resource Centre,Consumable Cleaning Materials,179.58,BETA PAK LTD
Revenue,Adult Services,5105649261,09.09.2015,Gouldings Resource Centre,Fixtures and Fittings,110.84,BETA PAK LTD
Revenue,Adult Services,5105649474,09.09.2015,Gouldings Resource Centre,Catering Purchases,77.96,BETA PAK LTD
Revenue,Adult Services,5105649943,16.09.2015,31 Carter Avenue,Operational Equipment,11.47,BETA PAK LTD
Revenue,Adult Services,5105649463,16.09.2015,31 Carter Avenue,Operational Equipment,39.56,BETA PAK LTD
Revenue,Adult Services,5105650497,16.09.2015,31 Carter Avenue,Operational Equipment,-30.29,BETA PAK LTD
Revenue,Adult Services,5105650494,16.09.2015,31 Carter Avenue,Operational Equipment,-51.21,BETA PAK LTD
Revenue,Adult Services,5105650495,16.09.2015,31 Carter Avenue,Operational Equipment,119.41,BETA PAK LTD
Revenue,Adult Services,5105649193,16.09.2015,31 Carter Avenue,Operational Equipment,192.96,BETA PAK LTD
Revenue,Adult Services,5105646734,09.09.2015,Highmead,Operational Equipment,232.38,BETA PAK LTD
Revenue,Adult Services,5105647400,09.09.2015,Highmead,Operational Equipment,21.35,BETA PAK LTD
Revenue,Adult Services,5105649931,16.09.2015,Highmead,Operational Equipment,35.80,BETA PAK LTD
Revenue,Adult Services,5105651531,23.09.2015,Wightcare,General Materials,135.99,BETA PAK LTD
Revenue,Adult Services,5105651530,23.09.2015,Wightcare,General Materials,135.99,BETA PAK LTD
Revenue,Adult Services,5105651920,25.09.2015,Seagulls,Operational Equipment,107.64,BETA PAK LTD
Revenue,Adult Services,5105651922,25.09.2015,40 Venner Avenue,Operational Equipment,46.78,BETA PAK LTD
Revenue,Adult Services,5105651676,23.09.2015,40 Venner Avenue,Operational Equipment,68.84,BETA PAK LTD
Revenue,Adult Services,5105647942,09.09.2015,40 Venner Avenue,Operational Equipment,110.34,BETA PAK LTD
Revenue,Place,5105647939,02.09.2015,Dinosaur Isle Museum (Sandown Geology),Operational Equipment,47.84,BETA PAK LTD
Revenue,Place,5105647939,02.09.2015,Dinosaur Isle Museum (Sandown Geology),Operational Equipment,16.28,BETA PAK LTD
Revenue,Place,5105647939,02.09.2015,Dinosaur Isle Museum (Sandown Geology),Operational Equipment,19.84,BETA PAK LTD
Revenue,Place,5105648368,04.09.2015,Downside Community & Learning Centre,Consumable Cleaning Materials,6.28,BETA PAK LTD
Revenue,Place,5105648368,04.09.2015,Downside Community & Learning Centre,Consumable Cleaning Materials,4.44,BETA PAK LTD
Revenue,Adult Services,5105646730,09.09.2015,Overbrook,Operational Equipment,66.18,BETA PAK LTD
Revenue,Adult Services,5105646970,09.09.2015,Overbrook,Operational Equipment,19.33,BETA PAK LTD
Revenue,Adult Services,5105647244,09.09.2015,The Laurels,Operational Equipment,362.78,BETA PAK LTD
Revenue,Adult Services,5105651486,23.09.2015,Adelaide Resource Centre,Consumable Cleaning Materials,9.94,BETA PAK LTD
Revenue,Adult Services,5105651633,23.09.2015,Adelaide Resource Centre,Consumable Cleaning Materials,23.97,BETA PAK LTD
Revenue,Adult Services,5105651681,23.09.2015,Adelaide Resource Centre,Consumable Cleaning Materials,506.41,BETA PAK LTD
Revenue,Adult Services,5105649844,16.09.2015,Adelaide Resource Centre,Consumable Cleaning Materials,399.96,BETA PAK LTD
Revenue,Adult Services,5105649398,09.09.2015,Adelaide Resource Centre,Consumable Cleaning Materials,439.80,BETA PAK LTD
Revenue,Adult Services,5105649399,09.09.2015,Adelaide Resource Centre,Consumable Cleaning Materials,-439.80,BETA PAK LTD
Revenue,Resources,5105650469,16.09.2015,Corporate Stores,Operational Equipment,1.76,BETA PAK LTD
Revenue,Resources,5105650911,16.09.2015,Corporate Stores,Operational Equipment,0.18,BETA PAK LTD
Revenue,Resources,5105650911,16.09.2015,Corporate Stores,Operational Equipment,4.08,BETA PAK LTD
Revenue,Resources,5105650911,16.09.2015,Corporate Stores,Operational Equipment,0.36,BETA PAK LTD
Revenue,Resources,5105650911,16.09.2015,Corporate Stores,Operational Equipment,1.02,BETA PAK LTD
Revenue,Resources,5105650911,16.09.2015,Corporate Stores,Operational Equipment,3.80,BETA PAK LTD
Revenue,Resources,5105650911,16.09.2015,Corporate Stores,Operational Equipment,1.80,BETA PAK LTD
Revenue,Resources,5105650911,16.09.2015,Corporate Stores,Operational Equipment,4.78,BETA PAK LTD
Revenue,Resources,5105650869,16.09.2015,Corporate Stores,Operational Equipment,1.40,BETA PAK LTD
Revenue,Place,5105648368,04.09.2015,Downside Community & Learning Centre,Consumable Cleaning Materials,8.16,BETA PAK LTD
Revenue,Place,5105648368,04.09.2015,Downside Community & Learning Centre,Consumable Cleaning Materials,13.42,BETA PAK LTD
Revenue,Place,5105648368,04.09.2015,Downside Community & Learning Centre,Consumable Cleaning Materials,19.95,BETA PAK LTD
Revenue,Adult Services,5105650244,16.09.2015,Mental Health Homecare,Charges from Independent Providers,420.20,BETTER AT HOME IOW LTD
Revenue,Adult Services,5105650284,16.09.2015,Physical Disability Homecare,Charges from Independent Providers,534.80,BETTER AT HOME IOW LTD
Revenue,Adult Services,5105650263,16.09.2015,Physical Disability Homecare,Charges from Independent Providers,401.10,BETTER AT HOME IOW LTD
Revenue,Adult Services,5105650281,16.09.2015,Physical Disability Homecare,Charges from Independent Providers,187.18,BETTER AT HOME IOW LTD
Revenue,Adult Services,5105650271,16.09.2015,Physical Disability Homecare,Charges from Independent Providers,408.74,BETTER AT HOME IOW LTD
Revenue,Adult Services,5105650982,18.09.2015,Physical Disability Homecare,Charges from Independent Providers,106.96,BETTER AT HOME IOW LTD
Revenue,Adult Services,5105650285,16.09.2015,Physical Disability Homecare,Charges from Independent Providers,687.60,BETTER AT HOME IOW LTD
Revenue,Adult Services,5105651351,23.09.2015,Physical Disability Homecare,Charges from Independent Providers,"3,949.88",BETTER AT HOME IOW LTD
Revenue,Adult Services,5105651721,25.09.2015,Physical Disability Homecare,Charges from Independent Providers,183.36,BETTER AT HOME IOW LTD
Revenue,Adult Services,5105650291,16.09.2015,Physical Disability Homecare,Charges from Independent Providers,320.88,BETTER AT HOME IOW LTD
Revenue,Adult Services,5105650280,16.09.2015,Physical Disability Homecare,Regular Respite Care,30.56,BETTER AT HOME IOW LTD
Revenue,Adult Services,5105650256,16.09.2015,Elderly Frail Homecare,Regular Respite Care,152.80,BETTER AT HOME IOW LTD
Revenue,Adult Services,5105650254,16.09.2015,Elderly Frail Homecare,Regular Respite Care,152.80,BETTER AT HOME IOW LTD
Revenue,Adult Services,5105650268,16.09.2015,Elderly Frail Homecare,Regular Respite Care,61.12,BETTER AT HOME IOW LTD
Revenue,Adult Services,5105650265,16.09.2015,Elderly Frail Homecare,Regular Respite Care,305.60,BETTER AT HOME IOW LTD
Revenue,Adult Services,5105650237,16.09.2015,Elderly Frail Homecare,Charges from Independent Providers,897.70,BETTER AT HOME IOW LTD
Revenue,Adult Services,5105650253,16.09.2015,Elderly Frail Homecare,Charges from Independent Providers,263.58,BETTER AT HOME IOW LTD
Revenue,Adult Services,5105650250,16.09.2015,Elderly Frail Homecare,Charges from Independent Providers,611.20,BETTER AT HOME IOW LTD
Revenue,Adult Services,5105650249,16.09.2015,Elderly Frail Homecare,Charges from Independent Providers,45.84,BETTER AT HOME IOW LTD
Revenue,Adult Services,5105650248,16.09.2015,Elderly Frail Homecare,Charges from Independent Providers,725.80,BETTER AT HOME IOW LTD
Revenue,Adult Services,5105650241,16.09.2015,Elderly Frail Homecare,Charges from Independent Providers,534.80,BETTER AT HOME IOW LTD
Revenue,Adult Services,5105650240,16.09.2015,Elderly Frail Homecare,Charges from Independent Providers,"1,337.00",BETTER AT HOME IOW LTD
Revenue,Adult Services,5105650239,16.09.2015,Elderly Frail Homecare,Charges from Independent Providers,"1,856.52",BETTER AT HOME IOW LTD
Revenue,Adult Services,5105650245,16.09.2015,Elderly Frail Homecare,Charges from Independent Providers,806.02,BETTER AT HOME IOW LTD
Revenue,Adult Services,5105650255,16.09.2015,Elderly Frail Homecare,Charges from Independent Providers,534.80,BETTER AT HOME IOW LTD
Revenue,Adult Services,5105650290,16.09.2015,Elderly Frail Homecare,Regular Respite Care,275.04,BETTER AT HOME IOW LTD
Revenue,Adult Services,5105650275,16.09.2015,Elderly Frail Homecare,Regular Respite Care,458.40,BETTER AT HOME IOW LTD
Revenue,Adult Services,5105650243,16.09.2015,Elderly Frail Homecare,Charges from Independent Providers,534.80,BETTER AT HOME IOW LTD
Revenue,Adult Services,5105650247,16.09.2015,Elderly Frail Homecare,Charges from Independent Providers,"1,092.52",BETTER AT HOME IOW LTD
Revenue,Adult Services,5105650983,18.09.2015,Elderly Frail Homecare,Charges from Independent Providers,53.48,BETTER AT HOME IOW LTD
Revenue,Adult Services,5105650257,16.09.2015,Elderly Frail Homecare,Charges from Independent Providers,57.30,BETTER AT HOME IOW LTD
Revenue,Adult Services,5105650238,16.09.2015,Elderly Frail Homecare,Charges from Independent Providers,473.68,BETTER AT HOME IOW LTD
Revenue,Adult Services,5105650981,18.09.2015,Elderly Frail Homecare,Charges from Independent Providers,45.84,BETTER AT HOME IOW LTD
Revenue,Adult Services,5105650287,16.09.2015,Elderly Frail Homecare,Charges from Independent Providers,443.12,BETTER AT HOME IOW LTD
Revenue,Adult Services,5105650295,16.09.2015,Elderly Frail Homecare,Charges from Independent Providers,282.68,BETTER AT HOME IOW LTD
Revenue,Adult Services,5105650985,18.09.2015,Elderly Frail Homecare,Charges from Independent Providers,855.68,BETTER AT HOME IOW LTD
Revenue,Adult Services,5105650294,16.09.2015,Elderly Frail Homecare,Charges from Independent Providers,106.96,BETTER AT HOME IOW LTD
Revenue,Adult Services,5105650260,16.09.2015,Elderly Frail Homecare,Charges from Independent Providers,534.80,BETTER AT HOME IOW LTD
Revenue,Adult Services,5105650261,16.09.2015,Elderly Frail Homecare,Charges from Independent Providers,534.80,BETTER AT HOME IOW LTD
Revenue,Adult Services,5105650252,16.09.2015,Elderly Frail Homecare,Charges from Independent Providers,"1,054.32",BETTER AT HOME IOW LTD
Revenue,Adult Services,5105650251,16.09.2015,Elderly Frail Homecare,Charges from Independent Providers,171.90,BETTER AT HOME IOW LTD
Revenue,Adult Services,5105650262,16.09.2015,Elderly Frail Homecare,Charges from Independent Providers,534.80,BETTER AT HOME IOW LTD
Revenue,Adult Services,5105650276,16.09.2015,Elderly Frail Homecare,Charges from Independent Providers,145.16,BETTER AT HOME IOW LTD
Revenue,Adult Services,5105651350,23.09.2015,Elderly Frail Homecare,Charges from Independent Providers,359.08,BETTER AT HOME IOW LTD
Revenue,Adult Services,5105650258,16.09.2015,Elderly Frail Homecare,Charges from Independent Providers,259.76,BETTER AT HOME IOW LTD
Revenue,Adult Services,5105650270,16.09.2015,Elderly Frail Homecare,Charges from Independent Providers,"1,871.80",BETTER AT HOME IOW LTD
Revenue,Adult Services,5105650274,16.09.2015,Elderly Frail Homecare,Charges from Independent Providers,229.20,BETTER AT HOME IOW LTD
Revenue,Adult Services,5105650242,16.09.2015,Elderly Frail Homecare,Charges from Independent Providers,"1,337.00",BETTER AT HOME IOW LTD
Revenue,Adult Services,5105650296,16.09.2015,Elderly Frail Homecare,Charges from Independent Providers,126.06,BETTER AT HOME IOW LTD
Revenue,Adult Services,5105650288,16.09.2015,Elderly Frail Homecare,Charges from Independent Providers,534.80,BETTER AT HOME IOW LTD
Revenue,Adult Services,5105650289,16.09.2015,Elderly Frail Homecare,Charges from Independent Providers,"1,107.80",BETTER AT HOME IOW LTD
Revenue,Adult Services,5105651352,23.09.2015,Elderly Frail Homecare,Charges from Independent Providers,802.20,BETTER AT HOME IOW LTD
Revenue,Adult Services,5105650298,16.09.2015,Elderly Frail Homecare,Charges from Independent Providers,15.28,BETTER AT HOME IOW LTD
Revenue,Adult Services,5105650297,16.09.2015,Elderly Frail Homecare,Charges from Independent Providers,"1,069.60",BETTER AT HOME IOW LTD
Revenue,Adult Services,5105650292,16.09.2015,Elderly Frail Homecare,Charges from Independent Providers,848.04,BETTER AT HOME IOW LTD
Revenue,Adult Services,5105651353,23.09.2015,Elderly Frail Homecare,Charges from Independent Providers,"1,604.40",BETTER AT HOME IOW LTD
Revenue,Adult Services,5105650293,16.09.2015,Elderly Frail Homecare,Charges from Independent Providers,118.42,BETTER AT HOME IOW LTD
Revenue,Adult Services,5105650277,16.09.2015,Elderly Frail Homecare,Charges from Independent Providers,534.80,BETTER AT HOME IOW LTD
Revenue,Adult Services,5105650278,16.09.2015,Elderly Frail Homecare,Charges from Independent Providers,"1,069.60",BETTER AT HOME IOW LTD
Revenue,Adult Services,5105650282,16.09.2015,Elderly Frail Homecare,Charges from Independent Providers,152.80,BETTER AT HOME IOW LTD
Revenue,Adult Services,5105650286,16.09.2015,Elderly Frail Homecare,Charges from Independent Providers,794.56,BETTER AT HOME IOW LTD
Revenue,Adult Services,5105650267,16.09.2015,Elderly Frail Homecare,Charges from Independent Providers,401.10,BETTER AT HOME IOW LTD
Revenue,Adult Services,5105650246,16.09.2015,Elderly Frail Homecare,Charges from Independent Providers,592.10,BETTER AT HOME IOW LTD
Revenue,Adult Services,5105650264,16.09.2015,Elderly Frail Homecare,Charges from Independent Providers,378.18,BETTER AT HOME IOW LTD
Revenue,Adult Services,5105650279,16.09.2015,Elderly Frail Homecare,Charges from Independent Providers,802.20,BETTER AT HOME IOW LTD
Revenue,Adult Services,5105650266,16.09.2015,Elderly Frail Homecare,Charges from Independent Providers,450.76,BETTER AT HOME IOW LTD
Revenue,Adult Services,5105650283,16.09.2015,Elderly Frail Homecare,Charges from Independent Providers,496.60,BETTER AT HOME IOW LTD
Revenue,Adult Services,5105650984,18.09.2015,Elderly Frail Homecare,Charges from Independent Providers,168.08,BETTER AT HOME IOW LTD
Revenue,Adult Services,5105650273,16.09.2015,Elderly Frail Homecare,Charges from Independent Providers,320.88,BETTER AT HOME IOW LTD
Revenue,Adult Services,5105650272,16.09.2015,Elderly Frail Homecare,Charges from Independent Providers,"2,941.40",BETTER AT HOME IOW LTD
Revenue,Adult Services,5105650269,16.09.2015,Elderly Mentally Ill Homecare,Charges from Independent Providers,"1,203.30",BETTER AT HOME IOW LTD
Revenue,Adult Services,5105650259,16.09.2015,Elderly Mentally Ill Homecare,Charges from Independent Providers,893.88,BETTER AT HOME IOW LTD
Revenue,Place,5105649458,09.09.2015,Medina Leisure Centre,Stock Purchases,23.35,3663 (BFS GROUP LTD)
Revenue,Place,5105649458,09.09.2015,Medina Leisure Centre,Stock Purchases,48.35,3663 (BFS GROUP LTD)
Revenue,Place,5105649461,09.09.2015,Medina Leisure Centre,Stock Purchases,132.05,3663 (BFS GROUP LTD)
Revenue,Place,5105649461,09.09.2015,Medina Leisure Centre,Stock Purchases,6.66,3663 (BFS GROUP LTD)
Revenue,Place,5105651180,18.09.2015,Medina Leisure Centre,Stock Purchases,24.46,3663 (BFS GROUP LTD)
Revenue,Place,5105651345,23.09.2015,Medina Leisure Centre,Stock Purchases,89.13,3663 (BFS GROUP LTD)
Revenue,Place,5105648367,04.09.2015,Medina Leisure Centre,Stock Purchases,135.84,3663 (BFS GROUP LTD)
Revenue,Adult Services,5105651618,23.09.2015,Westminster House,Catering Purchases,77.15,3663 (BFS GROUP LTD)
Revenue,Adult Services,5105651630,23.09.2015,Westminster House,Catering Purchases,18.27,3663 (BFS GROUP LTD)
Revenue,Adult Services,5105651600,23.09.2015,Westminster House,Catering Purchases,52.81,3663 (BFS GROUP LTD)
Revenue,Adult Services,5105649248,09.09.2015,Westminster House,Catering Purchases,145.33,3663 (BFS GROUP LTD)
Revenue,Adult Services,5105649251,09.09.2015,Westminster House,Catering Purchases,54.29,3663 (BFS GROUP LTD)
Revenue,Adult Services,5105649250,09.09.2015,Westminster House,Catering Purchases,62.70,3663 (BFS GROUP LTD)
Revenue,Adult Services,5105651226,18.09.2015,Gouldings Resource Centre,Catering Purchases,313.30,3663 (BFS GROUP LTD)
Revenue,Adult Services,5105651344,23.09.2015,Gouldings Resource Centre,Catering Purchases,44.67,3663 (BFS GROUP LTD)
Revenue,Adult Services,5105651226,18.09.2015,Gouldings Resource Centre,Catering Purchases,29.15,3663 (BFS GROUP LTD)
Revenue,Adult Services,5105649915,16.09.2015,Gouldings Resource Centre,Catering Purchases,-33.98,3663 (BFS GROUP LTD)
Revenue,Adult Services,5105649916,16.09.2015,Gouldings Resource Centre,Catering Purchases,-22.60,3663 (BFS GROUP LTD)
Revenue,Adult Services,5105648273,04.09.2015,Gouldings Resource Centre,Catering Purchases,20.30,3663 (BFS GROUP LTD)
Revenue,Adult Services,5105648273,04.09.2015,Gouldings Resource Centre,Catering Purchases,401.75,3663 (BFS GROUP LTD)
Revenue,Adult Services,5105648366,04.09.2015,Gouldings Resource Centre,Catering Purchases,-42.09,3663 (BFS GROUP LTD)
Revenue,Adult Services,5105649348,09.09.2015,Gouldings Resource Centre,Catering Purchases,39.75,3663 (BFS GROUP LTD)
Revenue,Adult Services,5105649342,09.09.2015,Gouldings Resource Centre,Catering Purchases,450.60,3663 (BFS GROUP LTD)
Revenue,Adult Services,5105649342,09.09.2015,Gouldings Resource Centre,Catering Purchases,36.52,3663 (BFS GROUP LTD)
Revenue,Place,5105648323,04.09.2015,The Heights,Stock Purchases,305.65,3663 (BFS GROUP LTD)
Revenue,Place,5105648323,04.09.2015,The Heights,Stock Purchases,174.83,3663 (BFS GROUP LTD)
Revenue,Place,5105649384,09.09.2015,The Heights,Stock Purchases,391.22,3663 (BFS GROUP LTD)
Revenue,Place,5105650473,16.09.2015,The Heights,Stock Purchases,69.46,3663 (BFS GROUP LTD)
Revenue,Place,5105650473,16.09.2015,The Heights,Stock Purchases,23.51,3663 (BFS GROUP LTD)
Revenue,Place,5105647922,02.09.2015,The Heights,Stock Purchases,365.30,3663 (BFS GROUP LTD)
Revenue,Place,5105650530,16.09.2015,The Heights,Stock Purchases,213.96,3663 (BFS GROUP LTD)
Revenue,Adult Services,5105647921,02.09.2015,Adelaide Resource Centre,Catering Purchases,-27.42,3663 (BFS GROUP LTD)
Revenue,Adult Services,5105647921,02.09.2015,Adelaide Resource Centre,Catering Purchases,-28.00,3663 (BFS GROUP LTD)
Revenue,Adult Services,5105650499,16.09.2015,Adelaide Resource Centre,Catering Purchases,-17.50,3663 (BFS GROUP LTD)
Revenue,Adult Services,5105648290,04.09.2015,Adelaide Resource Centre,Catering Purchases,10.78,3663 (BFS GROUP LTD)
Revenue,Adult Services,5105648290,04.09.2015,Adelaide Resource Centre,Catering Purchases,191.44,3663 (BFS GROUP LTD)
Revenue,Adult Services,5105648359,04.09.2015,Adelaide Resource Centre,Catering Purchases,87.19,3663 (BFS GROUP LTD)
Revenue,Adult Services,5105651459,23.09.2015,Adelaide Resource Centre,Catering Purchases,273.46,3663 (BFS GROUP LTD)
Revenue,Adult Services,5105651466,23.09.2015,Adelaide Resource Centre,Catering Purchases,91.83,3663 (BFS GROUP LTD)
Revenue,Adult Services,5105652100,30.09.2015,Adelaide Resource Centre,Catering Purchases,-6.29,3663 (BFS GROUP LTD)
Revenue,Adult Services,5105651466,23.09.2015,Adelaide Resource Centre,Catering Purchases,10.28,3663 (BFS GROUP LTD)
Revenue,Adult Services,5105651459,23.09.2015,Adelaide Resource Centre,Catering Purchases,13.70,3663 (BFS GROUP LTD)
Revenue,Adult Services,5105651502,23.09.2015,Adelaide Resource Centre,Catering Purchases,215.60,3663 (BFS GROUP LTD)
Revenue,Adult Services,5105651472,23.09.2015,Adelaide Resource Centre,Catering Purchases,174.89,3663 (BFS GROUP LTD)
Revenue,Adult Services,5105651472,23.09.2015,Adelaide Resource Centre,Catering Purchases,10.60,3663 (BFS GROUP LTD)
Revenue,Adult Services,5105651502,23.09.2015,Adelaide Resource Centre,Catering Purchases,13.70,3663 (BFS GROUP LTD)
Revenue,Childrens Services,5105649212,09.09.2015,Island Learning Centre,Professional Services,639.40,BIFFA WASTE SERVICES LTD
Revenue,Childrens Services,5105649212,09.09.2015,SEND Independent Advice & Support,"Refuse Collection, Disposal and Recycling Costs",17.42,BIFFA WASTE SERVICES LTD
Revenue,Place,5105649212,09.09.2015,Medina Leisure Centre,"Refuse Collection, Disposal and Recycling Costs",355.54,BIFFA WASTE SERVICES LTD
Revenue,Place,5105649212,09.09.2015,Ryde Harbour,"Refuse Collection, Disposal and Recycling Costs",311.28,BIFFA WASTE SERVICES LTD
Revenue,Place,5105649212,09.09.2015,Seaclose Amusements,"Refuse Collection, Disposal and Recycling Costs",14.47,BIFFA WASTE SERVICES LTD
Revenue,Childrens Services,5105649212,09.09.2015,Learning & Development Running Costs,"Refuse Collection, Disposal and Recycling Costs",24.32,BIFFA WASTE SERVICES LTD
Revenue,Adult Services,5105649212,09.09.2015,Plean Dene,"Refuse Collection, Disposal and Recycling Costs",168.08,BIFFA WASTE SERVICES LTD
Revenue,Adult Services,5105649212,09.09.2015,Westminster House,"Refuse Collection, Disposal and Recycling Costs",46.24,BIFFA WASTE SERVICES LTD
Revenue,Adult Services,5105649212,09.09.2015,Saxonbury,"Refuse Collection, Disposal and Recycling Costs",82.16,BIFFA WASTE SERVICES LTD
Revenue,Adult Services,5105649212,09.09.2015,Stores Adult Social Care,"Refuse Collection, Disposal and Recycling Costs",13.81,BIFFA WASTE SERVICES LTD
Revenue,Adult Services,5105647980,04.09.2015,Gouldings Resource Centre,"Refuse Collection, Disposal and Recycling Costs",284.16,BIFFA WASTE SERVICES LTD
Revenue,Adult Services,5105648363,09.09.2015,Gouldings Resource Centre,"Refuse Collection, Disposal and Recycling Costs",91.60,BIFFA WASTE SERVICES LTD
Revenue,Place,5105649212,09.09.2015,"Enterprise House, Newport","Refuse Collection, Disposal and Recycling Costs",159.28,BIFFA WASTE SERVICES LTD
Revenue,Adult Services,5105649212,09.09.2015,S75 Integrated Community Equipment Store,"Refuse Collection, Disposal and Recycling Costs",155.12,BIFFA WASTE SERVICES LTD
Revenue,Childrens Services,5105649212,09.09.2015,Family Information Zone,"Refuse Collection, Disposal and Recycling Costs",17.42,BIFFA WASTE SERVICES LTD
Revenue,Place,5105649212,09.09.2015,Planning Business Support,"Refuse Collection, Disposal and Recycling Costs",414.32,BIFFA WASTE SERVICES LTD
Revenue,Place,5105649212,09.09.2015,Ferry Management,"Refuse Collection, Disposal and Recycling Costs",86.56,BIFFA WASTE SERVICES LTD
Revenue,Childrens Services,5105649212,09.09.2015,Beaulieu House,"Refuse Collection, Disposal and Recycling Costs",180.52,BIFFA WASTE SERVICES LTD
Revenue,Adult Services,5105649212,09.09.2015,31 Carter Avenue,"Refuse Collection, Disposal and Recycling Costs",86.56,BIFFA WASTE SERVICES LTD
Revenue,Adult Services,5105649212,09.09.2015,Highmead,"Refuse Collection, Disposal and Recycling Costs",66.18,BIFFA WASTE SERVICES LTD
Revenue,Place,5105649212,09.09.2015,17 Fairlee Road,"Refuse Collection, Disposal and Recycling Costs",490.30,BIFFA WASTE SERVICES LTD
Revenue,Place,5105649212,09.09.2015,"Westridge, Ryde","Refuse Collection, Disposal and Recycling Costs",29.36,BIFFA WASTE SERVICES LTD
Revenue,Resources,5105649212,09.09.2015,ICT Contracts,"Refuse Collection, Disposal and Recycling Costs",72.52,BIFFA WASTE SERVICES LTD
Revenue,Place,5105649212,09.09.2015,Fort Victoria,"Refuse Collection, Disposal and Recycling Costs",183.60,BIFFA WASTE SERVICES LTD
Revenue,Place,5105649212,09.09.2015,Newport Harbour Account,"Refuse Collection, Disposal and Recycling Costs",382.96,BIFFA WASTE SERVICES LTD
Revenue,Place,5105649212,09.09.2015,Newport Harbour Account,"Refuse Collection, Disposal and Recycling Costs",229.22,BIFFA WASTE SERVICES LTD
Revenue,Place,5105649212,09.09.2015,Fire Operations,"Refuse Collection, Disposal and Recycling Costs",354.93,BIFFA WASTE SERVICES LTD
Revenue,Place,5105649212,09.09.2015,Cothey Bottom Store RYDE,"Refuse Collection, Disposal and Recycling Costs",14.68,BIFFA WASTE SERVICES LTD
Revenue,Place,5105649212,09.09.2015,Westridge Squash Courts,"Refuse Collection, Disposal and Recycling Costs",14.68,BIFFA WASTE SERVICES LTD
Revenue,Place,5105649212,09.09.2015,Public Libraries Central,"Refuse Collection, Disposal and Recycling Costs",592.66,BIFFA WASTE SERVICES LTD
Revenue,Place,5105649212,09.09.2015,"Bugle House,Newport","Refuse Collection, Disposal and Recycling Costs",159.28,BIFFA WASTE SERVICES LTD
Revenue,Place,5105649212,09.09.2015,"Jubilee Stores, Newport","Refuse Collection, Disposal and Recycling Costs",86.56,BIFFA WASTE SERVICES LTD
Revenue,Adult Services,5105649212,09.09.2015,Seagulls,"Refuse Collection, Disposal and Recycling Costs",86.56,BIFFA WASTE SERVICES LTD
Revenue,Adult Services,5105649212,09.09.2015,40 Venner Avenue,"Refuse Collection, Disposal and Recycling Costs",5.04,BIFFA WASTE SERVICES LTD
Revenue,Place,5105649212,09.09.2015,Crematorium,"Refuse Collection, Disposal and Recycling Costs",101.44,BIFFA WASTE SERVICES LTD
Revenue,Childrens Services,5105649212,09.09.2015,Specialist Service Business Admin,"Refuse Collection, Disposal and Recycling Costs",164.32,BIFFA WASTE SERVICES LTD
Revenue,Place,5105649212,09.09.2015,Dinosaur Isle Museum (Sandown Geology),"Refuse Collection, Disposal and Recycling Costs",64.48,BIFFA WASTE SERVICES LTD
Revenue,Place,5105649212,09.09.2015,The Heights,"Refuse Collection, Disposal and Recycling Costs",282.24,BIFFA WASTE SERVICES LTD
Revenue,Adult Services,5105649212,09.09.2015,Overbrook,"Refuse Collection, Disposal and Recycling Costs",100.51,BIFFA WASTE SERVICES LTD
Revenue,Adult Services,5105649212,09.09.2015,The Laurels,"Refuse Collection, Disposal and Recycling Costs",66.18,BIFFA WASTE SERVICES LTD
Revenue,Adult Services,5105648360,09.09.2015,Adelaide Resource Centre,"Refuse Collection, Disposal and Recycling Costs",187.46,BIFFA WASTE SERVICES LTD
Revenue,Adult Services,5105647969,04.09.2015,Adelaide Resource Centre,"Refuse Collection, Disposal and Recycling Costs","1,358.63",BIFFA WASTE SERVICES LTD
Revenue,Place,5105649212,09.09.2015,"Civic Centre,Sandown","Refuse Collection, Disposal and Recycling Costs",147.08,BIFFA WASTE SERVICES LTD
Revenue,Place,5105650889,30.09.2015,SOREC Project ERDF,Consultants Fees,"17,000.00",BIP SOLUTIONS LTD
Revenue,Place,5105651705,25.09.2015,Play Development,Operational Equipment,175.00,BISHOP SPORTS & LEISURE LTD
Revenue,Place,5105651705,25.09.2015,Play Development,Operational Equipment,25.45,BISHOP SPORTS & LEISURE LTD
Revenue,Resources,5105651414,23.09.2015,Staff Benefits,Payment to Private Contractors,189.15,BLACKBERRY LANE PRE-SCHOOL
Revenue,Resources,5105651414,23.09.2015,Staff Benefits,Payment to Private Contractors,20.00,BLACKBERRY LANE PRE-SCHOOL
Revenue,Adult Services,5105648284,18.09.2015,Community Outreach,Vehicle Maintenance Costs,5.00,REDACTED PERSONAL DATA
Revenue,Adult Services,5105648369,04.09.2015,Community Outreach,Vehicle Maintenance Costs,10.00,REDACTED PERSONAL DATA
Revenue,Adult Services,5105648284,18.09.2015,Community Outreach,Vehicle Maintenance Costs,15.00,REDACTED PERSONAL DATA
Revenue,Adult Services,5105648369,04.09.2015,Community Outreach,Vehicle Maintenance Costs,10.00,REDACTED PERSONAL DATA
Revenue,Adult Services,5105648284,18.09.2015,Community Outreach,Vehicle Maintenance Costs,5.00,REDACTED PERSONAL DATA
Revenue,Adult Services,5105648284,18.09.2015,Community Outreach,Vehicle Maintenance Costs,10.00,REDACTED PERSONAL DATA
Revenue,Adult Services,5105648369,04.09.2015,Community Outreach,Vehicle Maintenance Costs,10.00,REDACTED PERSONAL DATA
Revenue,Adult Services,5105648369,04.09.2015,Community Outreach,Vehicle Maintenance Costs,10.00,REDACTED PERSONAL DATA
Revenue,Adult Services,5105648284,18.09.2015,Community Outreach,Vehicle Maintenance Costs,15.00,REDACTED PERSONAL DATA
Revenue,Adult Services,5105648026,02.09.2015,Community Outreach,Vehicle Maintenance Costs,5.00,REDACTED PERSONAL DATA
Revenue,Adult Services,5105648026,02.09.2015,Community Outreach,Vehicle Maintenance Costs,10.00,REDACTED PERSONAL DATA
Revenue,Adult Services,5105648078,04.09.2015,Community Outreach,Vehicle Maintenance Costs,10.00,REDACTED PERSONAL DATA
Revenue,Adult Services,5105648078,04.09.2015,Community Outreach,Vehicle Maintenance Costs,15.00,REDACTED PERSONAL DATA
Revenue,Adult Services,5105648078,04.09.2015,Community Outreach,Vehicle Maintenance Costs,5.00,REDACTED PERSONAL DATA
Revenue,Adult Services,5105648030,02.09.2015,Community Outreach,Vehicle Maintenance Costs,5.00,REDACTED PERSONAL DATA
Revenue,Adult Services,5105648030,02.09.2015,Community Outreach,Vehicle Maintenance Costs,10.00,REDACTED PERSONAL DATA
Revenue,Adult Services,5105648078,04.09.2015,Community Outreach,Vehicle Maintenance Costs,5.00,REDACTED PERSONAL DATA
Revenue,Childrens Services,5105649364,09.09.2015,Beaulieu House,General Materials,176.00,BLINDS BY ELEGANCE
Revenue,Childrens Services,5105646368,04.09.2015,Purchased Fostering,Charges from Independent Providers,"3,101.55",BLUE SKY FOSTERING LTD
Revenue,Childrens Services,5105646477,09.09.2015,Purchased Fostering,Charges from Independent Providers,"3,101.55",BLUE SKY FOSTERING LTD
Revenue,Childrens Services,5105648296,04.09.2015,Purchased Fostering,Charges from Independent Providers,-800.40,BLUE SKY FOSTERING LTD
Revenue,Childrens Services,5105648295,04.09.2015,Purchased Fostering,Charges from Independent Providers,-800.40,BLUE SKY FOSTERING LTD
Revenue,Place,5105651528,23.09.2015,SOREC Project ERDF,Grants to External Bodies,935.00,BLUE TIDAL ENERGY LTD
Revenue,Childrens Services,5105651698,25.09.2015,Commissioning ACL,Grants to External Bodies,"2,084.00",BODSTER EQUINE ASSISTED LEARN CIC
Revenue,Childrens Services,5105651283,18.09.2015,Short Breaks,Charges from Independent Providers,520.00,BODSTER EQUINE ASSISTED LEARN CIC
Revenue,Adult Services,5105648399,04.09.2015,Plean Dene,Catering Purchases,22.66,BOOKER CASH & CARRY LTD
Revenue,Adult Services,5105648401,04.09.2015,Plean Dene,Catering Purchases,6.98,BOOKER CASH & CARRY LTD
Revenue,Adult Services,5105648402,09.09.2015,Plean Dene,Catering Purchases,156.79,BOOKER CASH & CARRY LTD
Revenue,Adult Services,5105648420,04.09.2015,Plean Dene,Catering Purchases,21.53,BOOKER CASH & CARRY LTD
Revenue,Adult Services,5105648421,04.09.2015,Plean Dene,Catering Purchases,18.47,BOOKER CASH & CARRY LTD
Revenue,Adult Services,5105648402,09.09.2015,Plean Dene,Catering Purchases,17.57,BOOKER CASH & CARRY LTD
Revenue,Adult Services,5105651465,23.09.2015,Plean Dene,Catering Purchases,10.55,BOOKER CASH & CARRY LTD
Revenue,Adult Services,5105651584,23.09.2015,Plean Dene,Catering Purchases,14.36,BOOKER CASH & CARRY LTD
Revenue,Adult Services,5105651578,23.09.2015,Plean Dene,Catering Purchases,205.55,BOOKER CASH & CARRY LTD
Revenue,Adult Services,5105652207,30.09.2015,Plean Dene,Catering Purchases,40.39,BOOKER CASH & CARRY LTD
Revenue,Adult Services,5105651578,23.09.2015,Plean Dene,Catering Purchases,9.58,BOOKER CASH & CARRY LTD
Revenue,Adult Services,5105647926,02.09.2015,Plean Dene,Catering Purchases,4.99,BOOKER CASH & CARRY LTD
Revenue,Adult Services,5105647927,02.09.2015,Plean Dene,Catering Purchases,164.22,BOOKER CASH & CARRY LTD
Revenue,Adult Services,5105647927,02.09.2015,Plean Dene,Catering Purchases,14.88,BOOKER CASH & CARRY LTD
Revenue,Adult Services,5105647926,02.09.2015,Plean Dene,Catering Purchases,3.28,BOOKER CASH & CARRY LTD
Revenue,Adult Services,5105649310,09.09.2015,Plean Dene,Catering Purchases,24.28,BOOKER CASH & CARRY LTD
Revenue,Adult Services,5105649775,11.09.2015,Plean Dene,Catering Purchases,12.49,BOOKER CASH & CARRY LTD
Revenue,Adult Services,5105649698,11.09.2015,Plean Dene,Catering Purchases,32.77,BOOKER CASH & CARRY LTD
Revenue,Adult Services,5105649699,11.09.2015,Plean Dene,Catering Purchases,181.74,BOOKER CASH & CARRY LTD
Revenue,Adult Services,5105649699,11.09.2015,Plean Dene,Catering Purchases,29.06,BOOKER CASH & CARRY LTD
Revenue,Adult Services,5105649666,11.09.2015,Plean Dene,Catering Purchases,19.79,BOOKER CASH & CARRY LTD
Revenue,Adult Services,5105652293,30.09.2015,Plean Dene,Catering Purchases,9.96,BOOKER CASH & CARRY LTD
Revenue,Adult Services,5105649790,11.09.2015,Highmead,Catering Purchases,68.06,BOOKER CASH & CARRY LTD
Revenue,Adult Services,5105649881,16.09.2015,Highmead,Catering Purchases,315.32,BOOKER CASH & CARRY LTD
Revenue,Adult Services,5105649881,16.09.2015,Highmead,Catering Purchases,23.06,BOOKER CASH & CARRY LTD
Revenue,Adult Services,5105649790,11.09.2015,Highmead,Catering Purchases,37.77,BOOKER CASH & CARRY LTD
Revenue,Adult Services,5105648070,04.09.2015,Highmead,Catering Purchases,7.26,BOOKER CASH & CARRY LTD
Revenue,Adult Services,5105647937,02.09.2015,Highmead,Catering Purchases,99.55,BOOKER CASH & CARRY LTD
Revenue,Adult Services,5105648255,09.09.2015,Highmead,Catering Purchases,67.57,BOOKER CASH & CARRY LTD
Revenue,Adult Services,5105648255,09.09.2015,Highmead,Catering Purchases,5.98,BOOKER CASH & CARRY LTD
Revenue,Adult Services,5105648270,04.09.2015,Highmead,Catering Purchases,14.57,BOOKER CASH & CARRY LTD
Revenue,Adult Services,5105647937,02.09.2015,Highmead,Catering Purchases,2.55,BOOKER CASH & CARRY LTD
Revenue,Adult Services,5105648070,04.09.2015,Highmead,Catering Purchases,71.80,BOOKER CASH & CARRY LTD
Revenue,Adult Services,5105648277,09.09.2015,Highmead,Catering Purchases,197.75,BOOKER CASH & CARRY LTD
Revenue,Adult Services,5105648277,09.09.2015,Highmead,Catering Purchases,15.45,BOOKER CASH & CARRY LTD
Revenue,Adult Services,5105651720,25.09.2015,Highmead,Catering Purchases,22.81,BOOKER CASH & CARRY LTD
Revenue,Adult Services,5105651720,25.09.2015,Highmead,Catering Purchases,1.68,BOOKER CASH & CARRY LTD
Revenue,Adult Services,5105646998,09.09.2015,Overbrook,Catering Purchases,27.89,BOOKER CASH & CARRY LTD
Revenue,Adult Services,5105646998,09.09.2015,Overbrook,Catering Purchases,164.05,BOOKER CASH & CARRY LTD
Revenue,Adult Services,5105652310,30.09.2015,Overbrook,Catering Purchases,85.94,BOOKER CASH & CARRY LTD
Revenue,Adult Services,5105647116,09.09.2015,The Laurels,Catering Purchases,6.98,BOOKER CASH & CARRY LTD
Revenue,Adult Services,5105652087,30.09.2015,The Laurels,Catering Purchases,-160.55,BOOKER CASH & CARRY LTD
Revenue,Adult Services,5105652088,30.09.2015,The Laurels,Catering Purchases,-11.69,BOOKER CASH & CARRY LTD
Revenue,Adult Services,5105647909,09.09.2015,The Laurels,Catering Purchases,90.29,BOOKER CASH & CARRY LTD
Revenue,Adult Services,5105647116,09.09.2015,The Laurels,Catering Purchases,84.84,BOOKER CASH & CARRY LTD
Revenue,Adult Services,5105650444,16.09.2015,The Laurels,Catering Purchases,73.28,BOOKER CASH & CARRY LTD
Revenue,Adult Services,5105649355,09.09.2015,The Laurels,Catering Purchases,197.13,BOOKER CASH & CARRY LTD
Revenue,Adult Services,5105649355,09.09.2015,The Laurels,Catering Purchases,6.39,BOOKER CASH & CARRY LTD
Revenue,Adult Services,5105650444,16.09.2015,The Laurels,Catering Purchases,3.88,BOOKER CASH & CARRY LTD
Revenue,Adult Services,5105649484,30.09.2015,The Laurels,Catering Purchases,172.24,BOOKER CASH & CARRY LTD
Revenue,Childrens Services,5105652322,30.09.2015,Island Learning Centre,Purchase of Books,47.50,BOOKPOINT LTD
Revenue,Childrens Services,5105652322,30.09.2015,Island Learning Centre,Purchase of Books,3.50,BOOKPOINT LTD
Revenue,Public Health,5105649852,16.09.2015,Contraception,Payment to Private Contractors,516.00,BOOTS THE CHEMIST LTD (Ryde)
Revenue,Public Health,5105649852,16.09.2015,Contraception,Payment to Private Contractors,83.20,BOOTS THE CHEMIST LTD (Ryde)
Revenue,Public Health,5105649852,16.09.2015,Contraception,Payment to Private Contractors,84.30,BOOTS THE CHEMIST LTD (Ryde)
Revenue,Public Health,5105649852,16.09.2015,Contraception,Payment to Private Contractors,3.55,BOOTS THE CHEMIST LTD (Ryde)
Revenue,Public Health,5105649852,16.09.2015,Drug Misuse - Adults,Payment to Private Contractors,567.00,BOOTS THE CHEMIST LTD (Ryde)
Revenue,Public Health,5105649852,16.09.2015,Drug Misuse - Adults,Payment to Private Contractors,704.00,BOOTS THE CHEMIST LTD (Ryde)
Revenue,Public Health,5105650907,18.09.2015,Drug Misuse - Adults,Payment to Private Contractors,256.00,BOOTS UK LTD (107 HIGH ST SANDOWN)
Revenue,Public Health,5105650907,18.09.2015,Drug Misuse - Adults,Payment to Private Contractors,87.50,BOOTS UK LTD (107 HIGH ST SANDOWN)
Revenue,Public Health,5105650920,18.09.2015,Contraception,Payment to Private Contractors,21.50,BOOTS UK LTD (FRESHWATER)
Revenue,Public Health,5105650920,18.09.2015,Contraception,Payment to Private Contractors,5.20,BOOTS UK LTD (FRESHWATER)
Revenue,Public Health,5105650920,18.09.2015,Drug Misuse - Adults,Payment to Private Contractors,44.00,BOOTS UK LTD (FRESHWATER)
Revenue,Public Health,5105650898,16.09.2015,Contraception,Payment to Private Contractors,580.50,BOOTS UK LTD (NEWPORT)
Revenue,Public Health,5105650898,16.09.2015,Contraception,Payment to Private Contractors,98.80,BOOTS UK LTD (NEWPORT)
Revenue,Public Health,5105650898,16.09.2015,Contraception,Payment to Private Contractors,112.40,BOOTS UK LTD (NEWPORT)
Revenue,Public Health,5105650898,16.09.2015,Contraception,Payment to Private Contractors,3.55,BOOTS UK LTD (NEWPORT)
Revenue,Public Health,5105650898,16.09.2015,Drug Misuse - Adults,Payment to Private Contractors,"1,018.00",BOOTS UK LTD (NEWPORT)
Revenue,Public Health,5105650862,16.09.2015,Contraception,Payment to Private Contractors,42.15,BOOTS UK LTD (SANDOWN LARGE STORE)
Revenue,Public Health,5105650862,16.09.2015,Contraception,Payment to Private Contractors,20.80,BOOTS UK LTD (SANDOWN LARGE STORE)
Revenue,Public Health,5105650862,16.09.2015,Contraception,Payment to Private Contractors,150.50,BOOTS UK LTD (SANDOWN LARGE STORE)
Revenue,Public Health,5105650862,16.09.2015,Drug Misuse - Adults,Payment to Private Contractors,74.00,BOOTS UK LTD (SANDOWN LARGE STORE)
Revenue,Public Health,5105650862,16.09.2015,Drug Misuse - Adults,Payment to Private Contractors,17.50,BOOTS UK LTD (SANDOWN LARGE STORE)
Revenue,Public Health,5105650858,16.09.2015,Contraception,Payment to Private Contractors,14.05,BOOTS UK LTD (SHANKLIN)
Revenue,Public Health,5105650858,16.09.2015,Contraception,Payment to Private Contractors,36.40,BOOTS UK LTD (SHANKLIN)
Revenue,Public Health,5105650858,16.09.2015,Contraception,Payment to Private Contractors,172.00,BOOTS UK LTD (SHANKLIN)
Revenue,Public Health,5105650858,16.09.2015,Drug Misuse - Adults,Payment to Private Contractors,52.00,BOOTS UK LTD (SHANKLIN)
Revenue,Public Health,5105650906,18.09.2015,Contraception,Payment to Private Contractors,5.20,BOOTS UK LTD (TOWER HOUSE)
Revenue,Public Health,5105650906,18.09.2015,Contraception,Payment to Private Contractors,21.50,BOOTS UK LTD (TOWER HOUSE)
Revenue,Public Health,5105650906,18.09.2015,Drug Misuse - Adults,Payment to Private Contractors,66.50,BOOTS UK LTD (TOWER HOUSE)
Revenue,Public Health,5105650871,16.09.2015,Contraception,Payment to Private Contractors,28.10,BOOTS UK LTD
Revenue,Public Health,5105650871,16.09.2015,Contraception,Payment to Private Contractors,5.20,BOOTS UK LTD
Revenue,Public Health,5105650871,16.09.2015,Contraception,Payment to Private Contractors,64.50,BOOTS UK LTD
Revenue,Public Health,5105650871,16.09.2015,Drug Misuse - Adults,Payment to Private Contractors,60.00,BOOTS UK LTD
Revenue,Public Health,5105650871,16.09.2015,Drug Misuse - Adults,Payment to Private Contractors,73.50,BOOTS UK LTD
Revenue,Public Health,5105650903,18.09.2015,Contraception,Payment to Private Contractors,21.50,BOOTS UK LTD (YLB BEMBRIDGE)
Revenue,Public Health,5105650903,18.09.2015,Contraception,Payment to Private Contractors,5.20,BOOTS UK LTD (YLB BEMBRIDGE)
Revenue,Childrens Services,5105651576,23.09.2015,Practice Teaching Training,Training,"1,950.00",BOURNEMOUTH UNIVERSITY
Revenue,Place,5105650470,16.09.2015,The Heights,Stock Purchases,164.75,BRAKE BROS LTD
Revenue,Place,5105651406,23.09.2015,Leaseholds by LA,Accommodation Costs - Leaseholder Payments,216.66,BRAMBLE LETTINGS
Revenue,Place,5105651272,18.09.2015,Leaseholds by LA,Accommodation Costs - Leaseholder Payments,"1,299.96",BRAMBLE LETTINGS
Revenue,Place,5105651272,18.09.2015,Leaseholds by LA,Accommodation Costs - Leaseholder Payments,"1,689.96",BRAMBLE LETTINGS
Revenue,Place,5105651406,23.09.2015,Leaseholds by LA,Accommodation Costs - Leaseholder Payments,281.66,BRAMBLE LETTINGS
Revenue,Place,5105651406,23.09.2015,Leaseholds by LA,Accommodation Costs - Leaseholder Payments,746.81,BRAMBLE LETTINGS
Revenue,Place,5105651406,23.09.2015,Leaseholds by LA,Accommodation Costs - Leaseholder Payments,746.81,BRAMBLE LETTINGS
Revenue,Place,5105651406,23.09.2015,Leaseholds by LA,Accommodation Costs - Leaseholder Payments,746.81,BRAMBLE LETTINGS
Revenue,Place,5105651406,23.09.2015,Leaseholds by LA,Accommodation Costs - Leaseholder Payments,746.81,BRAMBLE LETTINGS
Revenue,Place,5105651406,23.09.2015,Leaseholds by LA,Accommodation Costs - Leaseholder Payments,746.81,BRAMBLE LETTINGS
Revenue,Place,5105651406,23.09.2015,Leaseholds by LA,Accommodation Costs - Leaseholder Payments,746.81,BRAMBLE LETTINGS
Revenue,Place,5105651406,23.09.2015,Leaseholds by LA,Accommodation Costs - Leaseholder Payments,746.81,BRAMBLE LETTINGS
Revenue,Place,5105651406,23.09.2015,Leaseholds by LA,Accommodation Costs - Leaseholder Payments,746.81,BRAMBLE LETTINGS
Revenue,Place,5105651406,23.09.2015,Leaseholds by LA,Accommodation Costs - Leaseholder Payments,769.43,BRAMBLE LETTINGS
Revenue,Place,5105651406,23.09.2015,Leaseholds by LA,Accommodation Costs - Leaseholder Payments,746.81,BRAMBLE LETTINGS
Revenue,Place,5105651406,23.09.2015,Leaseholds by LA,Accommodation Costs - Leaseholder Payments,588.38,BRAMBLE LETTINGS
Revenue,Place,5105651406,23.09.2015,Leaseholds by LA,Accommodation Costs - Leaseholder Payments,746.81,BRAMBLE LETTINGS
Revenue,Place,5105651406,23.09.2015,Leaseholds by LA,Accommodation Costs - Leaseholder Payments,588.38,BRAMBLE LETTINGS
Revenue,Place,5105651406,23.09.2015,Leaseholds by LA,Accommodation Costs - Leaseholder Payments,588.38,BRAMBLE LETTINGS
Revenue,Place,5105651406,23.09.2015,Leaseholds by LA,Accommodation Costs - Leaseholder Payments,588.38,BRAMBLE LETTINGS
Revenue,Place,5105651406,23.09.2015,Leaseholds by LA,Accommodation Costs - Leaseholder Payments,588.38,BRAMBLE LETTINGS
Revenue,Place,5105651406,23.09.2015,Leaseholds by LA,Accommodation Costs - Leaseholder Payments,588.38,BRAMBLE LETTINGS
Revenue,Place,5105651406,23.09.2015,Leaseholds by LA,Accommodation Costs - Leaseholder Payments,746.81,BRAMBLE LETTINGS
Revenue,Place,5105651406,23.09.2015,Leaseholds by LA,Accommodation Costs - Leaseholder Payments,746.81,BRAMBLE LETTINGS
Revenue,Place,5105651406,23.09.2015,Leaseholds by LA,Accommodation Costs - Leaseholder Payments,746.81,BRAMBLE LETTINGS
Revenue,Place,5105651406,23.09.2015,Leaseholds by LA,Accommodation Costs - Leaseholder Payments,746.81,BRAMBLE LETTINGS
Revenue,Place,5105651406,23.09.2015,Leaseholds by LA,Accommodation Costs - Leaseholder Payments,746.81,BRAMBLE LETTINGS
Revenue,Childrens Services,5105648344,04.09.2015,Post 16 Independ. & Non-Maint. Special Schls & Independ. Specialist Provision,Charges from Independent Providers,"12,442.88",BRAMLEY CARE LTD T/A APPLE ORCHARD
Revenue,Childrens Services,5105649776,16.09.2015,Post 16 Independ. & Non-Maint. Special Schls & Independ. Specialist Provision,Charges from Independent Providers,"19,402.46",BRAMLEY CARE LTD T/A APPLE ORCHARD
Revenue,Childrens Services,5105648344,04.09.2015,Purchased Residential,Charges from Independent Providers,"21,186.53",BRAMLEY CARE LTD T/A APPLE ORCHARD
Revenue,Childrens Services,5105649776,16.09.2015,Purchased Residential,Charges from Independent Providers,"33,036.62",BRAMLEY CARE LTD T/A APPLE ORCHARD
Revenue,Adult Services,5105648502,09.09.2015,Elderly Mentally Ill Residential Care,Charges from Independent Providers,"1,781.36",BRIGHSTONE CARE LTD
Revenue,Adult Services,5105648502,09.09.2015,Elderly Frail Residential Care,Charges from Independent Providers,"1,700.44",BRIGHSTONE CARE LTD
Revenue,Adult Services,5105648502,09.09.2015,Elderly Frail Residential Care,Charges from Independent Providers,"2,093.84",BRIGHSTONE CARE LTD
Revenue,Adult Services,5105649490,11.09.2015,Plean Dene,Grounds Maintenance,387.49,BRIGHSTONE LANDSCAPING LTD
Revenue,Adult Services,5105649490,11.09.2015,Westminster House,Grounds Maintenance,48.00,BRIGHSTONE LANDSCAPING LTD
Revenue,Adult Services,5105649490,11.09.2015,Saxonbury,Grounds Maintenance,48.00,BRIGHSTONE LANDSCAPING LTD
Revenue,Adult Services,5105649490,11.09.2015,Highmead,Grounds Maintenance,126.00,BRIGHSTONE LANDSCAPING LTD
Revenue,Place,5105648314,04.09.2015,Beach Cleaning,Payment to Private Contractors,495.00,BRIGHSTONE LANDSCAPING LTD
Revenue,Place,5105650460,16.09.2015,Beach Cleaning,Payment to Private Contractors,50.00,BRIGHSTONE LANDSCAPING LTD
Revenue,Place,5105649298,09.09.2015,Beach Cleaning,Payment to Private Contractors,295.00,BRIGHSTONE LANDSCAPING LTD
Revenue,Place,5105649376,09.09.2015,Beach Cleaning,Payment to Private Contractors,25.00,BRIGHSTONE LANDSCAPING LTD
Revenue,Place,5105651508,23.09.2015,Beach Cleaning,Payment to Private Contractors,294.00,BRIGHSTONE LANDSCAPING LTD
Revenue,Place,5105650459,16.09.2015,Beach Cleaning,Payment to Private Contractors,"1,027.00",BRIGHSTONE LANDSCAPING LTD
Revenue,Place,5105651473,23.09.2015,Beach Cleaning,Payment to Private Contractors,100.00,BRIGHSTONE LANDSCAPING LTD
Revenue,Place,5105650458,16.09.2015,Beach Cleaning,Beach Cleansing Contractors,"15,689.13",BRIGHSTONE LANDSCAPING LTD
Revenue,Adult Services,5105649490,11.09.2015,Seagulls,Grounds Maintenance,48.00,BRIGHSTONE LANDSCAPING LTD
Revenue,Adult Services,5105649490,11.09.2015,40 Venner Avenue,Grounds Maintenance,48.00,BRIGHSTONE LANDSCAPING LTD
Revenue,Childrens Services,5105652010,25.09.2015,HCC Property Services SLA,Payment to Private Contractors,612.00,BRIGHSTONE LANDSCAPING LTD
Revenue,Adult Services,5105649490,11.09.2015,Overbrook,Grounds Maintenance,48.00,BRIGHSTONE LANDSCAPING LTD
Revenue,Adult Services,5105649490,11.09.2015,The Laurels,Grounds Maintenance,126.00,BRIGHSTONE LANDSCAPING LTD
Revenue,Resources,5105647115,02.09.2015,Fraud Section,Sundry Office Expenses,25.50,BRIGHTON AND HOVE CITY COUNCIL
Revenue,Resources,5105647115,02.09.2015,Fraud Section,Sundry Office Expenses,160.00,BRIGHTON AND HOVE CITY COUNCIL
Revenue,Place,5105650934,18.09.2015,Parking Management,Professional Services,866.00,BRITISH PARKING ASSOCIATION
Revenue,Adult Services,5105647960,11.09.2015,S75 Integrated Community Equipment Store,Operational Equipment,"2,861.73",BRITISH RED CROSS SOCIETY
Revenue,Adult Services,5105649293,16.09.2015,S75 Integrated Community Equipment Store,Payments to Voluntary and Other Associations,"82,685.00",BRITISH RED CROSS SOCIETY
Revenue,Place,5105649665,16.09.2015,Fire Technical Support,Vehicle Fuel Costs,162.92,BROADWAY GARAGE
Revenue,Adult Services,5105649403,16.09.2015,Adult Social Care Enterprise House,Hire of facilities,600.00,BROOKSIDE HEALTH CENTRE
Revenue,Resources,5105648315,04.09.2015,Litigation Costs,Legal Fees - Other Parties,35.00,BROOMFIELD INVESTIGATIONS
Revenue,Place,5105651460,23.09.2015,Parks/ Gardens Inspectors,Operational Equipment,41.50,BROXAP LTD
Revenue,Resources,5105651220,18.09.2015,Telephones,Fixed Telephones,743.18,BT FINANCE
Capital,Place,5105651682,23.09.2015,Parks and Gardens Capital,Payment to Contractors - Capital,"1,170,088.25",BT PLC
Revenue,Place,5105647908,02.09.2015,Transport contracts,Payment to Private Contractors,"5,021.00",BUCKINGHAMSHIRE COUNTY COUNCIL
Revenue,Adult Services,5105648522,09.09.2015,REDACTED PERSONAL DATA,Order Settlement to Bal Sht GL,"1,781.36",BUCKLAND CARE LTD
Revenue,Adult Services,5105648522,09.09.2015,Elderly Mentally Ill Residential Care,Charges from Independent Providers,"1,781.36",BUCKLAND CARE LTD
Revenue,Adult Services,5105648522,09.09.2015,Elderly Mentally Ill Residential Care,Charges from Independent Providers,"2,093.84",BUCKLAND CARE LTD
Revenue,Adult Services,5105648522,09.09.2015,Elderly Mentally Ill Residential Care,Charges from Independent Providers,"2,093.84",BUCKLAND CARE LTD
Revenue,Adult Services,5105648522,09.09.2015,Elderly Mentally Ill Residential Care,Charges from Independent Providers,"1,781.36",BUCKLAND CARE LTD
Revenue,Adult Services,5105648522,09.09.2015,Elderly Mentally Ill Residential Care,Charges from Independent Providers,"2,093.84",BUCKLAND CARE LTD
Revenue,Adult Services,5105648522,09.09.2015,Elderly Mentally Ill Residential Care,Charges from Independent Providers,"2,093.84",BUCKLAND CARE LTD
Revenue,Adult Services,5105648522,09.09.2015,Elderly Mentally Ill Residential Care,Charges from Independent Providers,"1,781.36",BUCKLAND CARE LTD
Revenue,Adult Services,5105648522,09.09.2015,Elderly Mentally Ill Residential Care,Charges from Independent Providers,"2,093.84",BUCKLAND CARE LTD
Revenue,Adult Services,5105648522,09.09.2015,Elderly Mentally Ill Residential Care,Charges from Independent Providers,"2,093.84",BUCKLAND CARE LTD
Revenue,Adult Services,5105648522,09.09.2015,Elderly Frail Residential Care,Charges from Independent Providers,"1,700.44",BUCKLAND CARE LTD
Revenue,Adult Services,5105649441,09.09.2015,Elderly Frail Residential Care,Charges from Independent Providers,"2,093.84",BUCKLAND CARE LTD
Revenue,Adult Services,5105648522,09.09.2015,Elderly Frail Residential Care,Charges from Independent Providers,"2,093.84",BUCKLAND CARE LTD
Revenue,Adult Services,5105648522,09.09.2015,Elderly Frail Residential Care,Charges from Independent Providers,"1,700.44",BUCKLAND CARE LTD
Revenue,Adult Services,5105648522,09.09.2015,Elderly Frail Residential Care,Charges from Independent Providers,"2,093.84",BUCKLAND CARE LTD
Revenue,Adult Services,5105648522,09.09.2015,Elderly Frail Residential Care,Charges from Independent Providers,"1,700.44",BUCKLAND CARE LTD
Revenue,Adult Services,5105648522,09.09.2015,Elderly Frail Residential Care,Charges from Independent Providers,"2,093.84",BUCKLAND CARE LTD
Revenue,Adult Services,5105651364,23.09.2015,Elderly Frail Residential Care,Charges from Independent Providers,299.12,BUCKLAND CARE LTD
Revenue,Adult Services,5105651364,23.09.2015,Elderly Frail Residential Care,Charges from Independent Providers,"2,093.84",BUCKLAND CARE LTD
Revenue,Adult Services,5105650416,16.09.2015,Elderly Frail Residential Care,Charges from Independent Providers,"2,168.62",BUCKLAND CARE LTD
Revenue,Adult Services,5105650416,16.09.2015,Elderly Frail Residential Care,Charges from Independent Providers,"2,611.39",BUCKLAND CARE LTD
Revenue,Adult Services,5105648522,09.09.2015,Elderly Frail Residential Care,Charges from Independent Providers,"2,093.84",BUCKLAND CARE LTD
Revenue,Adult Services,5105648522,09.09.2015,Elderly Frail Residential Care,Charges from Independent Providers,"2,093.84",BUCKLAND CARE LTD
Revenue,Adult Services,5105648508,09.09.2015,Elderly Mentally Ill Nursing Island,Charges from Independent Providers,"2,784.60",BUCKLAND CARE LTD
Revenue,Adult Services,5105648508,09.09.2015,Elderly Mentally Ill Nursing Island,Charges from Independent Providers,"2,784.60",BUCKLAND CARE LTD
Revenue,Adult Services,5105648508,09.09.2015,Elderly Mentally Ill Nursing Island,Charges from Independent Providers,"2,784.60",BUCKLAND CARE LTD
Revenue,Adult Services,5105648508,09.09.2015,Elderly Mentally Ill Nursing Island,Charges from Independent Providers,"2,784.60",BUCKLAND CARE LTD
Revenue,Adult Services,5105649304,09.09.2015,Elderly Mentally Ill Nursing Island,Charges from Independent Providers,"2,784.60",BUCKLAND CARE LTD
Revenue,Adult Services,5105648508,09.09.2015,Elderly Mentally Ill Nursing Island,Regular Respite Care,"2,784.60",BUCKLAND CARE LTD
Revenue,Adult Services,5105651986,25.09.2015,Elderly Mentally Ill Nursing Island,Charges from Independent Providers,"2,287.35",BUCKLAND CARE LTD
Revenue,Adult Services,5105648508,09.09.2015,REDACTED PERSONAL DATA,Order Settlement to Bal Sht GL,"2,336.60",BUCKLAND CARE LTD
Revenue,Adult Services,5105648508,09.09.2015,REDACTED PERSONAL DATA,Order Settlement to Bal Sht GL,"2,336.60",BUCKLAND CARE LTD
Revenue,Adult Services,5105648508,09.09.2015,Funded Nursing Care Island,Charges from Independent Providers,448.00,BUCKLAND CARE LTD
Revenue,Adult Services,5105648508,09.09.2015,Funded Nursing Care Island,Charges from Independent Providers,448.00,BUCKLAND CARE LTD
Revenue,Adult Services,5105648508,09.09.2015,Funded Nursing Care Island,Charges from Independent Providers,448.00,BUCKLAND CARE LTD
Revenue,Adult Services,5105648508,09.09.2015,Funded Nursing Care Island,Charges from Independent Providers,448.00,BUCKLAND CARE LTD
Revenue,Adult Services,5105648508,09.09.2015,Funded Nursing Care Island,Charges from Independent Providers,448.00,BUCKLAND CARE LTD
Revenue,Adult Services,5105648508,09.09.2015,Funded Nursing Care Island,Charges from Independent Providers,448.00,BUCKLAND CARE LTD
Revenue,Adult Services,5105648508,09.09.2015,Funded Nursing Care Island,Charges from Independent Providers,448.00,BUCKLAND CARE LTD
Revenue,Adult Services,5105648508,09.09.2015,Funded Nursing Care Island,Charges from Independent Providers,448.00,BUCKLAND CARE LTD
Revenue,Adult Services,5105648508,09.09.2015,Funded Nursing Care Island,Charges from Independent Providers,448.00,BUCKLAND CARE LTD
Revenue,Adult Services,5105648508,09.09.2015,Funded Nursing Care Island,Charges from Independent Providers,448.00,BUCKLAND CARE LTD
Revenue,Adult Services,5105651651,23.09.2015,Funded Nursing Care Island,Charges from Independent Providers,304.00,BUCKLAND CARE LTD
Revenue,Adult Services,5105648508,09.09.2015,Funded Nursing Care Island,Charges from Independent Providers,448.00,BUCKLAND CARE LTD
Revenue,Adult Services,5105648508,09.09.2015,Funded Nursing Care Island,Charges from Independent Providers,448.00,BUCKLAND CARE LTD
Revenue,Adult Services,5105648508,09.09.2015,Funded Nursing Care Island,Charges from Independent Providers,448.00,BUCKLAND CARE LTD
Revenue,Adult Services,5105649838,16.09.2015,Elderly Frail Nursing Island,Charges from Independent Providers,"1,790.10",BUCKLAND CARE LTD
Revenue,Adult Services,5105651651,23.09.2015,Elderly Frail Nursing Island,Charges from Independent Providers,"2,088.45",BUCKLAND CARE LTD
Revenue,Adult Services,5105651651,23.09.2015,Elderly Frail Nursing Island,Charges from Independent Providers,"2,784.60",BUCKLAND CARE LTD
Revenue,Adult Services,5105648508,09.09.2015,Physical Disability Nursing Island,Charges from Independent Providers,"2,784.60",BUCKLAND CARE LTD
Revenue,Adult Services,5105648015,02.09.2015,Elderly Frail Nursing Island,Charges from Independent Providers,"1,790.10",BUCKLAND CARE LTD
Revenue,Adult Services,5105648015,02.09.2015,Elderly Frail Nursing Island,Charges from Independent Providers,"5,569.20",BUCKLAND CARE LTD
Revenue,Adult Services,5105648508,09.09.2015,Elderly Frail Nursing Island,Charges from Independent Providers,"2,784.60",BUCKLAND CARE LTD
Revenue,Adult Services,5105648508,09.09.2015,Elderly Frail Nursing Island,Charges from Independent Providers,"2,784.60",BUCKLAND CARE LTD
Revenue,Adult Services,5105648382,04.09.2015,Elderly Frail Nursing Island,Charges from Independent Providers,"2,386.80",BUCKLAND CARE LTD
Revenue,Adult Services,5105648508,09.09.2015,Elderly Frail Nursing Island,Charges from Independent Providers,"2,486.25",BUCKLAND CARE LTD
Revenue,Adult Services,5105648508,09.09.2015,Elderly Frail Nursing Island,Charges from Independent Providers,"2,784.60",BUCKLAND CARE LTD
Revenue,Adult Services,5105648508,09.09.2015,Elderly Frail Nursing Island,Charges from Independent Providers,"2,784.60",BUCKLAND CARE LTD
Revenue,Adult Services,5105648508,09.09.2015,Elderly Frail Nursing Island,Charges from Independent Providers,"2,784.60",BUCKLAND CARE LTD
Revenue,Adult Services,5105648508,09.09.2015,Elderly Frail Nursing Island,Charges from Independent Providers,"2,784.60",BUCKLAND CARE LTD
Revenue,Adult Services,5105652118,30.09.2015,Plean Dene,Consumable Cleaning Materials,48.05,BUNZL CLEANING & HYGIENE SUPPLIES LTD
Revenue,Adult Services,5105648817,09.09.2015,Elderly Frail Nursing Mainland,Charges from Independent Providers,"1,961.68",BUPA CARE HOME (BNH) LTD
Revenue,Adult Services,5105649693,11.09.2015,Mental Health Residential Care,Charges from Independent Providers,"16,907.94",BUPA CARE HOMES LTD
Revenue,Adult Services,5105649693,11.09.2015,Mental Health Residential Care,Charges from Independent Providers,"12,040.56",BUPA CARE HOMES LTD
Capital,Place,5105651632,23.09.2015,Cowes Floating Brdge,Payment to Contractors - Capital,"25,906.81",BURNESS CORLETT
Revenue,Place,5105652211,30.09.2015,Archives,Publications,55.00,BUSINESS ARCHIVE COUNCIL
Revenue,Adult Services,5105652194,30.09.2015,Mental Health Day Services,Grounds Maintenance,175.00,C & J GROUND MAINTENANCE
Revenue,Adult Services,5105652280,30.09.2015,Mental Health Day Services,Grounds Maintenance,300.00,C & J GROUND MAINTENANCE
Revenue,Childrens Services,5105651089,18.09.2015,Children placed with Family&Friends,Boarding Out Allowances,116.25,REDACTED PERSONAL DATA
Revenue,Childrens Services,5105651089,18.09.2015,Children placed with Family&Friends,Boarding Out Allowances,164.30,REDACTED PERSONAL DATA
Revenue,Childrens Services,5105649576,11.09.2015,Children placed with Family&Friends,Boarding Out Allowances,116.25,REDACTED PERSONAL DATA
Revenue,Childrens Services,5105649576,11.09.2015,Children placed with Family&Friends,Boarding Out Allowances,164.30,REDACTED PERSONAL DATA
Revenue,Childrens Services,5105651796,25.09.2015,Children placed with Family&Friends,Boarding Out Allowances,116.25,REDACTED PERSONAL DATA
Revenue,Childrens Services,5105651796,25.09.2015,Children placed with Family&Friends,Boarding Out Allowances,164.30,REDACTED PERSONAL DATA
Revenue,Childrens Services,5105648160,04.09.2015,Children placed with Family&Friends,Boarding Out Allowances,116.25,REDACTED PERSONAL DATA
Revenue,Childrens Services,5105648160,04.09.2015,Children placed with Family&Friends,Boarding Out Allowances,164.30,REDACTED PERSONAL DATA
Revenue,Childrens Services,5105651776,25.09.2015,Special Guardianship Order Costs,Support Children,125.79,REDACTED PERSONAL DATA
Revenue,Childrens Services,5105651069,18.09.2015,Special Guardianship Order Costs,Support Children,125.79,REDACTED PERSONAL DATA
Revenue,Childrens Services,5105648140,04.09.2015,Special Guardianship Order Costs,Support Children,125.79,REDACTED PERSONAL DATA
Revenue,Childrens Services,5105649556,11.09.2015,Special Guardianship Order Costs,Support Children,125.79,REDACTED PERSONAL DATA
Revenue,Place,5105652038,30.09.2015,Fort Victoria,General Materials,72.24,C BREWER & SONS LTD
Revenue,Childrens Services,5105651116,18.09.2015,Children placed with Family&Friends,Boarding Out Allowances,142.86,REDACTED PERSONAL DATA
Revenue,Childrens Services,5105651823,25.09.2015,Children placed with Family&Friends,Boarding Out Allowances,142.86,REDACTED PERSONAL DATA
Revenue,Childrens Services,5105649603,11.09.2015,Children placed with Family&Friends,Boarding Out Allowances,142.86,REDACTED PERSONAL DATA
Revenue,Childrens Services,5105648187,04.09.2015,Children placed with Family&Friends,Boarding Out Allowances,142.86,REDACTED PERSONAL DATA
Revenue,Adult Services,5105649493,11.09.2015,No-Barriers,Training,160.00,REDACTED PERSONAL DATA
Revenue,Adult Services,5105652239,30.09.2015,No-Barriers,Training,80.00,REDACTED PERSONAL DATA
Revenue,Childrens Services,5105651099,18.09.2015,Adoption Costs,Support Children,125.79,REDACTED PERSONAL DATA
Revenue,Childrens Services,5105651099,18.09.2015,Adoption Costs,Support Children,132.69,REDACTED PERSONAL DATA
Revenue,Childrens Services,5105649586,11.09.2015,Adoption Costs,Support Children,125.79,REDACTED PERSONAL DATA
Revenue,Childrens Services,5105649586,11.09.2015,Adoption Costs,Support Children,132.69,REDACTED PERSONAL DATA
Revenue,Childrens Services,5105648170,04.09.2015,Adoption Costs,Support Children,125.79,REDACTED PERSONAL DATA
Revenue,Childrens Services,5105648170,04.09.2015,Adoption Costs,Support Children,132.69,REDACTED PERSONAL DATA
Revenue,Childrens Services,5105651806,25.09.2015,Adoption Costs,Support Children,125.79,REDACTED PERSONAL DATA
Revenue,Childrens Services,5105651806,25.09.2015,Adoption Costs,Support Children,132.69,REDACTED PERSONAL DATA
Revenue,Resources,5105651443,23.09.2015,Staff Benefits,Payment to Private Contractors,166.50,REDACTED PERSONAL DATA
Revenue,Childrens Services,5105651082,18.09.2015,Special Guardianship Order Costs,Support Children,125.79,REDACTED PERSONAL DATA
Revenue,Childrens Services,5105651789,25.09.2015,Special Guardianship Order Costs,Support Children,125.79,REDACTED PERSONAL DATA
Revenue,Childrens Services,5105649569,11.09.2015,Special Guardianship Order Costs,Support Children,125.79,REDACTED PERSONAL DATA
Revenue,Childrens Services,5105648153,04.09.2015,Special Guardianship Order Costs,Support Children,125.79,REDACTED PERSONAL DATA
Revenue,Childrens Services,5105651112,18.09.2015,In-house Fostering,Boarding Out Allowances,202.58,REDACTED PERSONAL DATA
Revenue,Childrens Services,5105651112,18.09.2015,In-house Fostering,Boarding Out Allowances,162.73,REDACTED PERSONAL DATA
Revenue,Childrens Services,5105651819,25.09.2015,In-house Fostering,Boarding Out Allowances,202.58,REDACTED PERSONAL DATA
Revenue,Childrens Services,5105651819,25.09.2015,In-house Fostering,Boarding Out Allowances,162.73,REDACTED PERSONAL DATA
Revenue,Childrens Services,5105648183,04.09.2015,In-house Fostering,Boarding Out Allowances,202.58,REDACTED PERSONAL DATA
Revenue,Childrens Services,5105648183,04.09.2015,In-house Fostering,Boarding Out Allowances,162.73,REDACTED PERSONAL DATA
Revenue,Childrens Services,5105649599,11.09.2015,In-house Fostering,Boarding Out Allowances,202.58,REDACTED PERSONAL DATA
Revenue,Childrens Services,5105649599,11.09.2015,In-house Fostering,Boarding Out Allowances,162.73,REDACTED PERSONAL DATA
Revenue,Childrens Services,5105651071,18.09.2015,Adoption Costs,Support Children,168.39,REDACTED PERSONAL DATA
Revenue,Childrens Services,5105651071,18.09.2015,Adoption Costs,Support Children,207.73,REDACTED PERSONAL DATA
Revenue,Childrens Services,5105649558,11.09.2015,Adoption Costs,Support Children,207.73,REDACTED PERSONAL DATA
Revenue,Childrens Services,5105651778,25.09.2015,Adoption Costs,Support Children,168.39,REDACTED PERSONAL DATA
Revenue,Childrens Services,5105651778,25.09.2015,Adoption Costs,Support Children,207.73,REDACTED PERSONAL DATA
Revenue,Childrens Services,5105648142,04.09.2015,Adoption Costs,Support Children,168.39,REDACTED PERSONAL DATA
Revenue,Childrens Services,5105648142,04.09.2015,Adoption Costs,Support Children,207.73,REDACTED PERSONAL DATA
Revenue,Childrens Services,5105649558,11.09.2015,Adoption Costs,Support Children,168.39,REDACTED PERSONAL DATA
Revenue,Childrens Services,5105649621,11.09.2015,Special Guardianship Order Costs,Support Children,116.80,REDACTED PERSONAL DATA
Revenue,Childrens Services,5105651133,18.09.2015,Special Guardianship Order Costs,Support Children,116.80,REDACTED PERSONAL DATA
Revenue,Childrens Services,5105651840,25.09.2015,Special Guardianship Order Costs,Support Children,116.80,REDACTED PERSONAL DATA
Revenue,Childrens Services,5105648205,04.09.2015,Special Guardianship Order Costs,Support Children,116.80,REDACTED PERSONAL DATA
Revenue,Childrens Services,5105651066,18.09.2015,In-house Fostering,Boarding Out Allowances,246.44,REDACTED PERSONAL DATA
Revenue,Childrens Services,5105651066,18.09.2015,In-house Fostering,Boarding Out Allowances,295.00,REDACTED PERSONAL DATA
Revenue,Childrens Services,5105651066,18.09.2015,In-house Fostering,Boarding Out Allowances,10.00,REDACTED PERSONAL DATA
Revenue,Childrens Services,5105651773,25.09.2015,In-house Fostering,Boarding Out Allowances,246.44,REDACTED PERSONAL DATA
Revenue,Childrens Services,5105651773,25.09.2015,In-house Fostering,Boarding Out Allowances,295.00,REDACTED PERSONAL DATA
Revenue,Childrens Services,5105651773,25.09.2015,In-house Fostering,Boarding Out Allowances,10.00,REDACTED PERSONAL DATA
Revenue,Childrens Services,5105648137,04.09.2015,In-house Fostering,Boarding Out Allowances,246.44,REDACTED PERSONAL DATA
Revenue,Childrens Services,5105648137,04.09.2015,In-house Fostering,Boarding Out Allowances,295.00,REDACTED PERSONAL DATA
Revenue,Childrens Services,5105648137,04.09.2015,In-house Fostering,Boarding Out Allowances,10.00,REDACTED PERSONAL DATA
Revenue,Childrens Services,5105649553,11.09.2015,In-house Fostering,Boarding Out Allowances,246.44,REDACTED PERSONAL DATA
Revenue,Childrens Services,5105649553,11.09.2015,In-house Fostering,Boarding Out Allowances,295.00,REDACTED PERSONAL DATA
Revenue,Childrens Services,5105649553,11.09.2015,In-house Fostering,Boarding Out Allowances,10.00,REDACTED PERSONAL DATA
Revenue,Childrens Services,5105651752,25.09.2015,In-house Fostering,Boarding Out Allowances,204.10,REDACTED PERSONAL DATA
Revenue,Childrens Services,5105651752,25.09.2015,In-house Fostering,Boarding Out Allowances,172.70,REDACTED PERSONAL DATA
Revenue,Childrens Services,5105651752,25.09.2015,In-house Fostering,Boarding Out Allowances,97.90,REDACTED PERSONAL DATA
Revenue,Childrens Services,5105651045,18.09.2015,In-house Fostering,Boarding Out Allowances,246.44,REDACTED PERSONAL DATA
Revenue,Childrens Services,5105651045,18.09.2015,In-house Fostering,Boarding Out Allowances,15.00,REDACTED PERSONAL DATA
Revenue,Childrens Services,5105651752,25.09.2015,In-house Fostering,Boarding Out Allowances,246.44,REDACTED PERSONAL DATA
Revenue,Childrens Services,5105651752,25.09.2015,In-house Fostering,Boarding Out Allowances,15.00,REDACTED PERSONAL DATA
Revenue,Childrens Services,5105648115,04.09.2015,In-house Fostering,Boarding Out Allowances,246.44,REDACTED PERSONAL DATA
Revenue,Childrens Services,5105648115,04.09.2015,In-house Fostering,Boarding Out Allowances,15.00,REDACTED PERSONAL DATA
Revenue,Childrens Services,5105649532,11.09.2015,In-house Fostering,Boarding Out Allowances,246.44,REDACTED PERSONAL DATA
Revenue,Childrens Services,5105649532,11.09.2015,In-house Fostering,Boarding Out Allowances,15.00,REDACTED PERSONAL DATA
Revenue,Childrens Services,5105651768,25.09.2015,Children placed with Family&Friends,Boarding Out Allowances,246.44,REDACTED PERSONAL DATA
Revenue,Childrens Services,5105651768,25.09.2015,Children placed with Family&Friends,Boarding Out Allowances,135.00,REDACTED PERSONAL DATA
Revenue,Childrens Services,5105651061,18.09.2015,Children placed with Family&Friends,Boarding Out Allowances,246.44,REDACTED PERSONAL DATA
Revenue,Childrens Services,5105651061,18.09.2015,Children placed with Family&Friends,Boarding Out Allowances,135.00,REDACTED PERSONAL DATA
Revenue,Childrens Services,5105648132,04.09.2015,Children placed with Family&Friends,Boarding Out Allowances,246.44,REDACTED PERSONAL DATA
Revenue,Childrens Services,5105648132,04.09.2015,Children placed with Family&Friends,Boarding Out Allowances,135.00,REDACTED PERSONAL DATA
Revenue,Childrens Services,5105649548,11.09.2015,Children placed with Family&Friends,Boarding Out Allowances,246.44,REDACTED PERSONAL DATA
Revenue,Childrens Services,5105649548,11.09.2015,Children placed with Family&Friends,Boarding Out Allowances,135.00,REDACTED PERSONAL DATA
Revenue,Place,5105649198,09.09.2015,Play Areas Health & Safety work,Payment to Private Contractors,665.25,C N SERVICES
Revenue,Place,5105649194,09.09.2015,Beach Safety & Inspection / Beach Awards,Payment to Private Contractors,410.75,C N SERVICES
Revenue,Place,5105649236,09.09.2015,Other Grounds Maintenance,Payment to Private Contractors,"1,957.39",C N SERVICES
Revenue,Place,5105647888,02.09.2015,Shanklin Lift,Payment to Private Contractors,48.00,C N SERVICES
Revenue,Place,5105649194,09.09.2015,Misc dinghy parks,Payment to Private Contractors,90.00,C N SERVICES
Revenue,Place,5105647889,02.09.2015,Coast Protection,Payment to Private Contractors,150.00,C N SERVICES
Revenue,Childrens Services,5105649580,11.09.2015,Special Guardianship Order Costs,Support Children,161.49,REDACTED PERSONAL DATA
Revenue,Childrens Services,5105651093,18.09.2015,Special Guardianship Order Costs,Support Children,161.49,REDACTED PERSONAL DATA
Revenue,Childrens Services,5105648164,04.09.2015,Special Guardianship Order Costs,Support Children,161.49,REDACTED PERSONAL DATA
Revenue,Childrens Services,5105651800,25.09.2015,Special Guardianship Order Costs,Support Children,161.49,REDACTED PERSONAL DATA
Revenue,Adult Services,5105648467,09.09.2015,Learning Disability Residential Care,Charges from Independent Providers,"1,894.76",REDACTED PERSONAL DATA
Revenue,Childrens Services,5105651774,25.09.2015,Adoption Costs,Support Children,132.69,REDACTED PERSONAL DATA
Revenue,Childrens Services,5105651067,18.09.2015,Adoption Costs,Support Children,132.69,REDACTED PERSONAL DATA
Revenue,Childrens Services,5105649554,11.09.2015,Adoption Costs,Support Children,132.69,REDACTED PERSONAL DATA
Revenue,Childrens Services,5105648138,04.09.2015,Adoption Costs,Support Children,132.69,REDACTED PERSONAL DATA
Revenue,Childrens Services,5105647979,04.09.2015,LSCB (Local Safeguarding Childrens Board),Professional Services,687.50,CHILDREN ACT ENTERPRISES LTD
Revenue,Childrens Services,5105647981,04.09.2015,LSCB (Local Safeguarding Childrens Board),Professional Services,962.50,CHILDREN ACT ENTERPRISES LTD
Revenue,Childrens Services,5105649289,16.09.2015,LSCB (Local Safeguarding Childrens Board),Professional Services,275.00,CHILDREN ACT ENTERPRISES LTD
Revenue,Place,5105647439,04.09.2015,Rights of Way Operations,Payment to Private Contractors,13.75,CALOR GAS LIMITED
Revenue,Childrens Services,5105651529,23.09.2015,Pre 16 Independ. & Non-Maint. Special Schls & Independ. Specialist Provision,Charges from Independent Providers,"22,149.50",CAMBIAN ASPERGER SYNDROME SERVICES LTD
Revenue,Childrens Services,5105651529,23.09.2015,NHS Funded Placements,Charges from Independent Providers,"2,077.62",CAMBIAN ASPERGER SYNDROME SERVICES LTD
Revenue,Childrens Services,5105651529,23.09.2015,Purchased Residential,Charges from Independent Providers,"20,071.88",CAMBIAN ASPERGER SYNDROME SERVICES LTD
Revenue,Adult Services,5105651628,25.09.2015,Saxonbury,Cleaning Contracts,7.20,CANNON HYGIENE
Revenue,Adult Services,5400002041,17.04.2015,Saxonbury,Professional Services,4.38,CANNON HYGIENE
Revenue,Adult Services,5105651628,25.09.2015,31 Carter Avenue,Cleaning Contracts,12.00,CANNON HYGIENE
Revenue,Adult Services,5105651628,25.09.2015,Seagulls,Cleaning Contracts,12.00,CANNON HYGIENE
Revenue,Adult Services,5400002041,17.04.2015,Seagulls,Professional Services,1.60,CANNON HYGIENE
Revenue,Place,5105651577,23.09.2015,Print Unit,Photocopying Costs,"1,624.38",CANON (UK) LTD
Revenue,Childrens Services,5105651884,25.09.2015,Workforce Development - Early Years,Training,"1,050.00",CANTERBURY CHRIST CHURCH
Revenue,Corporate Items,5105647492,09.09.2015,Miscellaneous Non-rechargeable,Professional Services,"1,855.02",CAPACITY GRID T/A LIBERATA UK LTD
Revenue,Corporate Items,5105651595,23.09.2015,Miscellaneous Non-rechargeable,Professional Services,"16,967.23",CAPACITY GRID T/A LIBERATA UK LTD
Capital,Place,5105650880,16.09.2015,Coastal Capital Schemes,External Design and Supervision Fees,"4,215.49",CAPITA
Capital,Place,5105650448,16.09.2015,Coastal Capital Schemes,External Design and Supervision Fees,"9,294.58",CAPITA
Revenue,Childrens Services,5105652007,25.09.2015,Childrens Services Finance Team,Licences,"2,672.67",CAPITA BUSINESS SERVICES LTD
Revenue,Childrens Services,5105652007,25.09.2015,Childrens Services Finance Team,Licences,539.79,CAPITA BUSINESS SERVICES LTD
Capital,Resources,5105649420,25.09.2015,Server Farm,ICT Hardware & Software - Capital,"5,880.00",CAPITA BUSINESS SERVICES LTD
Revenue,Adult Services,5105650706,16.09.2015,Mental Health Homecare,Charges from Independent Providers,267.40,CARE FIRST IW LTD
Revenue,Adult Services,5105650740,16.09.2015,Mental Health Homecare,Charges from Independent Providers,"1,230.04",CARE FIRST IW LTD
Revenue,Adult Services,5105650717,16.09.2015,Physical Disability Homecare,Charges from Independent Providers,183.36,CARE FIRST IW LTD
Revenue,Adult Services,5105650742,16.09.2015,Physical Disability Homecare,Charges from Independent Providers,152.80,CARE FIRST IW LTD
Revenue,Adult Services,5105650732,16.09.2015,Physical Disability Homecare,Charges from Independent Providers,91.68,CARE FIRST IW LTD
Revenue,Adult Services,5105650755,16.09.2015,Elderly Frail Homecare,Regular Respite Care,152.80,CARE FIRST IW LTD
Revenue,Adult Services,5105650725,16.09.2015,Elderly Frail Homecare,Regular Respite Care,122.24,CARE FIRST IW LTD
Revenue,Adult Services,5105650726,16.09.2015,Elderly Frail Homecare,Charges from Independent Providers,267.40,CARE FIRST IW LTD
Revenue,Adult Services,5105650711,16.09.2015,Elderly Frail Homecare,Charges from Independent Providers,305.60,CARE FIRST IW LTD
Revenue,Adult Services,5105650716,16.09.2015,Elderly Frail Homecare,Charges from Independent Providers,668.50,CARE FIRST IW LTD
Revenue,Adult Services,5105650754,16.09.2015,Elderly Frail Homecare,Regular Respite Care,152.80,CARE FIRST IW LTD
Revenue,Adult Services,5105650730,16.09.2015,Elderly Frail Homecare,Regular Respite Care,122.24,CARE FIRST IW LTD
Revenue,Adult Services,5105650734,16.09.2015,Elderly Frail Homecare,Regular Respite Care,152.80,CARE FIRST IW LTD
Revenue,Adult Services,5105650737,16.09.2015,Elderly Frail Homecare,Regular Respite Care,152.80,CARE FIRST IW LTD
Revenue,Adult Services,5105650234,16.09.2015,Elderly Frail Homecare,Regular Respite Care,30.56,CARE FIRST IW LTD
Revenue,Adult Services,5105650236,16.09.2015,Elderly Frail Homecare,Regular Respite Care,91.68,CARE FIRST IW LTD
Revenue,Adult Services,5105650748,16.09.2015,Elderly Frail Homecare,Regular Respite Care,122.24,CARE FIRST IW LTD
Revenue,Adult Services,5105650744,16.09.2015,Elderly Frail Homecare,Regular Respite Care,183.36,CARE FIRST IW LTD
Revenue,Adult Services,5105650733,16.09.2015,Elderly Frail Homecare,Regular Respite Care,45.84,CARE FIRST IW LTD
Revenue,Adult Services,5105650709,16.09.2015,Elderly Frail Homecare,Charges from Independent Providers,637.94,CARE FIRST IW LTD
Revenue,Adult Services,5105650713,16.09.2015,Elderly Frail Homecare,Charges from Independent Providers,695.24,CARE FIRST IW LTD
Revenue,Adult Services,5105650739,16.09.2015,Elderly Frail Homecare,Charges from Independent Providers,"1,719.00",CARE FIRST IW LTD
Revenue,Adult Services,5105650705,16.09.2015,Elderly Frail Homecare,Charges from Independent Providers,660.86,CARE FIRST IW LTD
Revenue,Adult Services,5105650708,16.09.2015,Elderly Frail Homecare,Charges from Independent Providers,802.20,CARE FIRST IW LTD
Revenue,Adult Services,5105650707,16.09.2015,Elderly Frail Homecare,Charges from Independent Providers,657.04,CARE FIRST IW LTD
Revenue,Adult Services,5105650718,16.09.2015,Elderly Frail Homecare,Charges from Independent Providers,515.70,CARE FIRST IW LTD
Revenue,Adult Services,5105650750,16.09.2015,Elderly Frail Homecare,Charges from Independent Providers,168.08,CARE FIRST IW LTD
Revenue,Adult Services,5105650719,16.09.2015,Elderly Frail Homecare,Charges from Independent Providers,"1,592.94",CARE FIRST IW LTD
Revenue,Adult Services,5105650731,16.09.2015,Elderly Frail Homecare,Charges from Independent Providers,137.52,CARE FIRST IW LTD
Revenue,Adult Services,5105650729,16.09.2015,Elderly Frail Homecare,Charges from Independent Providers,152.80,CARE FIRST IW LTD
Revenue,Adult Services,5105650710,16.09.2015,Elderly Frail Homecare,Charges from Independent Providers,114.60,CARE FIRST IW LTD
Revenue,Adult Services,5105650724,16.09.2015,Elderly Frail Homecare,Charges from Independent Providers,106.96,CARE FIRST IW LTD
Revenue,Adult Services,5105650712,16.09.2015,Elderly Frail Homecare,Charges from Independent Providers,523.34,CARE FIRST IW LTD
Revenue,Adult Services,5105650728,16.09.2015,Elderly Frail Homecare,Charges from Independent Providers,"2,884.10",CARE FIRST IW LTD
Revenue,Adult Services,5105650723,16.09.2015,Elderly Frail Homecare,Charges from Independent Providers,748.72,CARE FIRST IW LTD
Revenue,Adult Services,5105650727,16.09.2015,Elderly Frail Homecare,Charges from Independent Providers,427.84,CARE FIRST IW LTD
Revenue,Adult Services,5105650756,16.09.2015,Elderly Frail Homecare,Charges from Independent Providers,106.96,CARE FIRST IW LTD
Revenue,Adult Services,5105650736,16.09.2015,Elderly Frail Homecare,Charges from Independent Providers,"1,256.78",CARE FIRST IW LTD
Revenue,Adult Services,5105650749,16.09.2015,Elderly Frail Homecare,Charges from Independent Providers,481.32,CARE FIRST IW LTD
Revenue,Adult Services,5105650735,16.09.2015,Elderly Frail Homecare,Charges from Independent Providers,255.94,CARE FIRST IW LTD
Revenue,Adult Services,5105650743,16.09.2015,Elderly Frail Homecare,Charges from Independent Providers,91.68,CARE FIRST IW LTD
Revenue,Adult Services,5105650752,16.09.2015,Elderly Frail Homecare,Charges from Independent Providers,343.80,CARE FIRST IW LTD
Revenue,Adult Services,5105650741,16.09.2015,Elderly Frail Homecare,Charges from Independent Providers,"1,069.60",CARE FIRST IW LTD
Revenue,Adult Services,5105650720,16.09.2015,Elderly Frail Homecare,Charges from Independent Providers,"2,139.20",CARE FIRST IW LTD
Revenue,Adult Services,5105650721,16.09.2015,Elderly Frail Homecare,Charges from Independent Providers,"1,046.68",CARE FIRST IW LTD
Revenue,Adult Services,5105650722,16.09.2015,Elderly Frail Homecare,Charges from Independent Providers,"1,321.72",CARE FIRST IW LTD
Revenue,Adult Services,5105650746,16.09.2015,Elderly Frail Homecare,Charges from Independent Providers,106.96,CARE FIRST IW LTD
Revenue,Adult Services,5105650753,16.09.2015,Elderly Frail Homecare,Charges from Independent Providers,267.40,CARE FIRST IW LTD
Revenue,Adult Services,5105650747,16.09.2015,Elderly Frail Homecare,Charges from Independent Providers,294.14,CARE FIRST IW LTD
Revenue,Adult Services,5105650738,16.09.2015,Elderly Mentally Ill Homecare,Charges from Independent Providers,534.80,CARE FIRST IW LTD
Revenue,Adult Services,5105650714,16.09.2015,Elderly Mentally Ill Homecare,Charges from Independent Providers,802.20,CARE FIRST IW LTD
Revenue,Adult Services,5105650751,16.09.2015,Elderly Mentally Ill Homecare,Regular Respite Care,458.40,CARE FIRST IW LTD
Revenue,Adult Services,5105650715,16.09.2015,Elderly Mentally Ill Homecare,Regular Respite Care,152.80,CARE FIRST IW LTD
Revenue,Adult Services,5105650235,16.09.2015,Elderly Mentally Ill Homecare,Regular Respite Care,91.68,CARE FIRST IW LTD
Revenue,Adult Services,5105650745,16.09.2015,Elderly Mentally Ill Homecare,Regular Respite Care,366.72,CARE FIRST IW LTD
Revenue,Adult Services,5105649241,09.09.2015,Carers Services,Grants to External Bodies,"19,445.00",CARERS IW
Revenue,Adult Services,5105650653,16.09.2015,Mental Health Homecare,Charges from Independent Providers,267.40,CAREWATCH (SOUTHAMPTON NEW FOREST & IOW)
Revenue,Adult Services,5105650648,16.09.2015,Mental Health Homecare,Charges from Independent Providers,95.50,CAREWATCH (SOUTHAMPTON NEW FOREST & IOW)
Revenue,Adult Services,5105649993,16.09.2015,Physical Disability Homecare,Charges from Independent Providers,970.28,CAREWATCH (SOUTHAMPTON NEW FOREST & IOW)
Revenue,Adult Services,5105649979,16.09.2015,Physical Disability Homecare,Charges from Independent Providers,573.00,CAREWATCH (SOUTHAMPTON NEW FOREST & IOW)
Revenue,Adult Services,5105649974,16.09.2015,Physical Disability Homecare,Charges from Independent Providers,"2,674.00",CAREWATCH (SOUTHAMPTON NEW FOREST & IOW)
Revenue,Adult Services,5105649965,16.09.2015,Physical Disability Homecare,Charges from Independent Providers,"1,738.10",CAREWATCH (SOUTHAMPTON NEW FOREST & IOW)
Revenue,Adult Services,5105650658,16.09.2015,Physical Disability Homecare,Charges from Independent Providers,320.88,CAREWATCH (SOUTHAMPTON NEW FOREST & IOW)
Revenue,Adult Services,5105650649,16.09.2015,Physical Disability Homecare,Charges from Independent Providers,"1,356.10",CAREWATCH (SOUTHAMPTON NEW FOREST & IOW)
Revenue,Adult Services,5105649961,16.09.2015,Physical Disability Homecare,Charges from Independent Providers,916.80,CAREWATCH (SOUTHAMPTON NEW FOREST & IOW)
Revenue,Adult Services,5105649969,16.09.2015,Physical Disability Homecare,Charges from Independent Providers,534.80,CAREWATCH (SOUTHAMPTON NEW FOREST & IOW)
Revenue,Adult Services,5105650660,16.09.2015,Physical Disability Homecare,Charges from Independent Providers,"1,505.08",CAREWATCH (SOUTHAMPTON NEW FOREST & IOW)
Revenue,Adult Services,5105649990,16.09.2015,Physical Disability Homecare,Charges from Independent Providers,244.48,CAREWATCH (SOUTHAMPTON NEW FOREST & IOW)
Revenue,Adult Services,5105650663,16.09.2015,Physical Disability Homecare,Charges from Independent Providers,"1,149.82",CAREWATCH (SOUTHAMPTON NEW FOREST & IOW)
Revenue,Adult Services,5105650661,16.09.2015,Physical Disability Homecare,Regular Respite Care,886.24,CAREWATCH (SOUTHAMPTON NEW FOREST & IOW)
Revenue,Adult Services,5105650685,16.09.2015,Elderly Frail Homecare,Regular Respite Care,152.80,CAREWATCH (SOUTHAMPTON NEW FOREST & IOW)
Revenue,Adult Services,5105649971,16.09.2015,Elderly Frail Homecare,Regular Respite Care,61.12,CAREWATCH (SOUTHAMPTON NEW FOREST & IOW)
Revenue,Adult Services,5105649981,16.09.2015,Elderly Frail Homecare,Regular Respite Care,122.24,CAREWATCH (SOUTHAMPTON NEW FOREST & IOW)
Revenue,Adult Services,5105650654,16.09.2015,Elderly Frail Homecare,Regular Respite Care,382.00,CAREWATCH (SOUTHAMPTON NEW FOREST & IOW)
Revenue,Adult Services,5105649973,16.09.2015,Elderly Frail Homecare,Regular Respite Care,458.40,CAREWATCH (SOUTHAMPTON NEW FOREST & IOW)
Revenue,Adult Services,5105649977,16.09.2015,Elderly Frail Homecare,Regular Respite Care,152.80,CAREWATCH (SOUTHAMPTON NEW FOREST & IOW)
Revenue,Adult Services,5105649996,16.09.2015,Elderly Frail Homecare,Regular Respite Care,91.68,CAREWATCH (SOUTHAMPTON NEW FOREST & IOW)
Revenue,Adult Services,5105650665,16.09.2015,Elderly Frail Homecare,Regular Respite Care,458.40,CAREWATCH (SOUTHAMPTON NEW FOREST & IOW)
Revenue,Adult Services,5105650647,16.09.2015,Elderly Frail Homecare,Regular Respite Care,152.80,CAREWATCH (SOUTHAMPTON NEW FOREST & IOW)
Revenue,Adult Services,5105649970,16.09.2015,Elderly Frail Homecare,Regular Respite Care,458.40,CAREWATCH (SOUTHAMPTON NEW FOREST & IOW)
Revenue,Adult Services,5105649982,16.09.2015,Mental Health Homecare,Charges from Independent Providers,"2,429.52",CAREWATCH (SOUTHAMPTON NEW FOREST & IOW)
Revenue,Adult Services,5105650012,16.09.2015,Mental Health Homecare,Charges from Independent Providers,534.80,CAREWATCH (SOUTHAMPTON NEW FOREST & IOW)
Revenue,Adult Services,5105649959,16.09.2015,Mental Health Homecare,Charges from Independent Providers,91.68,CAREWATCH (SOUTHAMPTON NEW FOREST & IOW)
Revenue,Adult Services,5105649967,16.09.2015,Mental Health Homecare,Charges from Independent Providers,61.12,CAREWATCH (SOUTHAMPTON NEW FOREST & IOW)
Revenue,Adult Services,5105649972,16.09.2015,Elderly Frail Homecare,Charges from Independent Providers,336.16,CAREWATCH (SOUTHAMPTON NEW FOREST & IOW)
Revenue,Adult Services,5105649980,16.09.2015,Elderly Frail Homecare,Charges from Independent Providers,229.20,CAREWATCH (SOUTHAMPTON NEW FOREST & IOW)
Revenue,Adult Services,5105650652,16.09.2015,Elderly Frail Homecare,Regular Respite Care,91.68,CAREWATCH (SOUTHAMPTON NEW FOREST & IOW)
Revenue,Adult Services,5105650682,16.09.2015,Elderly Frail Homecare,Regular Respite Care,152.80,CAREWATCH (SOUTHAMPTON NEW FOREST & IOW)
Revenue,Adult Services,5105650005,16.09.2015,Elderly Frail Homecare,Regular Respite Care,91.68,CAREWATCH (SOUTHAMPTON NEW FOREST & IOW)
Revenue,Adult Services,5105650004,16.09.2015,Elderly Frail Homecare,Regular Respite Care,152.80,CAREWATCH (SOUTHAMPTON NEW FOREST & IOW)
Revenue,Adult Services,5105650677,16.09.2015,Elderly Frail Homecare,Regular Respite Care,152.80,CAREWATCH (SOUTHAMPTON NEW FOREST & IOW)
Revenue,Adult Services,5105649999,16.09.2015,Elderly Frail Homecare,Regular Respite Care,152.80,CAREWATCH (SOUTHAMPTON NEW FOREST & IOW)
Revenue,Adult Services,5105650651,16.09.2015,Elderly Frail Homecare,Charges from Independent Providers,401.10,CAREWATCH (SOUTHAMPTON NEW FOREST & IOW)
Revenue,Adult Services,5105650643,16.09.2015,Elderly Frail Homecare,Charges from Independent Providers,"1,012.30",CAREWATCH (SOUTHAMPTON NEW FOREST & IOW)
Revenue,Adult Services,5105649966,16.09.2015,Elderly Frail Homecare,Charges from Independent Providers,267.40,CAREWATCH (SOUTHAMPTON NEW FOREST & IOW)
Revenue,Adult Services,5105650642,16.09.2015,Elderly Frail Homecare,Charges from Independent Providers,"1,642.60",CAREWATCH (SOUTHAMPTON NEW FOREST & IOW)
Revenue,Adult Services,5105650646,16.09.2015,Elderly Frail Homecare,Charges from Independent Providers,920.62,CAREWATCH (SOUTHAMPTON NEW FOREST & IOW)
Revenue,Adult Services,5105650650,16.09.2015,Elderly Frail Homecare,Charges from Independent Providers,"1,130.72",CAREWATCH (SOUTHAMPTON NEW FOREST & IOW)
Revenue,Adult Services,5105650645,16.09.2015,Elderly Frail Homecare,Charges from Independent Providers,191.00,CAREWATCH (SOUTHAMPTON NEW FOREST & IOW)
Revenue,Adult Services,5105650644,16.09.2015,Elderly Frail Homecare,Charges from Independent Providers,886.24,CAREWATCH (SOUTHAMPTON NEW FOREST & IOW)
Revenue,Adult Services,5105649978,16.09.2015,Elderly Frail Homecare,Charges from Independent Providers,511.88,CAREWATCH (SOUTHAMPTON NEW FOREST & IOW)
Revenue,Adult Services,5105650657,16.09.2015,Elderly Frail Homecare,Charges from Independent Providers,401.10,CAREWATCH (SOUTHAMPTON NEW FOREST & IOW)
Revenue,Adult Services,5105650656,16.09.2015,Elderly Frail Homecare,Charges from Independent Providers,519.52,CAREWATCH (SOUTHAMPTON NEW FOREST & IOW)
Revenue,Adult Services,5105650011,16.09.2015,Elderly Frail Homecare,Charges from Independent Providers,91.68,CAREWATCH (SOUTHAMPTON NEW FOREST & IOW)
Revenue,Adult Services,5105650691,16.09.2015,Elderly Frail Homecare,Charges from Independent Providers,30.56,CAREWATCH (SOUTHAMPTON NEW FOREST & IOW)
Revenue,Adult Services,5105649995,16.09.2015,Elderly Frail Homecare,Charges from Independent Providers,"1,871.80",CAREWATCH (SOUTHAMPTON NEW FOREST & IOW)
Revenue,Adult Services,5105650673,16.09.2015,Elderly Frail Homecare,Charges from Independent Providers,68.76,CAREWATCH (SOUTHAMPTON NEW FOREST & IOW)
Revenue,Adult Services,5105650669,16.09.2015,Elderly Frail Homecare,Charges from Independent Providers,802.20,CAREWATCH (SOUTHAMPTON NEW FOREST & IOW)
Revenue,Adult Services,5105650670,16.09.2015,Elderly Frail Homecare,Charges from Independent Providers,68.76,CAREWATCH (SOUTHAMPTON NEW FOREST & IOW)
Revenue,Adult Services,5105649984,16.09.2015,Elderly Frail Homecare,Charges from Independent Providers,496.60,CAREWATCH (SOUTHAMPTON NEW FOREST & IOW)
Revenue,Adult Services,5105650664,16.09.2015,Elderly Frail Homecare,Charges from Independent Providers,213.92,CAREWATCH (SOUTHAMPTON NEW FOREST & IOW)
Revenue,Adult Services,5105650676,16.09.2015,Elderly Frail Homecare,Charges from Independent Providers,993.20,CAREWATCH (SOUTHAMPTON NEW FOREST & IOW)
Revenue,Adult Services,5105650675,16.09.2015,Elderly Frail Homecare,Charges from Independent Providers,122.24,CAREWATCH (SOUTHAMPTON NEW FOREST & IOW)
Revenue,Adult Services,5105650659,16.09.2015,Elderly Frail Homecare,Charges from Independent Providers,267.40,CAREWATCH (SOUTHAMPTON NEW FOREST & IOW)
Revenue,Adult Services,5105650668,16.09.2015,Elderly Frail Homecare,Charges from Independent Providers,668.50,CAREWATCH (SOUTHAMPTON NEW FOREST & IOW)
Revenue,Adult Services,5105649987,16.09.2015,Elderly Frail Homecare,Charges from Independent Providers,401.10,CAREWATCH (SOUTHAMPTON NEW FOREST & IOW)
Revenue,Adult Services,5105650666,16.09.2015,Elderly Frail Homecare,Charges from Independent Providers,267.40,CAREWATCH (SOUTHAMPTON NEW FOREST & IOW)
Revenue,Adult Services,5105649988,16.09.2015,Elderly Frail Homecare,Charges from Independent Providers,"2,811.52",CAREWATCH (SOUTHAMPTON NEW FOREST & IOW)
Revenue,Adult Services,5105650667,16.09.2015,Elderly Frail Homecare,Charges from Independent Providers,802.20,CAREWATCH (SOUTHAMPTON NEW FOREST & IOW)
Revenue,Adult Services,5105649989,16.09.2015,Elderly Frail Homecare,Charges from Independent Providers,"1,470.70",CAREWATCH (SOUTHAMPTON NEW FOREST & IOW)
Revenue,Adult Services,5105650018,16.09.2015,Elderly Frail Homecare,Charges from Independent Providers,198.64,CAREWATCH (SOUTHAMPTON NEW FOREST & IOW)
Revenue,Adult Services,5105650019,16.09.2015,Elderly Frail Homecare,Charges from Independent Providers,290.32,CAREWATCH (SOUTHAMPTON NEW FOREST & IOW)
Revenue,Adult Services,5105650017,16.09.2015,Elderly Frail Homecare,Charges from Independent Providers,401.10,CAREWATCH (SOUTHAMPTON NEW FOREST & IOW)
Revenue,Adult Services,5105650014,16.09.2015,Elderly Frail Homecare,Charges from Independent Providers,106.96,CAREWATCH (SOUTHAMPTON NEW FOREST & IOW)
Revenue,Adult Services,5105650010,16.09.2015,Elderly Frail Homecare,Charges from Independent Providers,267.40,CAREWATCH (SOUTHAMPTON NEW FOREST & IOW)
Revenue,Adult Services,5105650690,16.09.2015,Elderly Frail Homecare,Charges from Independent Providers,38.20,CAREWATCH (SOUTHAMPTON NEW FOREST & IOW)
Revenue,Adult Services,5105650016,16.09.2015,Elderly Frail Homecare,Charges from Independent Providers,855.68,CAREWATCH (SOUTHAMPTON NEW FOREST & IOW)
Revenue,Adult Services,5105650678,16.09.2015,Elderly Frail Homecare,Charges from Independent Providers,"1,031.40",CAREWATCH (SOUTHAMPTON NEW FOREST & IOW)
Revenue,Adult Services,5105650021,16.09.2015,Elderly Frail Homecare,Charges from Independent Providers,84.04,CAREWATCH (SOUTHAMPTON NEW FOREST & IOW)
Revenue,Adult Services,5105650020,16.09.2015,Elderly Frail Homecare,Charges from Independent Providers,122.24,CAREWATCH (SOUTHAMPTON NEW FOREST & IOW)
Revenue,Adult Services,5105650022,16.09.2015,Elderly Frail Homecare,Charges from Independent Providers,38.20,CAREWATCH (SOUTHAMPTON NEW FOREST & IOW)
Revenue,Adult Services,5105650000,16.09.2015,Elderly Frail Homecare,Charges from Independent Providers,935.90,CAREWATCH (SOUTHAMPTON NEW FOREST & IOW)
Revenue,Adult Services,5105650015,16.09.2015,Elderly Frail Homecare,Charges from Independent Providers,592.10,CAREWATCH (SOUTHAMPTON NEW FOREST & IOW)
Revenue,Adult Services,5105650672,16.09.2015,Elderly Frail Homecare,Charges from Independent Providers,"1,039.04",CAREWATCH (SOUTHAMPTON NEW FOREST & IOW)
Revenue,Adult Services,5105650671,16.09.2015,Elderly Frail Homecare,Charges from Independent Providers,427.84,CAREWATCH (SOUTHAMPTON NEW FOREST & IOW)
Revenue,Adult Services,5105650683,16.09.2015,Elderly Frail Homecare,Charges from Independent Providers,611.20,CAREWATCH (SOUTHAMPTON NEW FOREST & IOW)
Revenue,Adult Services,5105649985,16.09.2015,Elderly Frail Homecare,Charges from Independent Providers,267.40,CAREWATCH (SOUTHAMPTON NEW FOREST & IOW)
Revenue,Adult Services,5105649986,16.09.2015,Elderly Frail Homecare,Charges from Independent Providers,366.72,CAREWATCH (SOUTHAMPTON NEW FOREST & IOW)
Revenue,Adult Services,5105649991,16.09.2015,Elderly Frail Homecare,Charges from Independent Providers,"1,329.36",CAREWATCH (SOUTHAMPTON NEW FOREST & IOW)
Revenue,Adult Services,5105649992,16.09.2015,Elderly Frail Homecare,Charges from Independent Providers,76.40,CAREWATCH (SOUTHAMPTON NEW FOREST & IOW)
Revenue,Adult Services,5105649994,16.09.2015,Elderly Frail Homecare,Charges from Independent Providers,"1,329.36",CAREWATCH (SOUTHAMPTON NEW FOREST & IOW)
Revenue,Adult Services,5105650662,16.09.2015,Elderly Frail Homecare,Charges from Independent Providers,786.92,CAREWATCH (SOUTHAMPTON NEW FOREST & IOW)
Revenue,Adult Services,5105650679,16.09.2015,Elderly Frail Homecare,Charges from Independent Providers,"1,176.56",CAREWATCH (SOUTHAMPTON NEW FOREST & IOW)
Revenue,Adult Services,5105649983,16.09.2015,Elderly Frail Homecare,Charges from Independent Providers,802.20,CAREWATCH (SOUTHAMPTON NEW FOREST & IOW)
Revenue,Adult Services,5105649976,16.09.2015,Elderly Frail Homecare,Charges from Independent Providers,886.24,CAREWATCH (SOUTHAMPTON NEW FOREST & IOW)
Revenue,Adult Services,5105650684,16.09.2015,Elderly Frail Homecare,Charges from Independent Providers,"2,215.60",CAREWATCH (SOUTHAMPTON NEW FOREST & IOW)
Revenue,Adult Services,5105650688,16.09.2015,Elderly Frail Homecare,Charges from Independent Providers,"2,891.74",CAREWATCH (SOUTHAMPTON NEW FOREST & IOW)
Revenue,Adult Services,5105650687,16.09.2015,Elderly Frail Homecare,Charges from Independent Providers,152.80,CAREWATCH (SOUTHAMPTON NEW FOREST & IOW)
Revenue,Adult Services,5105650686,16.09.2015,Elderly Frail Homecare,Charges from Independent Providers,267.40,CAREWATCH (SOUTHAMPTON NEW FOREST & IOW)
Revenue,Adult Services,5105650003,16.09.2015,Elderly Frail Homecare,Charges from Independent Providers,534.80,CAREWATCH (SOUTHAMPTON NEW FOREST & IOW)
Revenue,Adult Services,5105650001,16.09.2015,Elderly Frail Homecare,Charges from Independent Providers,802.20,CAREWATCH (SOUTHAMPTON NEW FOREST & IOW)
Revenue,Adult Services,5105650002,16.09.2015,Elderly Frail Homecare,Charges from Independent Providers,802.20,CAREWATCH (SOUTHAMPTON NEW FOREST & IOW)
Revenue,Adult Services,5105649964,16.09.2015,Elderly Frail Homecare,Charges from Independent Providers,137.52,CAREWATCH (SOUTHAMPTON NEW FOREST & IOW)
Revenue,Adult Services,5105649963,16.09.2015,Elderly Frail Homecare,Charges from Independent Providers,534.80,CAREWATCH (SOUTHAMPTON NEW FOREST & IOW)
Revenue,Adult Services,5105649962,16.09.2015,Elderly Frail Homecare,Charges from Independent Providers,840.40,CAREWATCH (SOUTHAMPTON NEW FOREST & IOW)
Revenue,Adult Services,5105650006,16.09.2015,Elderly Frail Homecare,Charges from Independent Providers,802.20,CAREWATCH (SOUTHAMPTON NEW FOREST & IOW)
Revenue,Adult Services,5105649960,16.09.2015,Elderly Frail Homecare,Charges from Independent Providers,458.40,CAREWATCH (SOUTHAMPTON NEW FOREST & IOW)
Revenue,Adult Services,5105650008,16.09.2015,Elderly Frail Homecare,Charges from Independent Providers,61.12,CAREWATCH (SOUTHAMPTON NEW FOREST & IOW)
Revenue,Adult Services,5105649958,16.09.2015,Elderly Frail Homecare,Charges from Independent Providers,267.40,CAREWATCH (SOUTHAMPTON NEW FOREST & IOW)
Revenue,Adult Services,5105650009,16.09.2015,Elderly Frail Homecare,Charges from Independent Providers,267.40,CAREWATCH (SOUTHAMPTON NEW FOREST & IOW)
Revenue,Childrens Services,5105648377,04.09.2015,Disabled Childrens Team,Charges from Independent Providers,118.72,CAREWATCH (SOUTHAMPTON NEW FOREST & IOW)
Revenue,Childrens Services,5105648377,04.09.2015,Disabled Childrens Team,Charges from Independent Providers,10.20,CAREWATCH (SOUTHAMPTON NEW FOREST & IOW)
Revenue,Childrens Services,5105648379,04.09.2015,Disabled Childrens Team,Charges from Independent Providers,118.72,CAREWATCH (SOUTHAMPTON NEW FOREST & IOW)
Revenue,Childrens Services,5105648375,04.09.2015,Disabled Childrens Team,Charges from Independent Providers,183.36,CAREWATCH (SOUTHAMPTON NEW FOREST & IOW)
Revenue,Childrens Services,5105648375,04.09.2015,Disabled Childrens Team,Charges from Independent Providers,137.52,CAREWATCH (SOUTHAMPTON NEW FOREST & IOW)
Revenue,Childrens Services,5105650007,16.09.2015,Disabled Childrens Team,Charges from Independent Providers,4.20,CAREWATCH (SOUTHAMPTON NEW FOREST & IOW)
Revenue,Childrens Services,5105651647,23.09.2015,Pre 16 Independ. & Non-Maint. Special Schls & Independ. Specialist Provision,Transport of Clients,122.24,CAREWATCH (SOUTHAMPTON NEW FOREST & IOW)
Revenue,Childrens Services,5105651560,23.09.2015,Pre 16 Independ. & Non-Maint. Special Schls & Independ. Specialist Provision,Transport of Clients,31.35,CAREWATCH (SOUTHAMPTON NEW FOREST & IOW)
Revenue,Adult Services,5105649975,16.09.2015,Elderly Mentally Ill Homecare,Charges from Independent Providers,"1,069.60",CAREWATCH (SOUTHAMPTON NEW FOREST & IOW)
Revenue,Adult Services,5105649968,16.09.2015,Elderly Mentally Ill Homecare,Charges from Independent Providers,"1,337.00",CAREWATCH (SOUTHAMPTON NEW FOREST & IOW)
Revenue,Adult Services,5105649997,16.09.2015,Elderly Mentally Ill Homecare,Charges from Independent Providers,267.40,CAREWATCH (SOUTHAMPTON NEW FOREST & IOW)
Revenue,Adult Services,5105650674,16.09.2015,Elderly Mentally Ill Homecare,Charges from Independent Providers,267.40,CAREWATCH (SOUTHAMPTON NEW FOREST & IOW)
Revenue,Adult Services,5105650013,16.09.2015,Elderly Mentally Ill Homecare,Charges from Independent Providers,267.40,CAREWATCH (SOUTHAMPTON NEW FOREST & IOW)
Revenue,Adult Services,5105650655,16.09.2015,Elderly Mentally Ill Homecare,Regular Respite Care,152.80,CAREWATCH (SOUTHAMPTON NEW FOREST & IOW)
Revenue,Adult Services,5105649998,16.09.2015,Elderly Mentally Ill Homecare,Regular Respite Care,152.80,CAREWATCH (SOUTHAMPTON NEW FOREST & IOW)
Revenue,Adult Services,5105650689,16.09.2015,Elderly Mentally Ill Homecare,Regular Respite Care,183.36,CAREWATCH (SOUTHAMPTON NEW FOREST & IOW)
Revenue,Adult Services,5105650680,16.09.2015,Elderly Mentally Ill Homecare,Regular Respite Care,61.12,CAREWATCH (SOUTHAMPTON NEW FOREST & IOW)
Revenue,Adult Services,5105650681,16.09.2015,Elderly Mentally Ill Homecare,Charges from Independent Providers,152.80,CAREWATCH (SOUTHAMPTON NEW FOREST & IOW)
Revenue,Childrens Services,5105648380,04.09.2015,Agency Domiciliary Care,Charges from Independent Providers,356.16,CAREWATCH (SOUTHAMPTON NEW FOREST & IOW)
Revenue,Childrens Services,5105648374,04.09.2015,Agency Domiciliary Care,Charges from Independent Providers,16.50,CAREWATCH (SOUTHAMPTON NEW FOREST & IOW)
Revenue,Childrens Services,5105648373,04.09.2015,Agency Domiciliary Care,Charges from Independent Providers,638.12,CAREWATCH (SOUTHAMPTON NEW FOREST & IOW)
Revenue,Childrens Services,5105648376,04.09.2015,Agency Domiciliary Care,Charges from Independent Providers,222.60,CAREWATCH (SOUTHAMPTON NEW FOREST & IOW)
Revenue,Childrens Services,5105648376,04.09.2015,Agency Domiciliary Care,Charges from Independent Providers,5.76,CAREWATCH (SOUTHAMPTON NEW FOREST & IOW)
Revenue,Childrens Services,5105648376,04.09.2015,Agency Domiciliary Care,Charges from Independent Providers,15.33,CAREWATCH (SOUTHAMPTON NEW FOREST & IOW)
Revenue,Childrens Services,5105648376,04.09.2015,Agency Domiciliary Care,Charges from Independent Providers,19.62,CAREWATCH (SOUTHAMPTON NEW FOREST & IOW)
Revenue,Childrens Services,5105648378,04.09.2015,Agency Domiciliary Care,Charges from Independent Providers,534.24,CAREWATCH (SOUTHAMPTON NEW FOREST & IOW)
Revenue,Childrens Services,5105648451,09.09.2015,Agency Domiciliary Care,Charges from Independent Providers,178.36,CAREWATCH (SOUTHAMPTON NEW FOREST & IOW)
Revenue,Resources,5105651411,23.09.2015,Staff Benefits,Payment to Private Contractors,243.00,CARISBROOKE CLEVER CLOGGS DAY CARE
Revenue,Resources,5105651411,23.09.2015,Staff Benefits,Payment to Private Contractors,11.00,CARISBROOKE CLEVER CLOGGS DAY CARE
Revenue,Adult Services,5105649082,09.09.2015,Elderly Frail Residential Care,Charges from Independent Providers,"1,554.28",CARNALEA LIMITED
Revenue,Childrens Services,5105651685,23.09.2015,Court Work & Consultancy Services,Professional Services,167.64,CARTER BROWN ASSOCIATES
Revenue,Childrens Services,5105651686,23.09.2015,Court Work & Consultancy Services,Professional Services,"3,141.00",CARTER BROWN ASSOCIATES
Revenue,Place,5105650514,16.09.2015,Dinosaur Isle Museum (Sandown Geology),Stock Purchases,-714.60,CASA GRANDE LIMITED
Revenue,Childrens Services,5105649426,09.09.2015,Purchased Residential,Charges from Independent Providers,"18,321.00",CASTLECARE
Capital,Childrens Services,5105651297,18.09.2015,Children Services Early Years,"Plant, Equipment & Furniture - Capital",56.00,CATER WIGHT
Capital,Childrens Services,5105651297,18.09.2015,Children Services Early Years,"Plant, Equipment & Furniture - Capital",44.00,CATER WIGHT
Capital,Childrens Services,5105651297,18.09.2015,Children Services Early Years,"Plant, Equipment & Furniture - Capital",70.00,CATER WIGHT
Capital,Childrens Services,5105651297,18.09.2015,Children Services Early Years,"Plant, Equipment & Furniture - Capital",55.00,CATER WIGHT
Capital,Childrens Services,5105651195,18.09.2015,Children Services Early Years,Stationery,250.00,CATER WIGHT
Capital,Childrens Services,5105651195,18.09.2015,Children Services Early Years,Stationery,250.00,CATER WIGHT
Capital,Childrens Services,5105649390,09.09.2015,Children Services Early Years,"Plant, Equipment & Furniture - Capital","1,950.00",CATER WIGHT
Capital,Childrens Services,5105647475,30.09.2015,Children Services Early Years,"Plant, Equipment & Furniture - Capital","1,799.00",CATER WIGHT
Revenue,Adult Services,5105651626,23.09.2015,DoLS/MCA,Professional Services,60.00,CCP
Revenue,Childrens Services,5105651467,23.09.2015,Visually Impaired Service,Training,50.00,CEREBRAL VISUAL IMPAIRMENT SOCIETY
Revenue,Place,5105649660,16.09.2015,Beach Safety & Inspection / Beach Awards,Operational Equipment,155.14,CHANT LOCK & SECURITY SERVICE
Revenue,Childrens Services,5105649681,11.09.2015,Hunnyhill Primary School Disposal,Security of Buildings,24.42,CHANT LOCK & SECURITY SERVICE
Revenue,Place,5105652183,30.09.2015,Ferry Operation,Stationery,7.80,CHANT LOCK & SECURITY SERVICE
Revenue,Place,5105651521,23.09.2015,Regulatory Management & Admin Support,Security of Buildings,78.17,CHANT LOCK & SECURITY SERVICE
Revenue,Adult Services,5105648311,04.09.2015,Plean Dene,Catering Purchases,37.00,CHAPEL NURSERIES
Revenue,Adult Services,5105651519,23.09.2015,Plean Dene,Catering Purchases,37.00,CHAPEL NURSERIES
Revenue,Adult Services,5105651471,23.09.2015,Plean Dene,Catering Purchases,35.20,CHAPEL NURSERIES
Revenue,Adult Services,5105652168,30.09.2015,Saxonbury,Catering Purchases,20.20,CHAPEL NURSERIES
Revenue,Adult Services,5105650491,16.09.2015,Saxonbury,Catering Purchases,38.90,CHAPEL NURSERIES
Revenue,Adult Services,5105650493,16.09.2015,Saxonbury,Catering Purchases,33.10,CHAPEL NURSERIES
Revenue,Adult Services,5105648302,04.09.2015,Gouldings Resource Centre,Catering Purchases,388.20,CHAPEL NURSERIES
Revenue,Resources,5105651421,23.09.2015,Staff Benefits,Payment to Private Contractors,125.00,CHATTERBOX NURSERY LTD
Revenue,Resources,5105651421,23.09.2015,Staff Benefits,Payment to Private Contractors,106.00,CHATTERBOX NURSERY LTD
Revenue,Resources,5105651421,23.09.2015,Staff Benefits,Payment to Private Contractors,236.00,CHATTERBOX NURSERY LTD
Revenue,Resources,5105651421,23.09.2015,Staff Benefits,Payment to Private Contractors,116.67,CHATTERBOX NURSERY LTD
Revenue,Resources,5105651421,23.09.2015,Staff Benefits,Payment to Private Contractors,243.00,CHATTERBOX NURSERY LTD
Revenue,Resources,5105651433,23.09.2015,Staff Benefits,Payment to Private Contractors,243.00,CHEEKY CHIMPS CHILDCARE
Revenue,Resources,5105651433,23.09.2015,Staff Benefits,Payment to Private Contractors,200.00,CHEEKY CHIMPS CHILDCARE
Revenue,Resources,5105651433,23.09.2015,Staff Benefits,Payment to Private Contractors,200.00,CHEEKY CHIMPS CHILDCARE
Revenue,Resources,5105651433,23.09.2015,Staff Benefits,Payment to Private Contractors,160.00,CHEEKY CHIMPS CHILDCARE
Revenue,Resources,5105651433,23.09.2015,Staff Benefits,Payment to Private Contractors,118.63,CHEEKY CHIMPS CHILDCARE
Revenue,Adult Services,5105648473,09.09.2015,Elderly Mentally Ill Residential Care,Charges from Independent Providers,"1,781.36",CHERRY TREES I.W. LTD
Revenue,Adult Services,5105648473,09.09.2015,Elderly Mentally Ill Residential Care,Charges from Independent Providers,"1,781.36",CHERRY TREES I.W. LTD
Revenue,Adult Services,5105648473,09.09.2015,Elderly Mentally Ill Residential Care,Charges from Independent Providers,"1,781.36",CHERRY TREES I.W. LTD
Revenue,Adult Services,5105648473,09.09.2015,Elderly Mentally Ill Residential Care,Charges from Independent Providers,"1,781.36",CHERRY TREES I.W. LTD
Revenue,Adult Services,5105648473,09.09.2015,Elderly Frail Residential Care,Charges from Independent Providers,"1,700.44",CHERRY TREES I.W. LTD
Revenue,Adult Services,5105648473,09.09.2015,Elderly Frail Residential Care,Charges from Independent Providers,"1,700.44",CHERRY TREES I.W. LTD
Revenue,Adult Services,5105648473,09.09.2015,Elderly Frail Residential Care,Charges from Independent Providers,"2,093.84",CHERRY TREES I.W. LTD
Revenue,Adult Services,5105648473,09.09.2015,Elderly Frail Residential Care,Charges from Independent Providers,"2,093.84",CHERRY TREES I.W. LTD
Revenue,Resources,5105651413,23.09.2015,Staff Benefits,Payment to Private Contractors,120.25,CHILLERTON & ROOKLEY CP SCHOOL
Revenue,Resources,5105651413,23.09.2015,Staff Benefits,Payment to Private Contractors,5.00,CHILLERTON & ROOKLEY CP SCHOOL
Revenue,Resources,5105651413,23.09.2015,Staff Benefits,Payment to Private Contractors,110.00,CHILLERTON & ROOKLEY CP SCHOOL
Revenue,Resources,5105651413,23.09.2015,Staff Benefits,Payment to Private Contractors,50.00,CHILLERTON & ROOKLEY CP SCHOOL
Revenue,Place,5105652165,30.09.2015,Cowes Library,Publications,238.55,CHIVERTONS OF COWES
Revenue,Adult Services,5105648459,09.09.2015,Mental Health Residential Care,Charges from Independent Providers,"2,898.00",CHOICE SUPPORT
Revenue,Adult Services,5105648459,09.09.2015,Mental Health Residential Care,Charges from Independent Providers,"2,898.00",CHOICE SUPPORT
Revenue,Childrens Services,5105649239,09.09.2015,Court Work & Consultancy Services,Legal Fees - Other Parties,476.92,CHURCHERS BOLITHO WAY
Revenue,Childrens Services,5105648303,04.09.2015,Accreditation Centre,Training,558.00,CITY AND GUILDS
Revenue,Childrens Services,5105650866,16.09.2015,Adult Community Learning,Licences,15.00,CITY AND GUILDS
Revenue,Childrens Services,5105650865,16.09.2015,Adult Community Learning,Licences,7.50,CITY AND GUILDS
Revenue,Childrens Services,5105648418,04.09.2015,Adult Community Learning,Licences,7.50,CITY AND GUILDS
Revenue,Adult Services,5105652013,25.09.2015,Gouldings Resource Centre,Fixtures and Fittings,123.10,CITY ELECTRICAL FACTORS LTD
Revenue,Adult Services,5105648033,04.09.2015,Adelaide Resource Centre,Fixtures and Fittings,36.32,CITY ELECTRICAL FACTORS LTD
Revenue,Place,5105649732,16.09.2015,Public Libraries Central,Computer Maintenance,50.00,CIVICA UK LTD
Revenue,Place,5105648041,02.09.2015,"Guildhall,Newport",Legal Fees - Other Parties,27.00,CLARKE WILLMOTT LLP
Revenue,Place,5105648041,02.09.2015,"Guildhall,Newport",Legal Fees - Other Parties,733.00,CLARKE WILLMOTT LLP
Revenue,Place,5105648043,02.09.2015,"Bugle House,Newport",Legal Fees - Other Parties,349.00,CLARKE WILLMOTT LLP
Revenue,Resources,5105649273,09.09.2015,Litigation Costs,Legal Fees - Other Parties,"2,034.00",CLARKE WILLMOTT LLP
Revenue,Place,5105647916,02.09.2015,Properties Industrial Estates,Property Services - Planned Maintenance,160.00,CLARKES MECHANICAL LTD
Revenue,Childrens Services,5105651487,23.09.2015,Childrens Centres Maintenance,Minor Works,167.09,CLARKES MECHANICAL LTD
Revenue,Place,5105649286,09.09.2015,Crematorium,Professional Services,139.98,CLEANER SYSTEMS LTD
Revenue,Resources,5105651427,23.09.2015,Staff Benefits,Payment to Private Contractors,243.00,CLUB COOL C/O COWES PRIMARY SCHOOL
Revenue,Resources,5105651427,23.09.2015,Staff Benefits,Payment to Private Contractors,77.50,CLUB COOL C/O COWES PRIMARY SCHOOL
Revenue,Resources,5105651427,23.09.2015,Staff Benefits,Payment to Private Contractors,140.40,CLUB COOL C/O COWES PRIMARY SCHOOL
Revenue,Place,5105651479,25.09.2015,Fire Technical Support,Vehicle Maintenance Costs,"1,698.68",COLD CUT SYSTEMS SVENSKA AB
Revenue,Childrens Services,5105649469,09.09.2015,Island Learning Centre,Minor Works,43.75,COLD SERVICE LTD
Revenue,Place,5105650451,16.09.2015,Dinosaur Isle Museum (Sandown Geology),Stock Purchases,45.00,COMMERCE ATTRACTIVE LTD
Revenue,Place,5105651657,23.09.2015,Fire Control,Fire Comms - Radio,"10,058.83",COMMUNITIES AND LOCAL GOVERNMENT
Revenue,Place,5105649898,16.09.2015,Bembridge Library,Grants to External Bodies,"4,000.00",COMMUNITY ACTION ISLE OF WIGHT
Revenue,Childrens Services,5105643430,09.09.2015,Youth Commissioning,Payments to Voluntary and Other Associations,"11,250.00",COMMUNITY ACTION ISLE OF WIGHT
Revenue,Childrens Services,5105651526,23.09.2015,Short Breaks,Charges from Independent Providers,948.00,COMMUNITY ACTION ISLE OF WIGHT
Revenue,Place,5105649788,11.09.2015,Brighstone Library,Grants to External Bodies,"2,000.00",COMMUNITY ACTION ISLE OF WIGHT
Revenue,Place,5105651949,25.09.2015,Supporting People Learning Disability,Payment to Private Contractors,"1,080.00",SOMERSET CARE LTD
Revenue,Place,5105651950,25.09.2015,Supporting People Learning Disability,Payment to Private Contractors,"2,160.00",SOMERSET CARE LTD
Revenue,Place,5105652085,30.09.2015,Medina Leisure Centre,Maintenance of Operational Equipment,34.29,COMPLETE POOL CONTROLS LTD
Revenue,Place,5105652085,30.09.2015,Medina Leisure Centre,Maintenance of Operational Equipment,11.60,COMPLETE POOL CONTROLS LTD
Revenue,Childrens Services,5105649672,16.09.2015,Hearing Impaired Service,Maintenance of Office Equipment,119.78,CONNEVANS LTD
Revenue,Childrens Services,5105649672,16.09.2015,Hearing Impaired Service,Maintenance of Office Equipment,226.56,CONNEVANS LTD
Revenue,Adult Services,5105648513,09.09.2015,Mental Health Residential Care,Charges from Independent Providers,"1,700.44",CORNELIA HEIGHTS CARE HOME
Revenue,Adult Services,5105648016,02.09.2015,Elderly Mentally Ill Residential Care,Regular Respite Care,598.24,CORNELIA HEIGHTS CARE HOME
Revenue,Adult Services,5105648513,09.09.2015,Elderly Mentally Ill Residential Care,Charges from Independent Providers,"1,781.36",CORNELIA HEIGHTS CARE HOME
Revenue,Adult Services,5105648513,09.09.2015,Elderly Mentally Ill Residential Care,Charges from Independent Providers,"1,781.36",CORNELIA HEIGHTS CARE HOME
Revenue,Adult Services,5105648513,09.09.2015,Elderly Mentally Ill Residential Care,Charges from Independent Providers,"1,781.36",CORNELIA HEIGHTS CARE HOME
Revenue,Adult Services,5105652248,30.09.2015,Elderly Frail Residential Care,Charges from Independent Providers,"1,869.50",CORNELIA HEIGHTS CARE HOME
Revenue,Adult Services,5105652063,30.09.2015,Elderly Frail Residential Care,Charges from Independent Providers,971.68,CORNELIA HEIGHTS CARE HOME
Revenue,Adult Services,5105648513,09.09.2015,Elderly Frail Residential Care,Charges from Independent Providers,"1,700.44",CORNELIA HEIGHTS CARE HOME
Revenue,Adult Services,5105648513,09.09.2015,Elderly Frail Residential Care,Charges from Independent Providers,"1,700.44",CORNELIA HEIGHTS CARE HOME
Revenue,Adult Services,5105648513,09.09.2015,Elderly Frail Residential Care,Charges from Independent Providers,"2,093.84",CORNELIA HEIGHTS CARE HOME
Revenue,Adult Services,5105648513,09.09.2015,Elderly Frail Residential Care,Charges from Independent Providers,"1,700.44",CORNELIA HEIGHTS CARE HOME
Revenue,Adult Services,5105648513,09.09.2015,Elderly Frail Residential Care,Charges from Independent Providers,"1,700.44",CORNELIA HEIGHTS CARE HOME
Revenue,Adult Services,5105648513,09.09.2015,Elderly Frail Residential Care,Charges from Independent Providers,"2,093.84",CORNELIA HEIGHTS CARE HOME
Revenue,Adult Services,5105648513,09.09.2015,Elderly Frail Residential Care,Charges from Independent Providers,"2,093.84",CORNELIA HEIGHTS CARE HOME
Revenue,Adult Services,5105648513,09.09.2015,REDACTED PERSONAL DATA,Order Settlement to Bal Sht GL,"2,093.84",CORNELIA HEIGHTS CARE HOME
Revenue,Adult Services,5105650844,16.09.2015,Elderly Mentally Ill Residential Care,Charges from Independent Providers,763.44,CORNELIA MANOR
Revenue,Adult Services,5105650844,16.09.2015,Elderly Mentally Ill Residential Care,Charges from Independent Providers,"1,781.36",CORNELIA MANOR
Revenue,Adult Services,5105648511,09.09.2015,Elderly Mentally Ill Residential Care,Charges from Independent Providers,"2,093.84",CORNELIA MANOR
Revenue,Adult Services,5105648511,09.09.2015,Elderly Mentally Ill Residential Care,Charges from Independent Providers,"1,781.36",CORNELIA MANOR
Revenue,Adult Services,5105648511,09.09.2015,Elderly Mentally Ill Residential Care,Charges from Independent Providers,"1,781.36",CORNELIA MANOR
Revenue,Adult Services,5105648511,09.09.2015,Elderly Frail Residential Care,Charges from Independent Providers,"2,093.84",CORNELIA MANOR
Revenue,Adult Services,5105648511,09.09.2015,Elderly Frail Residential Care,Charges from Independent Providers,"1,700.44",CORNELIA MANOR
Revenue,Adult Services,5105648511,09.09.2015,Elderly Frail Residential Care,Charges from Independent Providers,"1,700.44",CORNELIA MANOR
Revenue,Adult Services,5105648086,04.09.2015,Elderly Frail Residential Care,Charges from Independent Providers,"4,372.56",CORNELIA MANOR
Revenue,Adult Services,5105648511,09.09.2015,Elderly Frail Residential Care,Charges from Independent Providers,"1,700.44",CORNELIA MANOR
Revenue,Adult Services,5105650412,16.09.2015,Elderly Frail Residential Care,Charges from Independent Providers,"1,275.33",CORNELIA MANOR
Revenue,Adult Services,5105650412,16.09.2015,Elderly Frail Residential Care,Charges from Independent Providers,"1,700.44",CORNELIA MANOR
Revenue,Adult Services,5105648511,09.09.2015,Elderly Frail Residential Care,Charges from Independent Providers,"1,700.44",CORNELIA MANOR
Revenue,Adult Services,5105648511,09.09.2015,Elderly Frail Residential Care,Charges from Independent Providers,"1,700.44",CORNELIA MANOR
Revenue,Adult Services,5105648511,09.09.2015,Elderly Frail Residential Care,Charges from Independent Providers,"2,093.84",CORNELIA MANOR
Revenue,Place,5105647703,11.09.2015,Rights of Way Operations,General Materials,63.30,COUNTY FENCING SUPPLIES
Revenue,Place,5105647706,11.09.2015,Rights of Way Operations,General Materials,9.00,COUNTY FENCING SUPPLIES
Capital,Place,5105648039,02.09.2015,Rights Of Way Capital Programme,Payment to Contractors - Capital,616.80,COUNTY FENCING SUPPLIES
Revenue,Place,5105651907,25.09.2015,Ferry Operation,Payment to Private Contractors,"5,445.00",FOLLY VENTURES
Revenue,Place,5105651202,18.09.2015,Newport Harbour Account,Payment to Private Contractors,"2,119.71",FOLLY VENTURES
Revenue,Place,5105649770,30.09.2015,Cowes Week,Printing Costs,217.00,CROSSPRINT LTD
Revenue,Place,5105647940,02.09.2015,Dinosaur Isle Museum (Sandown Geology),Stock Purchases,299.88,CUCKOO LTD
Revenue,Place,5105651179,18.09.2015,Environment officers,Veterinary Fees,"1,157.50",REDACTED PERSONAL DATA
Revenue,Childrens Services,5105651152,18.09.2015,Children placed with Family&Friends,Boarding Out Allowances,142.86,REDACTED PERSONAL DATA
Revenue,Childrens Services,5105651152,18.09.2015,Children placed with Family&Friends,Boarding Out Allowances,142.86,REDACTED PERSONAL DATA
Revenue,Childrens Services,5105651152,18.09.2015,Children placed with Family&Friends,Boarding Out Allowances,162.73,REDACTED PERSONAL DATA
Revenue,Childrens Services,5105651859,25.09.2015,Children placed with Family&Friends,Boarding Out Allowances,142.86,REDACTED PERSONAL DATA
Revenue,Childrens Services,5105651859,25.09.2015,Children placed with Family&Friends,Boarding Out Allowances,142.86,REDACTED PERSONAL DATA
Revenue,Childrens Services,5105651859,25.09.2015,Children placed with Family&Friends,Boarding Out Allowances,162.73,REDACTED PERSONAL DATA
Revenue,Childrens Services,5105648224,04.09.2015,Children placed with Family&Friends,Boarding Out Allowances,142.86,REDACTED PERSONAL DATA
Revenue,Childrens Services,5105648224,04.09.2015,Children placed with Family&Friends,Boarding Out Allowances,142.86,REDACTED PERSONAL DATA
Revenue,Childrens Services,5105648224,04.09.2015,Children placed with Family&Friends,Boarding Out Allowances,162.73,REDACTED PERSONAL DATA
Revenue,Childrens Services,5105649640,11.09.2015,Children placed with Family&Friends,Boarding Out Allowances,142.86,REDACTED PERSONAL DATA
Revenue,Childrens Services,5105649640,11.09.2015,Children placed with Family&Friends,Boarding Out Allowances,142.86,REDACTED PERSONAL DATA
Revenue,Childrens Services,5105649640,11.09.2015,Children placed with Family&Friends,Boarding Out Allowances,162.73,REDACTED PERSONAL DATA
Revenue,Childrens Services,5105651848,25.09.2015,Children placed with Family&Friends,Boarding Out Allowances,246.44,REDACTED PERSONAL DATA
Revenue,Childrens Services,5105651848,25.09.2015,Children placed with Family&Friends,Boarding Out Allowances,162.73,REDACTED PERSONAL DATA
Revenue,Childrens Services,5105651848,25.09.2015,Children placed with Family&Friends,Boarding Out Allowances,225.00,REDACTED PERSONAL DATA
Revenue,Childrens Services,5105649628,11.09.2015,Children placed with Family&Friends,Boarding Out Allowances,246.44,REDACTED PERSONAL DATA
Revenue,Childrens Services,5105649628,11.09.2015,Children placed with Family&Friends,Boarding Out Allowances,162.73,REDACTED PERSONAL DATA
Revenue,Childrens Services,5105649628,11.09.2015,Children placed with Family&Friends,Boarding Out Allowances,225.00,REDACTED PERSONAL DATA
Revenue,Childrens Services,5105651140,18.09.2015,Children placed with Family&Friends,Boarding Out Allowances,246.44,REDACTED PERSONAL DATA
Revenue,Childrens Services,5105651140,18.09.2015,Children placed with Family&Friends,Boarding Out Allowances,162.73,REDACTED PERSONAL DATA
Revenue,Childrens Services,5105651140,18.09.2015,Children placed with Family&Friends,Boarding Out Allowances,225.00,REDACTED PERSONAL DATA
Revenue,Childrens Services,5105648212,04.09.2015,Children placed with Family&Friends,Boarding Out Allowances,246.44,REDACTED PERSONAL DATA
Revenue,Childrens Services,5105648212,04.09.2015,Children placed with Family&Friends,Boarding Out Allowances,162.73,REDACTED PERSONAL DATA
Revenue,Childrens Services,5105648212,04.09.2015,Children placed with Family&Friends,Boarding Out Allowances,225.00,REDACTED PERSONAL DATA
Revenue,Place,5105651374,23.09.2015,Leaseholds by LA,Accommodation Costs - Leaseholder Payments,750.01,REDACTED PERSONAL DATA
Revenue,Place,5105651374,23.09.2015,Leaseholds by LA,Accommodation Costs - Leaseholder Payments,780.00,REDACTED PERSONAL DATA
Revenue,Place,5105651381,23.09.2015,Leaseholds by LA,Accommodation Costs - Leaseholder Payments,859.95,REDACTED PERSONAL DATA
Revenue,Adult Services,5105649491,11.09.2015,No-Barriers,Training,120.00,REDACTED PERSONAL DATA
Revenue,Adult Services,5105652237,30.09.2015,No-Barriers,Training,60.00,REDACTED PERSONAL DATA
Revenue,Childrens Services,5105651040,18.09.2015,Adoption Costs,Support Children,168.39,REDACTED PERSONAL DATA
Revenue,Childrens Services,5105651040,18.09.2015,Adoption Costs,Support Children,168.39,REDACTED PERSONAL DATA
Revenue,Childrens Services,5105649527,11.09.2015,Adoption Costs,Support Children,168.39,REDACTED PERSONAL DATA
Revenue,Childrens Services,5105649527,11.09.2015,Adoption Costs,Support Children,168.39,REDACTED PERSONAL DATA
Revenue,Childrens Services,5105648110,04.09.2015,Adoption Costs,Support Children,168.39,REDACTED PERSONAL DATA
Revenue,Childrens Services,5105648110,04.09.2015,Adoption Costs,Support Children,168.39,REDACTED PERSONAL DATA
Revenue,Childrens Services,5105651747,25.09.2015,Adoption Costs,Support Children,168.39,REDACTED PERSONAL DATA
Revenue,Childrens Services,5105651747,25.09.2015,Adoption Costs,Support Children,168.39,REDACTED PERSONAL DATA
Revenue,Place,5105651384,23.09.2015,Leaseholds by LA,Accommodation Costs - Leaseholder Payments,788.67,REDACTED PERSONAL DATA
Revenue,Childrens Services,5105651019,18.09.2015,Adoption Costs,Support Children,71.70,REDACTED PERSONAL DATA
Revenue,Childrens Services,5105651019,18.09.2015,Adoption Costs,Support Children,132.69,REDACTED PERSONAL DATA
Revenue,Childrens Services,5105649507,11.09.2015,Adoption Costs,Support Children,71.70,REDACTED PERSONAL DATA
Revenue,Childrens Services,5105649507,11.09.2015,Adoption Costs,Support Children,132.69,REDACTED PERSONAL DATA
Revenue,Childrens Services,5105651726,25.09.2015,Adoption Costs,Support Children,71.70,REDACTED PERSONAL DATA
Revenue,Childrens Services,5105651726,25.09.2015,Adoption Costs,Support Children,132.69,REDACTED PERSONAL DATA
Revenue,Childrens Services,5105648090,04.09.2015,Adoption Costs,Support Children,71.70,REDACTED PERSONAL DATA
Revenue,Childrens Services,5105648090,04.09.2015,Adoption Costs,Support Children,132.69,REDACTED PERSONAL DATA
Revenue,Childrens Services,5105651726,25.09.2015,Special Guardianship Order Costs,Support Children,185.45,REDACTED PERSONAL DATA
Revenue,Childrens Services,5105649507,11.09.2015,Special Guardianship Order Costs,Support Children,185.45,REDACTED PERSONAL DATA
Revenue,Childrens Services,5105648090,04.09.2015,Special Guardianship Order Costs,Support Children,185.45,REDACTED PERSONAL DATA
Revenue,Childrens Services,5105651019,18.09.2015,Special Guardianship Order Costs,Support Children,185.45,REDACTED PERSONAL DATA
Revenue,Childrens Services,5105651019,18.09.2015,In-house Fostering,Boarding Out Allowances,142.86,REDACTED PERSONAL DATA
Revenue,Childrens Services,5105651726,25.09.2015,In-house Fostering,Boarding Out Allowances,142.86,REDACTED PERSONAL DATA
Revenue,Childrens Services,5105651726,25.09.2015,In-house Fostering,Boarding Out Allowances,142.86,REDACTED PERSONAL DATA
Revenue,Childrens Services,5105651726,25.09.2015,In-house Fostering,Boarding Out Allowances,20.00,REDACTED PERSONAL DATA
Revenue,Childrens Services,5105651726,25.09.2015,In-house Fostering,Boarding Out Allowances,20.00,REDACTED PERSONAL DATA
Revenue,Childrens Services,5105651726,25.09.2015,In-house Fostering,Boarding Out Allowances,142.86,REDACTED PERSONAL DATA
Revenue,Childrens Services,5105648090,04.09.2015,In-house Fostering,Boarding Out Allowances,142.86,REDACTED PERSONAL DATA
Revenue,Childrens Services,5105648090,04.09.2015,In-house Fostering,Boarding Out Allowances,142.86,REDACTED PERSONAL DATA
Revenue,Childrens Services,5105648090,04.09.2015,In-house Fostering,Boarding Out Allowances,142.86,REDACTED PERSONAL DATA
Revenue,Childrens Services,5105648090,04.09.2015,In-house Fostering,Boarding Out Allowances,20.00,REDACTED PERSONAL DATA
Revenue,Childrens Services,5105648090,04.09.2015,In-house Fostering,Boarding Out Allowances,20.00,REDACTED PERSONAL DATA
Revenue,Childrens Services,5105649507,11.09.2015,In-house Fostering,Boarding Out Allowances,142.86,REDACTED PERSONAL DATA
Revenue,Childrens Services,5105649507,11.09.2015,In-house Fostering,Boarding Out Allowances,142.86,REDACTED PERSONAL DATA
Revenue,Childrens Services,5105649507,11.09.2015,In-house Fostering,Boarding Out Allowances,20.00,REDACTED PERSONAL DATA
Revenue,Childrens Services,5105649507,11.09.2015,In-house Fostering,Boarding Out Allowances,20.00,REDACTED PERSONAL DATA
Revenue,Childrens Services,5105651019,18.09.2015,In-house Fostering,Boarding Out Allowances,142.86,REDACTED PERSONAL DATA
Revenue,Childrens Services,5105651019,18.09.2015,In-house Fostering,Boarding Out Allowances,20.00,REDACTED PERSONAL DATA
Revenue,Childrens Services,5105651019,18.09.2015,In-house Fostering,Boarding Out Allowances,20.00,REDACTED PERSONAL DATA
Revenue,Childrens Services,5105649507,11.09.2015,In-house Fostering,Boarding Out Allowances,142.86,REDACTED PERSONAL DATA
Revenue,Childrens Services,5105651019,18.09.2015,In-house Fostering,Boarding Out Allowances,142.86,REDACTED PERSONAL DATA
Revenue,Adult Services,5105649893,16.09.2015,Adelaide Resource Centre,Prop Svs only - Day to day mtce,140.00,D N ASSOCIATES LIMITED
Revenue,Place,5105651403,23.09.2015,Leaseholds by LA,Accommodation Costs - Leaseholder Payments,678.90,REDACTED PERSONAL DATA
Revenue,Place,5105651383,23.09.2015,Leaseholds by LA,Accommodation Costs - Leaseholder Payments,814.71,REDACTED PERSONAL DATA
Revenue,Place,5105651383,23.09.2015,Leaseholds by LA,Accommodation Costs - Leaseholder Payments,888.33,REDACTED PERSONAL DATA
Revenue,Childrens Services,5105651820,25.09.2015,Children placed with Family&Friends,Boarding Out Allowances,202.58,REDACTED PERSONAL DATA
Revenue,Childrens Services,5105649600,11.09.2015,Children placed with Family&Friends,Boarding Out Allowances,202.58,REDACTED PERSONAL DATA
Revenue,Childrens Services,5105651113,18.09.2015,Children placed with Family&Friends,Boarding Out Allowances,202.58,REDACTED PERSONAL DATA
Revenue,Childrens Services,5105648184,04.09.2015,Children placed with Family&Friends,Boarding Out Allowances,202.58,REDACTED PERSONAL DATA
Revenue,Adult Services,5105650568,16.09.2015,Mental Health Homecare,Regular Respite Care,152.80,REDACTED PERSONAL DATA
Revenue,Adult Services,5105650572,16.09.2015,Physical Disability Homecare,Charges from Independent Providers,592.10,REDACTED PERSONAL DATA
Revenue,Adult Services,5105650584,16.09.2015,Physical Disability Homecare,Charges from Independent Providers,183.36,REDACTED PERSONAL DATA
Revenue,Adult Services,5105650594,16.09.2015,Physical Disability Homecare,Charges from Independent Providers,106.96,REDACTED PERSONAL DATA
Revenue,Adult Services,5105650569,16.09.2015,Physical Disability Homecare,Charges from Independent Providers,580.64,REDACTED PERSONAL DATA
Revenue,Adult Services,5105650603,16.09.2015,Physical Disability Homecare,Charges from Independent Providers,389.64,REDACTED PERSONAL DATA
Revenue,Adult Services,5105650613,16.09.2015,Physical Disability Homecare,Charges from Independent Providers,297.96,REDACTED PERSONAL DATA
Revenue,Adult Services,5105650610,16.09.2015,Physical Disability Homecare,Charges from Independent Providers,133.70,REDACTED PERSONAL DATA
Revenue,Adult Services,5105650615,16.09.2015,Physical Disability Homecare,Charges from Independent Providers,156.62,REDACTED PERSONAL DATA
Revenue,Adult Services,5105650591,16.09.2015,Elderly Frail Homecare,Regular Respite Care,152.80,REDACTED PERSONAL DATA
Revenue,Adult Services,5105650579,16.09.2015,Elderly Frail Homecare,Regular Respite Care,152.80,REDACTED PERSONAL DATA
Revenue,Adult Services,5105650577,16.09.2015,Elderly Frail Homecare,Regular Respite Care,156.62,REDACTED PERSONAL DATA
Revenue,Adult Services,5105650574,16.09.2015,Mental Health Homecare,Charges from Independent Providers,137.52,REDACTED PERSONAL DATA
Revenue,Adult Services,5105650567,16.09.2015,Elderly Frail Homecare,Charges from Independent Providers,152.80,REDACTED PERSONAL DATA
Revenue,Adult Services,5105650564,16.09.2015,Elderly Frail Homecare,Charges from Independent Providers,267.40,REDACTED PERSONAL DATA
Revenue,Adult Services,5105650563,16.09.2015,Elderly Frail Homecare,Charges from Independent Providers,"1,314.08",REDACTED PERSONAL DATA
Revenue,Adult Services,5105650562,16.09.2015,Elderly Frail Homecare,Charges from Independent Providers,534.80,REDACTED PERSONAL DATA
Revenue,Adult Services,5105650561,16.09.2015,Elderly Frail Homecare,Charges from Independent Providers,592.10,REDACTED PERSONAL DATA
Revenue,Adult Services,5105650565,16.09.2015,Elderly Frail Homecare,Charges from Independent Providers,580.64,REDACTED PERSONAL DATA
Revenue,Adult Services,5105650558,16.09.2015,Elderly Frail Homecare,Charges from Independent Providers,408.74,REDACTED PERSONAL DATA
Revenue,Adult Services,5105651347,23.09.2015,Elderly Frail Homecare,Charges from Independent Providers,653.22,REDACTED PERSONAL DATA
Revenue,Adult Services,5105650552,16.09.2015,Elderly Frail Homecare,Charges from Independent Providers,641.76,REDACTED PERSONAL DATA
